Local authority department which incurred the expenditure,Service Division,Cost Centre,Summary of the Purpose of Expenditure,Expense Type,Expense Code,Detailed Expense Type,Date of Transaction,Transaction Number,Beneficiary,Merchant Category Number,Merchant Category,Gross Amount,VAT,Net Amount
Resources BK0010,Digital and Customer Services,070110,School Services - Man Info System (MIS) Support Team,Supplies and Services,342033,Computers and Communications,01-Nov-2019,000006671817100,SP INFOGRAPIA.COM,5734,Computer hardware,1.26,0.00,1.26
Children and Young Peoples Services,Head of Education and Skills,071801,Selby Cottage Childcare Centre,Supplies and Services,324117,Provisions E324,01-Nov-2019,000006678884326,TESCO STORES 2278,5411,Catering costs - provisions,3.00,0.00,3.00
Regeneration and Local Services,Development and Housing,031576,B& B - Temp Accom,Employees,040149,Recruitment Instruction and Training,01-Nov-2019,000006678884358,PREMIER INN,3811,Training-all costs,196.00,0.00,196.00
Regeneration and Local Services,Development and Housing,031576,B& B - Temp Accom,Employees,040149,Recruitment Instruction and Training,01-Nov-2019,000006678884360,PREMIER INN,3811,Training-all costs,246.50,0.00,246.50
Regeneration and Local Services,Development and Housing,031576,B& B - Temp Accom,Supplies and Services,364320,Grants to Voluntary Organisations,01-Nov-2019,000006678884394,HAYAT HOTEL,7011,Accommodation assistance,150.00,0.00,150.00
Regeneration and Local Services,Development and Housing,031576,B& B - Temp Accom,Supplies and Services,364320,Grants to Voluntary Organisations,01-Nov-2019,000006678884402,PREMIER INN,3811,Accommodation assistance,218.00,0.00,218.00
Children and Young Peoples Services,Head of Childrens Social Care,085357,LAC Bespoke Placements,Transport,235057,Public Transport,01-Nov-2019,000006678884436,HOLIDAY PAYMENT VRUK,4722,Staff travelling,245.00,0.00,245.00
Children and Young Peoples Services,Head of Childrens Social Care,085501,Child Care Cases Legal Expenses,Supplies and Services,304403,Equipment and Materials,01-Nov-2019,000006678884446,SUNDERLAND CC,7523,Other consumables,11.00,0.00,11.00
Children and Young Peoples Services,Head of Childrens Social Care,085501,Child Care Cases Legal Expenses,Supplies and Services,304403,Equipment and Materials,01-Nov-2019,000006678884452,HARTLEPOOL BC,9399,Other consumables,11.00,0.00,11.00
Children and Young Peoples Services,Head of Childrens Social Care,085501,Child Care Cases Legal Expenses,Supplies and Services,304403,Equipment and Materials,01-Nov-2019,000006678884456,HARTLEPOOL BC,9399,Other consumables,11.00,0.00,11.00
Children and Young Peoples Services,Head of Childrens Social Care,085501,Child Care Cases Legal Expenses,Supplies and Services,304403,Equipment and Materials,01-Nov-2019,000006678884460,HARTLEPOOL BC,9399,Other consumables,11.00,0.00,11.00
Children and Young Peoples Services,Head of Childrens Social Care,085501,Child Care Cases Legal Expenses,Supplies and Services,304403,Equipment and Materials,01-Nov-2019,000006678884462,NEWCASTLE CITY COUNCIL,9399,Other consumables,22.00,0.00,22.00
Children and Young Peoples Services,Head of Childrens Social Care,085501,Child Care Cases Legal Expenses,Supplies and Services,304403,Equipment and Materials,01-Nov-2019,000006678884466,W.B.C MV INTERNET,5971,Other consumables,22.00,0.00,22.00
Children and Young Peoples Services,Head of Childrens Social Care,085501,Child Care Cases Legal Expenses,Supplies and Services,304403,Equipment and Materials,01-Nov-2019,000006678884468,DARLINGTON BC INTERNET,9399,Other consumables,11.00,0.00,11.00
Children and Young Peoples Services,Head of Childrens Social Care,085501,Child Care Cases Legal Expenses,Supplies and Services,304403,Equipment and Materials,01-Nov-2019,000006678884472,DARLINGTON BC INTERNET,9399,Other consumables,11.00,0.00,11.00
Children and Young Peoples Services,Head of Childrens Social Care,085501,Child Care Cases Legal Expenses,Supplies and Services,304403,Equipment and Materials,01-Nov-2019,000006678884474,HARTLEPOOL BC,9399,Other consumables,-11.00,0.00,-11.00
Regeneration and Local Services,Development and Housing,030773,CLLD North,Transport,235057,Public Transport,01-Nov-2019,000006678884488,GO NORTH EAST LIMITED,4131,Staff travelling,20.00,0.00,20.00
Children and Young Peoples Services,Head of Education and Skills,075021,Youth Employment Initiative,Supplies and Services,384199,Miscellaneous Expenses,01-Nov-2019,000006678884520,HARTLEPOOL BC CNP,9399,Other hired and contracted services,22.00,0.00,22.00
Children and Young Peoples Services,Head of Education and Skills,075021,Youth Employment Initiative,Supplies and Services,384199,Miscellaneous Expenses,01-Nov-2019,000006678884524,CITY OF NEWCASTLE INTE,9399,Other hired and contracted services,11.00,0.00,11.00
Children and Young Peoples Services,Head of Education and Skills,075021,Youth Employment Initiative,Supplies and Services,384199,Miscellaneous Expenses,01-Nov-2019,000006678884530,DARLINGTON BC INTERNET,9399,Other hired and contracted services,11.00,0.00,11.00
Children and Young Peoples Services,Head of Childrens Social Care,085333,Coxhoe Satelite Home,Supplies and Services,348037,Subsistence E348,01-Nov-2019,000006678884732,GREEK GYROS,5812,Subsistence,22.80,0.00,22.80
Children and Young Peoples Services,Head of Childrens Social Care,085333,Coxhoe Satelite Home,Supplies and Services,328041,Clothing uniforms and laundry E328,01-Nov-2019,000006678884736,PRIMARK 670 GATESHEAD,5651,Clothing uniforms and laundry,36.60,0.00,36.60
Children and Young Peoples Services,Head of Childrens Social Care,085333,Coxhoe Satelite Home,Supplies and Services,328041,Clothing uniforms and laundry E328,01-Nov-2019,000006678884738,PRIMARK 670 GATESHEAD,5651,Clothing uniforms and laundry,13.50,0.00,13.50
Children and Young Peoples Services,Head of Childrens Social Care,085352,Tow Law CU,Supplies and Services,324117,Provisions E324,01-Nov-2019,000006678884796,LIDL GB CROOK,5411,Catering costs - provisions,10.86,0.00,10.86
Children and Young Peoples Services,Head of Childrens Social Care,085352,Tow Law CU,Supplies and Services,324117,Provisions E324,01-Nov-2019,000006678884804,774 026,5411,Catering costs - provisions,19.55,0.00,19.55
Regeneration and Local Services,Corporate Property and Land,021242,Catering - County Hall,Supplies and Services,324117,Provisions E324,01-Nov-2019,000006678884866,HOPWELLS LTD,5811,Catering costs - provisions,392.07,0.00,392.07
Regeneration and Local Services,Corporate Property and Land,021242,Catering - County Hall,Supplies and Services,324117,Provisions E324,01-Nov-2019,000006678884878,JR HOLLAND FOODSERVICE,5499,Catering costs - provisions,72.19,0.00,72.19
Regeneration and Local Services,Corporate Property and Land,021242,Catering - County Hall,Supplies and Services,324117,Provisions E324,01-Nov-2019,000006678884886,JR HOLLAND FOODSERVICE,5499,Catering costs - provisions,6.94,0.00,6.94
Regeneration and Local Services,Culture Sport and Tourism,054812,Gala Theatre - Catering etc,Supplies and Services,324117,Provisions E324,01-Nov-2019,000006678884968,HOPWELLS LTD,5811,Catering costs - provisions,57.40,0.00,57.40
Regeneration and Local Services,Culture Sport and Tourism,054812,Gala Theatre - Catering etc,Premises,145009,Cleaning and Domestic Supplies,01-Nov-2019,000006678884976,ALLIANCE DISPOSABLES L,2842,Other cleaning and domestic costs,178.50,29.75,148.75
Regeneration and Local Services,Culture Sport and Tourism,054812,Gala Theatre - Catering etc,Premises,145009,Cleaning and Domestic Supplies,01-Nov-2019,000006678884976 - 1,ALLIANCE DISPOSABLES L,2842,Other cleaning and domestic costs,0.04,,0.04
Regeneration and Local Services,Culture Sport and Tourism,054812,Gala Theatre - Catering etc,Supplies and Services,324117,Provisions E324,01-Nov-2019,000006678884984,HOPWELLS LTD,5811,Catering costs - provisions,-9.26,0.00,-9.26
Regeneration and Local Services,Development and Housing,030773,CLLD North,Transport,235057,Public Transport,01-Nov-2019,000006678885146,ARRIVA NORTH EAST,4131,Staff travelling,7.50,0.00,7.50
Regeneration and Local Services,Development and Housing,030773,CLLD North,Transport,235057,Public Transport,01-Nov-2019,000006678885150,ARRIVA NORTH EAST,4131,Staff travelling,7.50,0.00,7.50
Children and Young Peoples Services,Head of Childrens Social Care,085341,High Etherley Satelite Home,Supplies and Services,324117,Provisions E324,01-Nov-2019,000006678885218,ALDI,5411,Catering costs - provisions,14.10,0.00,14.10
Children and Young Peoples Services,Head of Childrens Social Care,085341,High Etherley Satelite Home,Supplies and Services,384871,Miscellaneous Expenses,01-Nov-2019,000006678885222,4MOTION DARLINGTON,7997,Training-other activities,8.70,0.00,8.70
Children and Young Peoples Services,Head of Childrens Social Care,085334,West Rainton Satelite Home,Supplies and Services,324117,Provisions E324,01-Nov-2019,000006678885300,TESCO STORES 2371,5411,Catering costs - provisions,44.66,0.00,44.66
Children and Young Peoples Services,Head of Childrens Social Care,085334,West Rainton Satelite Home,Supplies and Services,324117,Provisions E324,01-Nov-2019,000006678885302,TESCO STORES 2371,5411,Catering costs - provisions,42.00,0.00,42.00
Children and Young Peoples Services,Head of Early Help Inclusion & Vulnerable Children.,088109,Spennymoor & Shildon 0-19 Community Family Hub,Supplies and Services,304999,Equipment and Materials,01-Nov-2019,000006678885330,HOME BARGAINS SPENNYMO,5251,Misc equipment tools and materials,17.36,0.00,17.36
Children and Young Peoples Services,Head of Education and Skills,071732,Dean Bank Childcare,Supplies and Services,324117,Provisions E324,01-Nov-2019,000006678885366,CO-OP GROUP 010503,5411,Catering costs - provisions,7.95,0.00,7.95
Children and Young Peoples Services,Head of Early Help Inclusion & Vulnerable Children.,088113,Seaham  0-19 Community Family Hub,Supplies and Services,328041,Clothing uniforms and laundry E328,01-Nov-2019,000006678885388,B & M RETAIL,5310,Clothing uniforms and laundry,28.00,0.00,28.00
Children and Young Peoples Services,Head of Childrens Social Care,085334,West Rainton Satelite Home,Supplies and Services,384237,Miscellaneous Expenses,01-Nov-2019,000006678885398,DYNAMIX,7999,Recreational exps outings parties,12.00,0.00,12.00
Regeneration and Local Services,Development and Housing,031500,Housing Solutions - Core Team,Supplies and Services,352001,Conference Expenses,01-Nov-2019,000006678885550,HOLIDAY INNS,3501,Conferencesseminars fees etc,52.99,0.00,52.99
Children and Young Peoples Services,Head of Early Help Inclusion & Vulnerable Children.,085957,Secure Management,Supplies and Services,324117,Provisions E324,01-Nov-2019,000006678885598,TESCO STORES 6329,5411,Catering costs - provisions,107.96,0.00,107.96
Regeneration and Local Services,Environmental Services,026591,C&G - Hardwick Park,Supplies and Services,304337,Equipment and Materials,01-Nov-2019,000006678885652,WWW.ANGELWHOLESALE.CO.,5970,Consumables/items for resale,164.16,27.36,136.80
Regeneration and Local Services,Environmental Services,011060,C&G - Hardwick Park Catering,Supplies and Services,324117,Provisions E324,01-Nov-2019,000006678885676,HOPWELLS LTD,5811,Catering costs - provisions,349.74,58.29,291.45
Regeneration and Local Services,Environmental Services,011060,C&G - Hardwick Park Catering,Supplies and Services,324117,Provisions E324,01-Nov-2019,000006678885676 - 1,HOPWELLS LTD,5811,Catering costs - provisions,105.02,,105.02
Regeneration and Local Services,Environmental Services,011060,C&G - Hardwick Park Catering,Supplies and Services,324117,Provisions E324,01-Nov-2019,000006678885684,HOPWELLS LTD,5811,Catering costs - provisions,175.18,0.00,175.18
Regeneration and Local Services,Environmental Services,011060,C&G - Hardwick Park Catering,Supplies and Services,324117,Provisions E324,01-Nov-2019,000006678885690,JR HOLLAND FOODSERVICE,5499,Catering costs - provisions,44.91,0.00,44.91
Regeneration and Local Services,Environmental Services,011060,C&G - Hardwick Park Catering,Supplies and Services,324117,Provisions E324,01-Nov-2019,000006678885696,HOPWELLS LTD,5811,Catering costs - provisions,-11.80,0.00,-11.80
Regeneration and Local Services,Culture Sport and Tourism,054815,Gala Theatre Stage School,Supplies and Services,324117,Provisions E324,01-Nov-2019,000006678885754,SAINSBURYS SACAT (2303,5411,Catering costs - provisions,28.00,0.00,28.00
Regeneration and Local Services,Development and Housing,030755,Durham Employment & Skills - Other Training,Employees,040149,Recruitment Instruction and Training,01-Nov-2019,000006678885800,WWW.CSKILLS.ORG,8249,Training-all costs,36.00,0.00,36.00
Regeneration and Local Services,Corporate Property and Land,021234,Catering - Locomotion,Supplies and Services,324117,Provisions E324,01-Nov-2019,000006678885818,HOPWELLS LTD,5811,Catering costs - provisions,148.57,0.00,148.57
Regeneration and Local Services,Corporate Property and Land,021234,Catering - Locomotion,Supplies and Services,324117,Provisions E324,01-Nov-2019,000006678885828,HOPWELLS LTD,5811,Catering costs - provisions,298.43,0.00,298.43
Regeneration and Local Services,Corporate Property and Land,021234,Catering - Locomotion,Premises,145009,Cleaning and Domestic Supplies,01-Nov-2019,000006678885842,ALLIANCE DISPOSABLES L,2842,Other cleaning and domestic costs,58.80,9.80,49.00
Regeneration and Local Services,Corporate Property and Land,021234,Catering - Locomotion,Premises,145009,Cleaning and Domestic Supplies,01-Nov-2019,000006678885842 - 1,ALLIANCE DISPOSABLES L,2842,Other cleaning and domestic costs,0.06,,0.06
Regeneration and Local Services,Corporate Property and Land,021234,Catering - Locomotion,Supplies and Services,324117,Provisions E324,01-Nov-2019,000006678885854,JR HOLLAND FOODSERVICE,5499,Catering costs - provisions,-8.50,0.00,-8.50
Children and Young Peoples Services,Head of Early Help Inclusion & Vulnerable Children.,071443,Stanley One Point Hub,Supplies and Services,304403,Equipment and Materials,01-Nov-2019,000006678886094,AMZNMktplace,5999,Other consumables,8.25,1.38,6.87
Children and Young Peoples Services,Head of Early Help Inclusion & Vulnerable Children.,071443,Stanley One Point Hub,Supplies and Services,304403,Equipment and Materials,01-Nov-2019,000006678886098,AMZNMktplace,5999,Other consumables,72.89,12.15,60.74
Children and Young Peoples Services,Head of Early Help Inclusion & Vulnerable Children.,071443,Stanley One Point Hub,Supplies and Services,304403,Equipment and Materials,01-Nov-2019,000006678886100,AMZNMktplace,5999,Other consumables,64.04,10.67,53.37
Resources BK0010,Finance & Transactional Services,065176,Quality/Subsidy/Appeals/Training/Support,Supplies and Services,338048,Services,01-Nov-2019,000006678886208,HMCOURTS-SERVICE.G,9222,Court costs 338048,904.50,0.00,904.50
Regeneration and Local Services,Development and Housing,031500,Housing Solutions - Core Team,Supplies and Services,352001,Conference Expenses,01-Nov-2019,000006678886306,GRAINGER HOTEL,7011,Conferencesseminars fees etc,200.00,0.00,200.00
Regeneration and Local Services,Corporate Property and Land,030691,Catering - Durham Dales Centre,Supplies and Services,324117,Provisions E324,01-Nov-2019,000006678886370,HOPWELLS LTD,5811,Catering costs - provisions,325.14,0.00,325.14
Regeneration and Local Services,Corporate Property and Land,030691,Catering - Durham Dales Centre,Supplies and Services,324117,Provisions E324,01-Nov-2019,000006678886388,HOPWELLS LTD,5811,Catering costs - provisions,-10.96,0.00,-10.96
Adult and Health Services,Head of Adults,055643,Hawthorn House LD Respite Unit,Supplies and Services,324117,Provisions E324,01-Nov-2019,000006678886444,HOPWELLS LTD,5811,Catering costs - provisions,2.22,0.37,1.85
Adult and Health Services,Head of Adults,055643,Hawthorn House LD Respite Unit,Supplies and Services,324117,Provisions E324,01-Nov-2019,000006678886444 - 1,HOPWELLS LTD,5811,Catering costs - provisions,61.79,,61.79
Adult and Health Services,Head of Adults,055643,Hawthorn House LD Respite Unit,Supplies and Services,324117,Provisions E324,01-Nov-2019,000006678886452,JR HOLLAND FOODSERVICE,5499,Catering costs - provisions,18.49,0.00,18.49
Regeneration and Local Services,Environmental Services,031200,North Pennines Core,Supplies and Services,352001,Conference Expenses,01-Nov-2019,000006678886482,Hotel on Booking.com Q,7011,Conferencesseminars fees etc,45.83,0.00,45.83
Resources BK0010,Digital and Customer Services,065335,School Services - Implementations,Supplies and Services,304639,Equipment and Materials,01-Nov-2019,000006678886564,AMZNMktplace,5999,Technicians-supplies,16.31,2.72,13.59
Children and Young Peoples Services,Head of Childrens Social Care,085342,9 Cedar Drive Aycliffe,Supplies and Services,384999,Miscellaneous Expenses,01-Nov-2019,000006678886576,Amazon.co.uk MA7IO0DR5,5969,Other expenses,19.50,0.00,19.50
Children and Young Peoples Services,Head of Early Help Inclusion & Vulnerable Children.,085957,Secure Management,Supplies and Services,304999,Equipment and Materials,01-Nov-2019,000006678886622,Easylocks Ltd,5072,Misc equipment tools and materials,44.19,7.37,36.82
Children and Young Peoples Services,Head of Early Help Inclusion & Vulnerable Children.,085957,Secure Management,Supplies and Services,304999,Equipment and Materials,01-Nov-2019,000006678886628,SPECSAVERS,8043,Misc equipment tools and materials,49.00,0.00,49.00
Children and Young Peoples Services,Head of Early Help Inclusion & Vulnerable Children.,085957,Secure Management,Supplies and Services,328041,Clothing uniforms and laundry E328,01-Nov-2019,000006678886632,WWW.ARGOS.CO.UK,5310,Clothing uniforms and laundry,32.94,0.00,32.94
Regeneration and Local Services,Transport and Contracted Services,031701,Care Connect All Localities,Supplies and Services,304259,Equipment and Materials,01-Nov-2019,000006678886666,Amazon.co.uk 0X2QV0X45,5969,Equipment-purchase and rental,23.37,0.00,23.37
Regeneration and Local Services,Transport and Contracted Services,031704,Care Connect - CCTV Countywide,Supplies and Services,384956,Miscellaneous Expenses,01-Nov-2019,000006678886670,SECURITY INDUSTRY,7393,Licences,210.00,0.00,210.00
Regeneration and Local Services,Corporate Property and Land,021324,Catering - Meadowfield,Supplies and Services,324117,Provisions E324,01-Nov-2019,000006678886688,HOPWELLS LTD,5811,Catering costs - provisions,49.70,0.00,49.70
Children and Young Peoples Services,Head of Childrens Social Care,085333,Coxhoe Satelite Home,Supplies and Services,324117,Provisions E324,01-Nov-2019,000006678886718,COOPLANDS BAKERY,5462,Catering costs - provisions,10.29,0.00,10.29
Resources BK0010,Corporate Finance & Commercial Services,069800,Corporate Procurement 069800,Employees,040149,Recruitment Instruction and Training,01-Nov-2019,000006678886754,WWW.CIPS.ORG,8699,Training-all costs,137.00,0.00,137.00
Children and Young Peoples Services,Head of Childrens Social Care,085332,Middlestone Moor CU,Supplies and Services,324117,Provisions E324,01-Nov-2019,000006678886796,ASDA SUPERSTORE 4987,5411,Catering costs - provisions,3.53,0.00,3.53
Children and Young Peoples Services,Head of Childrens Social Care,085332,Middlestone Moor CU,Supplies and Services,304259,Equipment and Materials,01-Nov-2019,000006678886798,J D SPORTS 634,5941,Equipment-purchase and rental,40.00,0.00,40.00
Children and Young Peoples Services,Head of Childrens Social Care,085332,Middlestone Moor CU,Supplies and Services,328041,Clothing uniforms and laundry E328,01-Nov-2019,000006678886800,PRIMARK,5651,Clothing uniforms and laundry,35.10,0.00,35.10
Children and Young Peoples Services,Head of Childrens Social Care,085332,Middlestone Moor CU,Supplies and Services,328041,Clothing uniforms and laundry E328,01-Nov-2019,000006678886804,PRIMARK,5651,Clothing uniforms and laundry,27.50,0.00,27.50
Children and Young Peoples Services,Head of Childrens Social Care,085332,Middlestone Moor CU,Supplies and Services,328041,Clothing uniforms and laundry E328,01-Nov-2019,000006678886806,PRIMARK,5651,Clothing uniforms and laundry,79.70,0.00,79.70
Transformation and Partnerships,Business Support,069010,Administration 069010,Supplies and Services,342033,Computers and Communications,01-Nov-2019,000006678886862,STK Shutterstock,7333,Computer hardware,119.00,0.00,119.00
Transformation and Partnerships,Business Support,069010,Administration 069010,Supplies and Services,304403,Equipment and Materials,01-Nov-2019,000006678886864,EMX DYNAMICS LTD,5999,Other consumables,27.95,0.00,27.95
Regeneration and Local Services,Corporate Property and Land,021235,Catering - Wharton Park,Supplies and Services,324117,Provisions E324,01-Nov-2019,000006678886906,HOPWELLS LTD,5811,Catering costs - provisions,129.19,0.00,129.19
Regeneration and Local Services,Corporate Property and Land,021235,Catering - Wharton Park,Supplies and Services,324117,Provisions E324,01-Nov-2019,000006678886910,HOPWELLS LTD,5811,Catering costs - provisions,67.48,0.00,67.48
Regeneration and Local Services,Corporate Property and Land,021235,Catering - Wharton Park,Premises,145009,Cleaning and Domestic Supplies,01-Nov-2019,000006678886912,ALLIANCE DISPOSABLES L,2842,Other cleaning and domestic costs,119.82,19.97,99.85
Regeneration and Local Services,Corporate Property and Land,021235,Catering - Wharton Park,Premises,145009,Cleaning and Domestic Supplies,01-Nov-2019,000006678886912 - 1,ALLIANCE DISPOSABLES L,2842,Other cleaning and domestic costs,0.03,,0.03
Regeneration and Local Services,Corporate Property and Land,021235,Catering - Wharton Park,Supplies and Services,324117,Provisions E324,01-Nov-2019,000006678886916,JR HOLLAND FOODSERVICE,5499,Catering costs - provisions,36.84,0.00,36.84
Regeneration and Local Services,Development and Housing,030771,Durham Advance Flexible Fund,Supplies and Services,324117,Provisions E324,01-Nov-2019,000006678887034,PPOINT_ AKH RETAIL LTD,5411,Catering costs - provisions,98.00,16.33,81.67
Regeneration and Local Services,Corporate Property and Land,021242,Catering - County Hall,Supplies and Services,324117,Provisions E324,01-Nov-2019,000006686682310,BATLEYS PERTH,5300,Catering costs - provisions,137.16,22.86,114.30
Regeneration and Local Services,Corporate Property and Land,021242,Catering - County Hall,Supplies and Services,324117,Provisions E324,01-Nov-2019,000006686682310 - 1,BATLEYS PERTH,5300,Catering costs - provisions,86.61,,86.61
Regeneration and Local Services,Environmental Services,011060,C&G - Hardwick Park Catering,Supplies and Services,324117,Provisions E324,01-Nov-2019,000006686682748,BATLEYS PERTH,5300,Catering costs - provisions,135.42,22.57,112.85
Regeneration and Local Services,Environmental Services,011060,C&G - Hardwick Park Catering,Supplies and Services,324117,Provisions E324,01-Nov-2019,000006686682748 - 1,BATLEYS PERTH,5300,Catering costs - provisions,228.24,,228.24
Regeneration and Local Services,Corporate Property and Land,010525,Catering - Green Lane,Supplies and Services,324117,Provisions E324,01-Nov-2019,000006686682874,BATLEYS PERTH,5300,Catering costs - provisions,114.96,19.16,95.80
Regeneration and Local Services,Corporate Property and Land,010525,Catering - Green Lane,Supplies and Services,324117,Provisions E324,01-Nov-2019,000006686682874 - 1,BATLEYS PERTH,5300,Catering costs - provisions,84.98,,84.98
Adult and Health Services,Head of Adults,055643,Hawthorn House LD Respite Unit,Supplies and Services,324117,Provisions E324,01-Nov-2019,000006686683090,BATLEYS PERTH,5300,Catering costs - provisions,10.50,1.75,8.75
Adult and Health Services,Head of Adults,055643,Hawthorn House LD Respite Unit,Supplies and Services,324117,Provisions E324,01-Nov-2019,000006686683090 - 1,BATLEYS PERTH,5300,Catering costs - provisions,92.35,,92.35
Adult and Health Services,Head of Adults,055643,Hawthorn House LD Respite Unit,Supplies and Services,324117,Provisions E324,01-Nov-2019,000006686683096,BATLEYS PERTH,5300,Catering costs - provisions,10.80,1.80,9.00
Adult and Health Services,Head of Adults,055643,Hawthorn House LD Respite Unit,Supplies and Services,324117,Provisions E324,01-Nov-2019,000006686683096 - 1,BATLEYS PERTH,5300,Catering costs - provisions,3.44,,3.44
Regeneration and Local Services,Culture Sport and Tourism,030708,VCD - Marketing & Information,Supplies and Services,384199,Miscellaneous Expenses,02-Nov-2019,000006678884582,MAILCHIMP MONTHLY,5968,Other hired and contracted services,251.65,0.00,251.65
Children and Young Peoples Services,Head of Childrens Social Care,085342,9 Cedar Drive Aycliffe,Supplies and Services,348037,Subsistence E348,02-Nov-2019,000006678884592,KFC THINFORD DURHAM PR,5814,Subsistence,12.48,0.00,12.48
Children and Young Peoples Services,Head of Childrens Social Care,085342,9 Cedar Drive Aycliffe,Supplies and Services,348037,Subsistence E348,02-Nov-2019,000006678884598,THE AVIATOR BISTRO LTD,5812,Subsistence,7.00,0.00,7.00
Children and Young Peoples Services,Head of Childrens Social Care,085333,Coxhoe Satelite Home,Supplies and Services,328041,Clothing uniforms and laundry E328,02-Nov-2019,000006678884746,B&M RETAIL,5310,Clothing uniforms and laundry,20.99,0.00,20.99
Children and Young Peoples Services,Head of Childrens Social Care,085333,Coxhoe Satelite Home,Supplies and Services,384999,Miscellaneous Expenses,02-Nov-2019,000006678884748,Amazon.co.uk JR4850L05,5969,Other expenses,28.44,9.48,18.96
Children and Young Peoples Services,Head of Childrens Social Care,085352,Tow Law CU,Supplies and Services,324117,Provisions E324,02-Nov-2019,000006678884830,SAINSBURYS SACAT 2199,5411,Catering costs - provisions,19.00,0.00,19.00
Children and Young Peoples Services,Head of Childrens Social Care,085352,Tow Law CU,Supplies and Services,324117,Provisions E324,02-Nov-2019,000006678884832,TESCO STORES 6329,5411,Catering costs - provisions,4.50,0.00,4.50
Children and Young Peoples Services,Head of Childrens Social Care,085332,Middlestone Moor CU,Supplies and Services,348037,Subsistence E348,02-Nov-2019,000006678884916,COSTA COFFEE,5814,Subsistence,9.40,0.00,9.40
Children and Young Peoples Services,Head of Childrens Social Care,085332,Middlestone Moor CU,Supplies and Services,304403,Equipment and Materials,02-Nov-2019,000006678884918,IZ Caricatures by Sla,7333,Other consumables,26.00,0.00,26.00
Children and Young Peoples Services,Head of Childrens Social Care,085332,Middlestone Moor CU,Transport,235057,Public Transport,02-Nov-2019,000006678884922,First York,4111,Staff travelling,6.40,0.00,6.40
Children and Young Peoples Services,Head of Childrens Social Care,085332,Middlestone Moor CU,Supplies and Services,304403,Equipment and Materials,02-Nov-2019,000006678884928,SumUp Sarah Richards,5399,Other consumables,30.90,0.00,30.90
Children and Young Peoples Services,Head of Childrens Social Care,085333,Coxhoe Satelite Home,Supplies and Services,328041,Clothing uniforms and laundry E328,02-Nov-2019,000006678885172,PRIMARK,5651,Clothing uniforms and laundry,16.00,0.00,16.00
Children and Young Peoples Services,Head of Childrens Social Care,085333,Coxhoe Satelite Home,Supplies and Services,328041,Clothing uniforms and laundry E328,02-Nov-2019,000006678885176,Bonmarche,5621,Clothing uniforms and laundry,5.00,0.00,5.00
Children and Young Peoples Services,Head of Childrens Social Care,085333,Coxhoe Satelite Home,Supplies and Services,332047,Printing Stationery and Gen Off Exps,02-Nov-2019,000006678885182,Vue Cinemas,7832,Stationery,9.98,0.00,9.98
Children and Young Peoples Services,Head of Childrens Social Care,085333,Coxhoe Satelite Home,Supplies and Services,328041,Clothing uniforms and laundry E328,02-Nov-2019,000006678885188,W BOYES & CO LTD DARLI,5310,Clothing uniforms and laundry,10.50,0.00,10.50
Children and Young Peoples Services,Head of Childrens Social Care,085341,High Etherley Satelite Home,Supplies and Services,324117,Provisions E324,02-Nov-2019,000006678885228,TESCO STORES 6329,5411,Catering costs - provisions,15.09,0.00,15.09
Regeneration and Local Services,Culture Sport and Tourism,054813,Gala Theatre - Technical,Supplies and Services,304221,Equipment and Materials,02-Nov-2019,000006678885376,SCREWFIX DURHAM,5211,Direct materials,55.24,0.00,55.24
Regeneration and Local Services,Culture Sport and Tourism,054813,Gala Theatre - Technical,Supplies and Services,304221,Equipment and Materials,02-Nov-2019,000006678885378,SCREWFIX DURHAM,5211,Direct materials,54.98,0.00,54.98
Regeneration and Local Services,Business Durham CL0850,030674,Business Services General,Supplies and Services,304403,Equipment and Materials,02-Nov-2019,000006678885566,ADOBE CREATIVE CLOUD,5734,Other consumables,49.94,8.32,41.62
Regeneration and Local Services,Business Durham CL0850,030674,Business Services General,Supplies and Services,342222,Computers and Communications,02-Nov-2019,000006678885572,FASTHOSTS INTERNET,4816,Comp hardware purch-network servers,72.66,12.11,60.55
Regeneration and Local Services,Business Durham CL0850,030674,Business Services General,Supplies and Services,342222,Computers and Communications,02-Nov-2019,000006678885576,FASTHOSTS INTERNET,4816,Comp hardware purch-network servers,66.78,11.13,55.65
Children and Young Peoples Services,Head of Early Help Inclusion & Vulnerable Children.,085957,Secure Management,Supplies and Services,324117,Provisions E324,02-Nov-2019,000006678885604,TESCO STORES 6329,5411,Catering costs - provisions,100.32,0.00,100.32
Children and Young Peoples Services,Head of Early Help Inclusion & Vulnerable Children.,085957,Secure Management,Supplies and Services,304259,Equipment and Materials,02-Nov-2019,000006678885610,JD SPORTS INTERNET,5941,Equipment-purchase and rental,-55.00,0.00,-55.00
Resources BK0010,Resources Management CK0450,069000,Resources Management 069000,Supplies and Services,324117,Provisions E324,02-Nov-2019,000006678886292,SAINSBURYS (2303),5411,Catering costs - provisions,11.80,0.00,11.80
Children and Young Peoples Services,Head of Childrens Social Care,085334,West Rainton Satelite Home,Supplies and Services,384999,Miscellaneous Expenses,02-Nov-2019,000006678886508,SMYTHS TOYS SUNDERLAND,5945,Other expenses,14.99,0.00,14.99
Children and Young Peoples Services,Head of Childrens Social Care,085334,West Rainton Satelite Home,Supplies and Services,348037,Subsistence E348,02-Nov-2019,000006678886516,TIMBER BEACH HOUSE,5813,Subsistence,50.75,0.00,50.75
Children and Young Peoples Services,Head of Childrens Social Care,085334,West Rainton Satelite Home,Supplies and Services,328041,Clothing uniforms and laundry E328,02-Nov-2019,000006678886520,B&M RETAIL LTD,5310,Clothing uniforms and laundry,2.99,0.00,2.99
Children and Young Peoples Services,Head of Childrens Social Care,085334,West Rainton Satelite Home,Supplies and Services,328041,Clothing uniforms and laundry E328,02-Nov-2019,000006678886522,B&M RETAIL LTD,5310,Clothing uniforms and laundry,3.00,0.00,3.00
Children and Young Peoples Services,Head of Childrens Social Care,085342,9 Cedar Drive Aycliffe,Supplies and Services,304403,Equipment and Materials,02-Nov-2019,000006678886586,AMZ Eptek-UKDTK,5999,Other consumables,-15.99,0.00,-15.99
Children and Young Peoples Services,Head of Childrens Social Care,085332,Middlestone Moor CU,Supplies and Services,348037,Subsistence E348,02-Nov-2019,000006678886996,THE CUT CRAFT,5812,Subsistence,117.80,0.00,117.80
Regeneration and Local Services,Culture Sport and Tourism,011265,Empire Theatre (Operations),Supplies and Services,328041,Clothing uniforms and laundry E328,02-Nov-2019,000006678887028,POUNDLAND LTD 1597,5310,Clothing uniforms and laundry,5.00,0.00,5.00
Regeneration and Local Services,Development and Housing,031576,B& B - Temp Accom,Supplies and Services,352001,Conference Expenses,03-Nov-2019,000006678884362,HOLIDAY INNS,3501,Conferencesseminars fees etc,169.97,0.00,169.97
Adult and Health Services,Head of Adults,055302,Durham Pathways,Supplies and Services,304403,Equipment and Materials,03-Nov-2019,000006678884550,AMZNMktplace,5999,Other consumables,79.32,13.22,66.10
Children and Young Peoples Services,Head of Childrens Social Care,085342,9 Cedar Drive Aycliffe,Supplies and Services,304259,Equipment and Materials,03-Nov-2019,000006678884602,WILKO RETAIL LIMIT,5722,Equipment-purchase and rental,17.70,0.00,17.70
Children and Young Peoples Services,Head of Childrens Social Care,085332,Middlestone Moor CU,Supplies and Services,304403,Equipment and Materials,03-Nov-2019,000006678884932,AMZNMktplace,5999,Other consumables,6.88,0.00,6.88
Children and Young Peoples Services,Head of Childrens Social Care,085341,High Etherley Satelite Home,Supplies and Services,324117,Provisions E324,03-Nov-2019,000006678885232,TESCO STORES 6329,5411,Catering costs - provisions,66.85,0.00,66.85
Children and Young Peoples Services,Head of Childrens Social Care,085341,High Etherley Satelite Home,Supplies and Services,384999,Miscellaneous Expenses,03-Nov-2019,000006678885234,TESCO STORES 6329,5411,Other expenses,2.00,0.00,2.00
Children and Young Peoples Services,Head of Childrens Social Care,085341,High Etherley Satelite Home,Supplies and Services,384871,Miscellaneous Expenses,03-Nov-2019,000006678885238,4MOTION DARLINGTON,7997,Training-other activities,8.10,0.00,8.10
Regeneration and Local Services,Culture Sport and Tourism,054813,Gala Theatre - Technical,Supplies and Services,304403,Equipment and Materials,03-Nov-2019,000006678885382,AMZNMktplace,5999,Other consumables,27.29,0.00,27.29
Regeneration and Local Services,Culture Sport and Tourism,054813,Gala Theatre - Technical,Supplies and Services,324117,Provisions E324,03-Nov-2019,000006678885384,TESCO STORES 2371,5411,Catering costs - provisions,64.20,0.00,64.20
Children and Young Peoples Services,Head of Education and Skills,071903,Early Years Sustainability,Supplies and Services,384999,Miscellaneous Expenses,03-Nov-2019,000006678885468,Amazon.co.uk BW8P171G5,5969,Other expenses,10.48,0.00,10.48
Regeneration and Local Services,Environmental Services,026591,C&G - Hardwick Park,Supplies and Services,304337,Equipment and Materials,03-Nov-2019,000006678885654,WWW.NISBETS.COM,5964,Consumables/items for resale,124.36,20.73,103.63
Children and Young Peoples Services,Head of Childrens Social Care,085342,9 Cedar Drive Aycliffe,Supplies and Services,324117,Provisions E324,03-Nov-2019,000006678886580,MARTIN MCCOLL,5499,Catering costs - provisions,5.00,0.00,5.00
Children and Young Peoples Services,Head of Early Help Inclusion & Vulnerable Children.,085957,Secure Management,Supplies and Services,384999,Miscellaneous Expenses,03-Nov-2019,000006678886638,Amazon.co.uk LD78M30H5,5969,Other expenses,27.98,4.67,23.31
Children and Young Peoples Services,Head of Early Help Inclusion & Vulnerable Children.,085957,Secure Management,Supplies and Services,384999,Miscellaneous Expenses,03-Nov-2019,000006678886644,Amazon.co.uk S42UD8JF5,5969,Other expenses,86.08,14.38,71.70
Children and Young Peoples Services,Head of Childrens Social Care,085332,Middlestone Moor CU,Supplies and Services,328041,Clothing uniforms and laundry E328,03-Nov-2019,000006678887002,ACCESSORIZE LTD 1393,5651,Clothing uniforms and laundry,38.85,0.00,38.85
Children and Young Peoples Services,Head of Childrens Social Care,085332,Middlestone Moor CU,Supplies and Services,312009,Newspapers books and periodicals E312,03-Nov-2019,000006678887006,WATERSTONES,5942,Newspapers books and periodicals,14.40,0.00,14.40
Dedicated Schools Grant BG0015,DSG High Needs Block,079050,SENSS-Sensory,Supplies and Services,304403,Equipment and Materials,03-Nov-2019,000006686682170,AMZNMKTPLACE AMAZON.CO,5999,Other consumables,97.02,16.17,80.85
Dedicated Schools Grant BG0015,DSG High Needs Block,079050,SENSS-Sensory,Supplies and Services,304403,Equipment and Materials,03-Nov-2019,000006686682170 - 1,AMZNMKTPLACE AMAZON.CO,5999,Other consumables,43.96,,43.96
Children and Young Peoples Services,Head of Childrens Social Care,085332,Middlestone Moor CU,Supplies and Services,328041,Clothing uniforms and laundry E328,03-Nov-2019,000006686683602,PRIMARK 670 GATESHEAD,5651,Clothing uniforms and laundry,99.75,0.00,99.75
Regeneration and Local Services,Environmental Services,031200,North Pennines Core,Supplies and Services,352001,Conference Expenses,04-Nov-2019,000006678886486,Hotel on Booking.com Q,7011,Conferencesseminars fees etc,1.26,0.00,1.26
Regeneration and Local Services,Development and Housing,031576,B& B - Temp Accom,Supplies and Services,352001,Conference Expenses,04-Nov-2019,000006686682046,HOLIDAY INNS,3501,Conferencesseminars fees etc,54.99,0.00,54.99
Children and Young Peoples Services,Head of Childrens Social Care,085100,SGO and CAO costs,Supplies and Services,384199,Miscellaneous Expenses,04-Nov-2019,000006686682056,SBC CNPSECURE,9399,Other hired and contracted services,22.00,0.00,22.00
Dedicated Schools Grant BG0015,DSG High Needs Block,077099,Special General,Supplies and Services,384999,Miscellaneous Expenses,04-Nov-2019,000006686682062,Amazon.co.uk RW1TX9525,5969,Other expenses,9.18,1.53,7.65
Dedicated Schools Grant BG0015,DSG High Needs Block,077099,Special General,Supplies and Services,384999,Miscellaneous Expenses,04-Nov-2019,000006686682062 - 1,Amazon.co.uk RW1TX9525,5969,Other expenses,47.74,,47.74
Children and Young Peoples Services,Head of Childrens Social Care,085357,LAC Bespoke Placements,Transport,235057,Public Transport,04-Nov-2019,000006686682088,HOLIDAY PAYMENT VRUK,4722,Staff travelling,235.00,0.00,235.00
Regeneration and Local Services,Development and Housing,030773,CLLD North,Employees,040149,Recruitment Instruction and Training,04-Nov-2019,000006686682094,CONSTRUCERT,8299,Training-all costs,38.99,0.00,38.99
Regeneration and Local Services,Development and Housing,031500,Housing Solutions - Core Team,Supplies and Services,364320,Grants to Voluntary Organisations,04-Nov-2019,000006686682126,HOTEL 52,7011,Accommodation assistance,56.49,0.00,56.49
Children and Young Peoples Services,Head of Childrens Social Care,085342,9 Cedar Drive Aycliffe,Supplies and Services,324117,Provisions E324,04-Nov-2019,000006686682144,TESCO STORES 2916,5411,Catering costs - provisions,53.00,0.00,53.00
Children and Young Peoples Services,Head of Childrens Social Care,085342,9 Cedar Drive Aycliffe,Supplies and Services,324117,Provisions E324,04-Nov-2019,000006686682150,TESCO STORES 2916,5411,Catering costs - provisions,37.22,0.00,37.22
Children and Young Peoples Services,Head of Childrens Social Care,085342,9 Cedar Drive Aycliffe,Supplies and Services,324117,Provisions E324,04-Nov-2019,000006686682156,TESCO STORES 2916,5411,Catering costs - provisions,14.99,0.00,14.99
Children and Young Peoples Services,Head of Childrens Social Care,085342,9 Cedar Drive Aycliffe,Supplies and Services,324117,Provisions E324,04-Nov-2019,000006686682162,TESCO STORES 2916,5411,Catering costs - provisions,10.95,0.00,10.95
Dedicated Schools Grant BG0015,DSG High Needs Block,079050,SENSS-Sensory,Supplies and Services,304403,Equipment and Materials,04-Nov-2019,000006686682176,AMZNMktplace,5999,Other consumables,11.70,1.96,9.74
Dedicated Schools Grant BG0015,DSG High Needs Block,079050,SENSS-Sensory,Employees,040149,Recruitment Instruction and Training,04-Nov-2019,000006686682182,PAYPAL VISUALIMPAI,8398,Training-all costs,30.00,0.00,30.00
Dedicated Schools Grant BG0015,DSG High Needs Block,079050,SENSS-Sensory,Supplies and Services,308011,Furniture,04-Nov-2019,000006686682188,WWW.OFFICEFURNITUREONL,5712,Furniture repair and replacement,145.20,0.00,145.20
Regeneration and Local Services,Culture Sport and Tourism,011263,Louisa Centre 011263,Supplies and Services,324117,Provisions E324,04-Nov-2019,000006686682214,JR HOLLAND FOODSERVICE,5499,Catering costs - provisions,19.43,0.00,19.43
Regeneration and Local Services,Culture Sport and Tourism,011263,Louisa Centre 011263,Supplies and Services,324117,Provisions E324,04-Nov-2019,000006686682216,JR HOLLAND FOODSERVICE,5499,Catering costs - provisions,23.18,0.00,23.18
Regeneration and Local Services,Environmental Services,010367,C&G - South Grounds Maintenance,Supplies and Services,304221,Equipment and Materials,04-Nov-2019,000006686682250,SCREWFIX DIRECT,5200,Direct materials,50.97,8.50,42.47
Regeneration and Local Services,Environmental Services,010367,C&G - South Grounds Maintenance,Supplies and Services,304221,Equipment and Materials,04-Nov-2019,000006686682252,SCREWFIX PETERLEE,5211,Direct materials,11.99,2.00,9.99
Regeneration and Local Services,Corporate Property and Land,021242,Catering - County Hall,Supplies and Services,324117,Provisions E324,04-Nov-2019,000006686682320,JR HOLLAND FOODSERVICE,5499,Catering costs - provisions,75.90,0.00,75.90
Children and Young Peoples Services,Head of Childrens Social Care,085332,Middlestone Moor CU,Supplies and Services,324117,Provisions E324,04-Nov-2019,000006686682338,TESCO STORES 6329,5411,Catering costs - provisions,27.63,0.00,27.63
Children and Young Peoples Services,Head of Childrens Social Care,085332,Middlestone Moor CU,Supplies and Services,304403,Equipment and Materials,04-Nov-2019,000006686682346,HOME BARGAINS,5251,Other consumables,7.75,0.00,7.75
Regeneration and Local Services,Culture Sport and Tourism,054812,Gala Theatre - Catering etc,Supplies and Services,324117,Provisions E324,04-Nov-2019,000006686682358,JR HOLLAND FOODSERVICE,5499,Catering costs - provisions,43.41,0.00,43.41
Regeneration and Local Services,Development and Housing,031576,B& B - Temp Accom,Supplies and Services,364320,Grants to Voluntary Organisations,04-Nov-2019,000006686682460,GRAINGER HOTEL,7011,Accommodation assistance,100.00,16.67,83.33
Children and Young Peoples Services,Head of Education and Skills,071732,Dean Bank Childcare,Supplies and Services,324117,Provisions E324,04-Nov-2019,000006686682520,ASDA GROCERIES ONLINE,5411,Catering costs - provisions,44.98,0.00,44.98
Children and Young Peoples Services,Head of Education and Skills,071732,Dean Bank Childcare,Supplies and Services,324117,Provisions E324,04-Nov-2019,000006686682528,ASDA GROCERIES ONLINE,5411,Catering costs - provisions,41.48,0.00,41.48
Children and Young Peoples Services,Head of Education and Skills,071732,Dean Bank Childcare,Supplies and Services,324117,Provisions E324,04-Nov-2019,000006686682532,ASDA GROCERIES ONLINE,5411,Catering costs - provisions,-1.94,0.00,-1.94
Regeneration and Local Services,Culture Sport and Tourism,054813,Gala Theatre - Technical,Supplies and Services,304403,Equipment and Materials,04-Nov-2019,000006686682538,SP MSUPPLIES,5734,Other consumables,262.10,0.00,262.10
Regeneration and Local Services,Culture Sport and Tourism,054813,Gala Theatre - Technical,Supplies and Services,304259,Equipment and Materials,04-Nov-2019,000006686682540,COMMS EXPRESS LTD,5732,Equipment-purchase and rental,121.13,0.00,121.13
Regeneration and Local Services,Culture Sport and Tourism,054731,Killhope Lead Mining Centre,Supplies and Services,340001,Postages E340,04-Nov-2019,000006686682550,ROYAL MAIL ONLINE SHOP,9402,Postages,320.00,0.00,320.00
Regeneration and Local Services,Development and Housing,030771,Durham Advance Flexible Fund,Transport,235057,Public Transport,04-Nov-2019,000006686682576,ARRIVA NORTH EAST,4131,Staff travelling,26.20,0.00,26.20
Regeneration and Local Services,Development and Housing,031500,Housing Solutions - Core Team,Supplies and Services,352001,Conference Expenses,04-Nov-2019,000006686682596,THE HONEST LAWYER,7011,Conferencesseminars fees etc,315.80,52.63,263.17
Regeneration and Local Services,Environmental Services,010301,C&G - North Grounds Maintenance,Third Party Payments,430100,Rendered by Private Contractors,04-Nov-2019,000006686682626,MAGDEN,5039,Payments to sub-contractors,10.30,1.72,8.58
Regeneration and Local Services,Business Durham CL0850,030674,Business Services General,Supplies and Services,342033,Computers and Communications,04-Nov-2019,000006686682654,STK Shutterstock,7333,Computer hardware,19.00,3.17,15.83
Regeneration and Local Services,Business Durham CL0850,030674,Business Services General,Supplies and Services,342222,Computers and Communications,04-Nov-2019,000006686682662,FASTHOSTS INTERNET,4816,Comp hardware purch-network servers,6.34,1.06,5.28
Children and Young Peoples Services,Head of Early Help Inclusion & Vulnerable Children.,085957,Secure Management,Supplies and Services,324117,Provisions E324,04-Nov-2019,000006686682684,TESCO STORES 6329,5411,Catering costs - provisions,168.39,0.00,168.39
Regeneration and Local Services,Culture Sport and Tourism,054813,Gala Theatre - Technical,Supplies and Services,304259,Equipment and Materials,04-Nov-2019,000006686682696,Prime Video EY4GD5GH5,5735,Equipment-purchase and rental,5.99,0.00,5.99
Regeneration and Local Services,Environmental Services,011060,C&G - Hardwick Park Catering,Supplies and Services,324117,Provisions E324,04-Nov-2019,000006686682760,JR HOLLAND FOODSERVICE,5499,Catering costs - provisions,21.81,0.00,21.81
Regeneration and Local Services,Environmental Services,011060,C&G - Hardwick Park Catering,Supplies and Services,324117,Provisions E324,04-Nov-2019,000006686682764,JR HOLLAND FOODSERVICE,5499,Catering costs - provisions,68.94,0.00,68.94
Regeneration and Local Services,Development and Housing,030755,Durham Employment & Skills - Other Training,Employees,040149,Recruitment Instruction and Training,04-Nov-2019,000006686682814,WWW.CSKILLS.ORG,8249,Training-all costs,36.00,0.00,36.00
Regeneration and Local Services,Corporate Property and Land,021234,Catering - Locomotion,Supplies and Services,324117,Provisions E324,04-Nov-2019,000006686682822,JR HOLLAND FOODSERVICE,5499,Catering costs - provisions,39.84,0.00,39.84
Children and Young Peoples Services,Head of Childrens Social Care,085331,New Lea Childrens Home,Supplies and Services,324117,Provisions E324,04-Nov-2019,000006686682832,ASDA GROCERIES ONLINE,5411,Catering costs - provisions,162.55,0.00,162.55
Children and Young Peoples Services,Head of Childrens Social Care,085331,New Lea Childrens Home,Supplies and Services,324117,Provisions E324,04-Nov-2019,000006686682836,ASDA GROCERIES ONLINE,5411,Catering costs - provisions,-0.01,0.00,-0.01
Children and Young Peoples Services,Head of Education and Skills,071802,Louisa Cent Nursery,Supplies and Services,324117,Provisions E324,04-Nov-2019,000006686682958,ASDA SUPERSTORE,5411,Catering costs - provisions,105.96,0.00,105.96
Regeneration and Local Services,Culture Sport and Tourism,011264,Consett Leisure Centre,Supplies and Services,304259,Equipment and Materials,04-Nov-2019,000006686682960,PAYPAL LOCKDOCTORS,7393,Equipment-purchase and rental,30.78,5.13,25.65
Children and Young Peoples Services,Head of Childrens Social Care,085333,Coxhoe Satelite Home,Supplies and Services,324117,Provisions E324,04-Nov-2019,000006686682986,ASDA SUPERSTORE 4987,5411,Catering costs - provisions,125.19,0.00,125.19
Children and Young Peoples Services,Head of Childrens Social Care,085333,Coxhoe Satelite Home,Supplies and Services,324117,Provisions E324,04-Nov-2019,000006686682990,ASDA SUPERSTORE 4987,5411,Catering costs - provisions,25.63,0.00,25.63
Children and Young Peoples Services,Head of Childrens Social Care,085342,9 Cedar Drive Aycliffe,Supplies and Services,324117,Provisions E324,04-Nov-2019,000006686683014,ALDI 105 774,5411,Catering costs - provisions,2.30,0.00,2.30
Children and Young Peoples Services,Head of Childrens Social Care,085342,9 Cedar Drive Aycliffe,Supplies and Services,324117,Provisions E324,04-Nov-2019,000006686683020,WM MORRISONS STORE,5411,Catering costs - provisions,5.00,0.00,5.00
Children and Young Peoples Services,Head of Childrens Social Care,085342,9 Cedar Drive Aycliffe,Supplies and Services,324117,Provisions E324,04-Nov-2019,000006686683022,WM MORRISONS STORE,5411,Catering costs - provisions,11.75,0.00,11.75
Regeneration and Local Services,Corporate Property and Land,030691,Catering - Durham Dales Centre,Supplies and Services,324117,Provisions E324,04-Nov-2019,000006686683064,JR HOLLAND FOODSERVICE,5499,Catering costs - provisions,219.68,0.00,219.68
Adult and Health Services,Head of Adults,055643,Hawthorn House LD Respite Unit,Supplies and Services,324117,Provisions E324,04-Nov-2019,000006686683102,JR HOLLAND FOODSERVICE,5499,Catering costs - provisions,20.28,0.00,20.28
Adult and Health Services,Head of Adults,055643,Hawthorn House LD Respite Unit,Supplies and Services,324117,Provisions E324,04-Nov-2019,000006686683108,JR HOLLAND FOODSERVICE,5499,Catering costs - provisions,27.96,0.00,27.96
Adult and Health Services,Head of Adults,055643,Hawthorn House LD Respite Unit,Supplies and Services,324117,Provisions E324,04-Nov-2019,000006686683112,JR HOLLAND FOODSERVICE,5499,Catering costs - provisions,8.64,0.00,8.64
Regeneration and Local Services,Environmental Services,031200,North Pennines Core,Supplies and Services,312009,Newspapers books and periodicals E312,04-Nov-2019,000006686683114,RELAY 352567SC,5942,Newspapers books and periodicals,7.35,0.00,7.35
Regeneration and Local Services,Environmental Services,031200,North Pennines Core,Supplies and Services,352001,Conference Expenses,04-Nov-2019,000006686683120,BEST WESTERN HOTELS,3502,Conferencesseminars fees etc,77.81,0.00,77.81
Children and Young Peoples Services,Head of Childrens Social Care,085342,9 Cedar Drive Aycliffe,Transport,235057,Public Transport,04-Nov-2019,000006686683168,ARRIVA NORTH EAST,4131,Staff travelling,100.00,0.00,100.00
Regeneration and Local Services,Development and Housing,030771,Durham Advance Flexible Fund,Transport,235057,Public Transport,04-Nov-2019,000006686683192,GO NORTH EAST LIMITED,4131,Staff travelling,20.00,0.00,20.00
Children and Young Peoples Services,Head of Early Help Inclusion & Vulnerable Children.,085957,Secure Management,Supplies and Services,304403,Equipment and Materials,04-Nov-2019,000006686683198,AMZNMktplace,5999,Other consumables,6.24,1.04,5.20
Children and Young Peoples Services,Head of Early Help Inclusion & Vulnerable Children.,085957,Secure Management,Supplies and Services,304221,Equipment and Materials,04-Nov-2019,000006686683204,SCREWFIX DIRECT,5200,Direct materials,20.52,0.00,20.52
Resources BK0010,People & Talent Management,069820,Durham Manager Programme,Employees,040149,Recruitment Instruction and Training,04-Nov-2019,000006686683218,SP MINDSPRING2,8999,Training-all costs,65.04,0.00,65.04
Transformation and Partnerships,Business Support,052986,CYPS - Locality and Operational Support,Supplies and Services,328041,Clothing uniforms and laundry E328,04-Nov-2019,000006686683224,WWW.ARGOS.CO.UK,5310,Clothing uniforms and laundry,169.99,0.00,169.99
Transformation and Partnerships,Business Support,052986,CYPS - Locality and Operational Support,Supplies and Services,304259,Equipment and Materials,04-Nov-2019,000006686683228,WWW.DURHAM.GOV.UK,9399,Equipment-purchase and rental,11.00,0.00,11.00
Regeneration and Local Services,Corporate Property and Land,021324,Catering - Meadowfield,Supplies and Services,324117,Provisions E324,04-Nov-2019,000006686683232,JR HOLLAND FOODSERVICE,5499,Catering costs - provisions,53.70,0.00,53.70
Regeneration and Local Services,Environmental Services,010301,C&G - North Grounds Maintenance,Supplies and Services,304999,Equipment and Materials,04-Nov-2019,000006686683258,GUSTHARTS,5072,Misc equipment tools and materials,420.40,70.07,350.33
Regeneration and Local Services,Environmental Services,010301,C&G - North Grounds Maintenance,Supplies and Services,304999,Equipment and Materials,04-Nov-2019,000006686683264,GUSTHARTS,5072,Misc equipment tools and materials,179.99,30.00,149.99
Regeneration and Local Services,Environmental Services,010301,C&G - North Grounds Maintenance,Third Party Payments,430100,Rendered by Private Contractors,04-Nov-2019,000006686683268,JOHN WARREN (ANIMAL BY,7399,Payments to sub-contractors,36.00,6.00,30.00
Regeneration and Local Services,Development and Housing,030544,Rural Employability - Client Engagement,Employees,040149,Recruitment Instruction and Training,04-Nov-2019,000006686683274,WWW.MOBILETESTING.UK.C,8220,Training-all costs,175.00,0.00,175.00
Children and Young Peoples Services,Head of Childrens Social Care,085332,Middlestone Moor CU,Supplies and Services,384926,Miscellaneous Expenses,04-Nov-2019,000006686683338,ROCK INSURANCE,6300,International visits,19.64,0.00,19.64
Children and Young Peoples Services,Head of Early Help Inclusion & Vulnerable Children.,088107,Ferryhill & Newton Aycliffe 0-19 Community Family Hub,Supplies and Services,304259,Equipment and Materials,04-Nov-2019,000006686683374,WILKO RETAIL LIMIT,5722,Equipment-purchase and rental,46.60,0.00,46.60
Adult and Health Services,Head of Adults,055310,Positive Journeys (Tudhoe),Supplies and Services,324117,Provisions E324,04-Nov-2019,000006686683472,FAMILY SHOPPER,5441,Catering costs - provisions,1.80,0.00,1.80
Regeneration and Local Services,Corporate Property and Land,021235,Catering - Wharton Park,Supplies and Services,324117,Provisions E324,04-Nov-2019,000006686683498,JR HOLLAND FOODSERVICE,5499,Catering costs - provisions,40.58,0.00,40.58
Adult and Health Services,Head of Adults,055309,Peterlee Pathways,Supplies and Services,324117,Provisions E324,04-Nov-2019,000006686683522,LIDL GB PETERLEE,5411,Catering costs - provisions,3.13,0.00,3.13
Adult and Health Services,Head of Adults,055309,Peterlee Pathways,Supplies and Services,328041,Clothing uniforms and laundry E328,04-Nov-2019,000006686683530,B&M RETAIL LTD,5310,Clothing uniforms and laundry,6.58,0.00,6.58
Children and Young Peoples Services,Head of Education and Skills,076001,Music Service,Third Party Payments,430100,Rendered by Private Contractors,04-Nov-2019,000006686683534,EB INCLUDED NORTH,7399,Payments to sub-contractors,11.25,0.00,11.25
Regeneration and Local Services,Environmental Services,031200,North Pennines Core,Supplies and Services,336005,Advertising E336,04-Nov-2019,000006686683554,FACEBK CZ4U4Q2RE2,7311,Advertising other than for staff,35.00,0.00,35.00
Children and Young Peoples Services,Head of Childrens Social Care,085332,Middlestone Moor CU,Supplies and Services,328041,Clothing uniforms and laundry E328,04-Nov-2019,000006686683606,PRETTYLITTLETHING.COM,5691,Clothing uniforms and laundry,-8.00,0.00,-8.00
Transformation and Partnerships,Partnerships & Community Engagement Div.,060472,Syrian Vulnerable Persons Scheme,Supplies and Services,308011,Furniture,04-Nov-2019,000006686683616,ASDA GEORGE COM LEEDS,5411,Furniture repair and replacement,-7.65,0.00,-7.65
Regeneration and Local Services,Development and Housing,030554,International Relations 030554,Supplies and Services,324117,Provisions E324,04-Nov-2019,000006686683648,ALDI 12 774,5411,Catering costs - provisions,2.64,0.00,2.64
Resources BK0010,Finance & Transactional Services,065180,Collections,Supplies and Services,338064,Services,04-Nov-2019,000006686683656,DISCLOSURE SCOTLAND,9399,Disclosure & Barring (DBS) Fees,25.00,0.00,25.00
Transformation and Partnerships,Business Support,052986,CYPS - Locality and Operational Support,Supplies and Services,384999,Miscellaneous Expenses,04-Nov-2019,000006686683682,PETERLEE LEISURE C,7997,Other expenses,5.00,0.00,5.00
Transformation and Partnerships,Business Support,052986,CYPS - Locality and Operational Support,Supplies and Services,384999,Miscellaneous Expenses,04-Nov-2019,000006686683688,PETERLEE LEISURE C,7997,Other expenses,15.00,0.00,15.00
Regeneration and Local Services,Corporate Property and Land,011003,County Hall Durham,Supplies and Services,384956,Miscellaneous Expenses,04-Nov-2019,000006691293876,TVLICENSING.CO.UK,7392,Licences,154.50,0.00,154.50
Regeneration and Local Services,Environmental Services,010915,Depots - Morrison Busty Depot,Supplies and Services,384956,Miscellaneous Expenses,04-Nov-2019,000006691293884,TVLICENSING.CO.UK,7392,Licences,154.50,0.00,154.50
Regeneration and Local Services,Culture Sport and Tourism,054812,Gala Theatre - Catering etc,Supplies and Services,324117,Provisions E324,04-Nov-2019,000006691293914,BATLEYS PERTH,5300,Catering costs - provisions,33.12,5.52,27.60
Regeneration and Local Services,Culture Sport and Tourism,054812,Gala Theatre - Catering etc,Supplies and Services,324117,Provisions E324,04-Nov-2019,000006691293914 - 1,BATLEYS PERTH,5300,Catering costs - provisions,130.12,,130.12
Regeneration and Local Services,Development and Housing,031576,B& B - Temp Accom,Employees,040149,Recruitment Instruction and Training,04-Nov-2019,000006691293924,PREMIER INN,3811,Training-all costs,63.00,10.50,52.50
Regeneration and Local Services,Development and Housing,031576,B& B - Temp Accom,Employees,040149,Recruitment Instruction and Training,04-Nov-2019,000006691293930,PREMIER INN,3811,Training-all costs,68.00,11.33,56.67
Regeneration and Local Services,Development and Housing,031576,B& B - Temp Accom,Supplies and Services,364320,Grants to Voluntary Organisations,04-Nov-2019,000006691294006,PREMIER INN,3811,Accommodation assistance,238.50,0.00,238.50
Regeneration and Local Services,Development and Housing,031500,Housing Solutions - Core Team,Employees,040149,Recruitment Instruction and Training,04-Nov-2019,000006691294124,PREMIER INN,3811,Training-all costs,131.50,21.92,109.58
Regeneration and Local Services,Development and Housing,031500,Housing Solutions - Core Team,Employees,040149,Recruitment Instruction and Training,04-Nov-2019,000006691294130,PREMIER INN,3811,Training-all costs,38.00,0.00,38.00
Regeneration and Local Services,Environmental Services,011060,C&G - Hardwick Park Catering,Supplies and Services,324117,Provisions E324,04-Nov-2019,000006691294184,BATLEYS PERTH,5300,Catering costs - provisions,-74.46,0.00,-74.46
Regeneration and Local Services,Corporate Property and Land,030691,Catering - Durham Dales Centre,Supplies and Services,324117,Provisions E324,04-Nov-2019,000006691294456,BATLEYS PERTH,5300,Catering costs - provisions,31.56,5.26,26.30
Regeneration and Local Services,Corporate Property and Land,030691,Catering - Durham Dales Centre,Supplies and Services,324117,Provisions E324,04-Nov-2019,000006691294456 - 1,BATLEYS PERTH,5300,Catering costs - provisions,80.01,,80.01
Adult and Health Services,Head of Adults,055301,Stanley Pathways,Supplies and Services,308011,Furniture,04-Nov-2019,000006691294646,IKEA LTD 143 GATESHEAD,5712,Furniture repair and replacement,104.25,0.00,104.25
Regeneration and Local Services,Environmental Services,031071,Sustainability and Climate Change,Transport,235057,Public Transport,04-Nov-2019,000006691294772,ROYAL DUTCH AIRLINES (KLM),3010,Staff travelling,1.60,0.00,1.60
Regeneration and Local Services,Environmental Services,031071,Sustainability and Climate Change,Transport,235057,Public Transport,04-Nov-2019,000006691294778,ROYAL DUTCH AIRLINES (KLM),3010,Staff travelling,1.60,0.00,1.60
Regeneration and Local Services,Environmental Services,031071,Sustainability and Climate Change,Transport,235057,Public Transport,04-Nov-2019,000006691294782,ROYAL DUTCH AIRLINES (KLM),3010,Staff travelling,1.60,0.00,1.60
Regeneration and Local Services,Environmental Services,031200,North Pennines Core,Supplies and Services,312009,Newspapers books and periodicals E312,05-Nov-2019,000006686683126,RELAY 352567SC,5942,Newspapers books and periodicals,0.20,0.00,0.20
Regeneration and Local Services,Environmental Services,031200,North Pennines Core,Supplies and Services,352001,Conference Expenses,05-Nov-2019,000006686683132,BEST WESTERN HOTELS,3502,Conferencesseminars fees etc,2.14,0.00,2.14
Regeneration and Local Services,Environmental Services,031071,Sustainability and Climate Change,Supplies and Services,348037,Subsistence E348,05-Nov-2019,000006686683508,XPRESS RETAIL,5812,Subsistence,11.50,0.00,11.50
Children and Young Peoples Services,Head of Childrens Social Care,085341,High Etherley Satelite Home,Supplies and Services,324117,Provisions E324,05-Nov-2019,000006691293648,TESCO STORES 6329,5411,Catering costs - provisions,15.30,0.00,15.30
Children and Young Peoples Services,Head of Childrens Social Care,085341,High Etherley Satelite Home,Supplies and Services,324117,Provisions E324,05-Nov-2019,000006691293654,SAINSBURYS 2199,5411,Catering costs - provisions,6.85,0.00,6.85
Children and Young Peoples Services,Head of Education and Skills,071801,Selby Cottage Childcare Centre,Supplies and Services,304403,Equipment and Materials,05-Nov-2019,000006691293686,AMZNMktplace,5999,Other consumables,95.49,0.00,95.49
Children and Young Peoples Services,Head of Education and Skills,071801,Selby Cottage Childcare Centre,Supplies and Services,304403,Equipment and Materials,05-Nov-2019,000006691293690,AMZNMktplace,5999,Other consumables,-3.33,0.00,-3.33
Children and Young Peoples Services,Childrens Services Operational Support,052939,Signs of Safety,Supplies and Services,304403,Equipment and Materials,05-Nov-2019,000006691293708,AMZNMktplace,5999,Other consumables,17.28,2.88,14.40
Children and Young Peoples Services,Childrens Services Operational Support,052939,Signs of Safety,Supplies and Services,304403,Equipment and Materials,05-Nov-2019,000006691293708 - 1,AMZNMktplace,5999,Other consumables,0.12,,0.12
Regeneration and Local Services,Transport and Contracted Services,031701,Care Connect All Localities,Supplies and Services,304403,Equipment and Materials,05-Nov-2019,000006691293712,AMZNMktplace,5999,Other consumables,25.70,4.28,21.42
Resources BK0010,Digital and Customer Services,065321,Operations - Digital & Customer Services,Supplies and Services,304335,Equipment and Materials,05-Nov-2019,000006691293716,SP OWL LABS UK,5734,ICT supplies etc,"1,598.00",266.33,1331.67
Resources BK0010,Finance & Transactional Services,065177,Assessment,Supplies and Services,342033,Computers and Communications,05-Nov-2019,000006691293722,Amazon.co.uk WR5Q19M15,5969,Computer hardware,202.86,33.81,169.05
Regeneration and Local Services,Technical Services CM0300,010031,Churchyard Walls/Headstones,Supplies and Services,304403,Equipment and Materials,05-Nov-2019,000006691293726,WILKO.COM,5399,Other consumables,100.00,16.67,83.33
Regeneration and Local Services,Technical Services CM0300,025121,Strategic Highways - Drainage and Coast Protection,Supplies and Services,304259,Equipment and Materials,05-Nov-2019,000006691293732,CIVIL AVIATION AUTHORI,9399,Equipment-purchase and rental,9.00,0.00,9.00
Children and Young Peoples Services,Head of Childrens Social Care,085501,Child Care Cases Legal Expenses,Supplies and Services,304403,Equipment and Materials,05-Nov-2019,000006691293750,CITY OF NEWCASTLE INTE,9399,Other consumables,-11.00,0.00,-11.00
Regeneration and Local Services,Development and Housing,030773,CLLD North,Supplies and Services,328041,Clothing uniforms and laundry E328,05-Nov-2019,000006691293768,PEACOCK STORES LTD,5331,Clothing uniforms and laundry,72.05,0.00,72.05
Children and Young Peoples Services,Head of Education and Skills,075021,Youth Employment Initiative,Employees,040149,Recruitment Instruction and Training,05-Nov-2019,000006691293782,VIRTUAL COLLEGE LIMITE,8299,Training-all costs,14.40,2.40,12.00
Regeneration and Local Services,Culture Sport and Tourism,030705,Visit County Durham 030705,Employees,040149,Recruitment Instruction and Training,05-Nov-2019,000006691293788,NEW COLLEGE DURHAM,8220,Training-all costs,52.00,0.00,52.00
Children and Young Peoples Services,Head of Childrens Social Care,085332,Middlestone Moor CU,Supplies and Services,324117,Provisions E324,05-Nov-2019,000006691293816,TESCO STORES 2916,5411,Catering costs - provisions,3.00,0.00,3.00
Regeneration and Local Services,Corporate Property and Land,021242,Catering - County Hall,Supplies and Services,324117,Provisions E324,05-Nov-2019,000006691293890,JR HOLLAND FOODSERVICE,5499,Catering costs - provisions,212.70,0.00,212.70
Regeneration and Local Services,Corporate Property and Land,021242,Catering - County Hall,Supplies and Services,324117,Provisions E324,05-Nov-2019,000006691293898,JR HOLLAND FOODSERVICE,5499,Catering costs - provisions,31.51,0.00,31.51
Regeneration and Local Services,Corporate Property and Land,021242,Catering - County Hall,Supplies and Services,324117,Provisions E324,05-Nov-2019,000006691293904,JR HOLLAND FOODSERVICE,5499,Catering costs - provisions,295.39,0.00,295.39
Regeneration and Local Services,Development and Housing,030773,CLLD North,Supplies and Services,304259,Equipment and Materials,05-Nov-2019,000006691293954,WWW.STOCKPORT.GOV.UK,9399,Equipment-purchase and rental,12.00,0.00,12.00
Regeneration and Local Services,Development and Housing,031576,B& B - Temp Accom,Supplies and Services,364320,Grants to Voluntary Organisations,05-Nov-2019,000006691294010,HOTEL 52,7011,Accommodation assistance,61.99,10.33,51.66
Children and Young Peoples Services,Head of Education and Skills,071732,Dean Bank Childcare,Supplies and Services,384999,Miscellaneous Expenses,05-Nov-2019,000006691294040,Amazon.co.uk DC50S5YV5,5969,Other expenses,35.11,5.88,29.23
Children and Young Peoples Services,Head of Education and Skills,071732,Dean Bank Childcare,Supplies and Services,324117,Provisions E324,05-Nov-2019,000006691294046,SAINSBURYS SACAT (2303,5411,Catering costs - provisions,9.00,0.00,9.00
Regeneration and Local Services,Development and Housing,030771,Durham Advance Flexible Fund,Supplies and Services,384700,Miscellaneous Expenses,05-Nov-2019,000006691294060,EE TOPUP VESTA,4814,Miscellaneous grants,30.00,0.00,30.00
Regeneration and Local Services,Development and Housing,030771,Durham Advance Flexible Fund,Employees,040029,Recruitment Instruction and Training,05-Nov-2019,000006691294066,ARRIVA NORTH EAST,4131,Interview expenses,4.70,0.00,4.70
Children and Young Peoples Services,Head of Early Help Inclusion & Vulnerable Children.,071445,Chester le Street One Point Hub,Supplies and Services,304403,Equipment and Materials,05-Nov-2019,000006691294140,AMZNMktplace,5999,Other consumables,82.60,13.79,68.81
Children and Young Peoples Services,Head of Early Help Inclusion & Vulnerable Children.,085957,Secure Management,Supplies and Services,328041,Clothing uniforms and laundry E328,05-Nov-2019,000006691294152,FOOTASYLUM PLC,5691,Clothing uniforms and laundry,25.94,0.00,25.94
Children and Young Peoples Services,Head of Early Help Inclusion & Vulnerable Children.,085957,Secure Management,Supplies and Services,352001,Conference Expenses,05-Nov-2019,000006691294156,WWW.RAMSIDEHALLHOTEL.C,7011,Conferencesseminars fees etc,125.00,0.00,125.00
Children and Young Peoples Services,Head of Early Help Inclusion & Vulnerable Children.,085957,Secure Management,Supplies and Services,328041,Clothing uniforms and laundry E328,05-Nov-2019,000006691294162,PRETTYLITTLETHING.COM,5691,Clothing uniforms and laundry,29.00,0.00,29.00
Regeneration and Local Services,Culture Sport and Tourism,054813,Gala Theatre - Technical,Supplies and Services,304259,Equipment and Materials,05-Nov-2019,000006691294174,Prime Video XX7NK3DS5,5735,Equipment-purchase and rental,9.99,0.00,9.99
Regeneration and Local Services,Culture Sport and Tourism,054815,Gala Theatre Stage School,Supplies and Services,324117,Provisions E324,05-Nov-2019,000006691294206,SAINSBURYS SACAT 0776,5411,Catering costs - provisions,8.00,0.00,8.00
Regeneration and Local Services,Culture Sport and Tourism,054815,Gala Theatre Stage School,Supplies and Services,328041,Clothing uniforms and laundry E328,05-Nov-2019,000006691294216,RIVER ISLAND 820,5691,Clothing uniforms and laundry,27.00,0.00,27.00
Regeneration and Local Services,Corporate Property and Land,010525,Catering - Green Lane,Premises,145009,Cleaning and Domestic Supplies,05-Nov-2019,000006691294228,ALLIANCE DISPOSABLES L,2842,Other cleaning and domestic costs,90.74,15.12,75.62
Regeneration and Local Services,Corporate Property and Land,010525,Catering - Green Lane,Supplies and Services,324117,Provisions E324,05-Nov-2019,000006691294236,JR HOLLAND FOODSERVICE,5499,Catering costs - provisions,69.19,0.00,69.19
Regeneration and Local Services,Corporate Property and Land,010525,Catering - Green Lane,Supplies and Services,324117,Provisions E324,05-Nov-2019,000006691294240,JR HOLLAND FOODSERVICE,5499,Catering costs - provisions,7.60,0.00,7.60
Transformation and Partnerships,Partnerships & Community Engagement Div.,060472,Syrian Vulnerable Persons Scheme,Supplies and Services,324117,Provisions E324,05-Nov-2019,000006691294246,ASDA GROCERIES ONLINE,5411,Catering costs - provisions,83.44,0.00,83.44
Transformation and Partnerships,Partnerships & Community Engagement Div.,060472,Syrian Vulnerable Persons Scheme,Supplies and Services,324117,Provisions E324,05-Nov-2019,000006691294252,ASDA GROCERIES ONLINE,5411,Catering costs - provisions,81.94,0.00,81.94
Transformation and Partnerships,Partnerships & Community Engagement Div.,060472,Syrian Vulnerable Persons Scheme,Supplies and Services,324117,Provisions E324,05-Nov-2019,000006691294254,ASDA GROCERIES ONLINE,5411,Catering costs - provisions,79.45,0.00,79.45
Transformation and Partnerships,Partnerships & Community Engagement Div.,060472,Syrian Vulnerable Persons Scheme,Supplies and Services,324117,Provisions E324,05-Nov-2019,000006691294258,ASDA GROCERIES ONLINE,5411,Catering costs - provisions,78.95,0.00,78.95
Transformation and Partnerships,Partnerships & Community Engagement Div.,060472,Syrian Vulnerable Persons Scheme,Supplies and Services,324117,Provisions E324,05-Nov-2019,000006691294264,ASDA GROCERIES ONLINE,5411,Catering costs - provisions,78.45,0.00,78.45
Transformation and Partnerships,Partnerships & Community Engagement Div.,060472,Syrian Vulnerable Persons Scheme,Supplies and Services,324117,Provisions E324,05-Nov-2019,000006691294270,ASDA GROCERIES ONLINE,5411,Catering costs - provisions,78.45,0.00,78.45
Transformation and Partnerships,Partnerships & Community Engagement Div.,060472,Syrian Vulnerable Persons Scheme,Supplies and Services,324117,Provisions E324,05-Nov-2019,000006691294274,ASDA GROCERIES ONLINE,5411,Catering costs - provisions,-0.31,0.00,-0.31
Transformation and Partnerships,Partnerships & Community Engagement Div.,060472,Syrian Vulnerable Persons Scheme,Supplies and Services,324117,Provisions E324,05-Nov-2019,000006691294278,ASDA GROCERIES ONLINE,5411,Catering costs - provisions,-0.35,0.00,-0.35
Transformation and Partnerships,Partnerships & Community Engagement Div.,060472,Syrian Vulnerable Persons Scheme,Supplies and Services,324117,Provisions E324,05-Nov-2019,000006691294284,ASDA GROCERIES ONLINE,5411,Catering costs - provisions,-1.26,0.00,-1.26
Transformation and Partnerships,Partnerships & Community Engagement Div.,060472,Syrian Vulnerable Persons Scheme,Supplies and Services,324117,Provisions E324,05-Nov-2019,000006691294288,ASDA GROCERIES ONLINE,5411,Catering costs - provisions,-1.30,0.00,-1.30
Transformation and Partnerships,Partnerships & Community Engagement Div.,060472,Syrian Vulnerable Persons Scheme,Supplies and Services,324117,Provisions E324,05-Nov-2019,000006691294294,ASDA GROCERIES ONLINE,5411,Catering costs - provisions,-1.49,0.00,-1.49
Transformation and Partnerships,Partnerships & Community Engagement Div.,060472,Syrian Vulnerable Persons Scheme,Supplies and Services,324117,Provisions E324,05-Nov-2019,000006691294300,ASDA GROCERIES ONLINE,5411,Catering costs - provisions,-1.49,0.00,-1.49
Children and Young Peoples Services,Head of Education and Skills,071801,Selby Cottage Childcare Centre,Supplies and Services,372009,Subscriptions E372,05-Nov-2019,000006691294320,WWW.ICO.ORG.UK,9399,Subscriptions 372009,40.00,0.00,40.00
Regeneration and Local Services,Corporate Property and Land,021234,Catering - Locomotion,Supplies and Services,324117,Provisions E324,05-Nov-2019,000006691294342,LIDL GB LANGLEY MOOR,5411,Catering costs - provisions,3.40,0.00,3.40
Children and Young Peoples Services,Head of Childrens Social Care,085352,Tow Law CU,Supplies and Services,324117,Provisions E324,05-Nov-2019,000006691294448,ASDA SUPERSTORE 4987,5411,Catering costs - provisions,156.60,0.00,156.60
Adult and Health Services,Head of Adults,055643,Hawthorn House LD Respite Unit,Supplies and Services,324117,Provisions E324,05-Nov-2019,000006691294486,JR HOLLAND FOODSERVICE,5499,Catering costs - provisions,10.00,0.00,10.00
Adult and Health Services,Head of Adults,055643,Hawthorn House LD Respite Unit,Supplies and Services,324117,Provisions E324,05-Nov-2019,000006691294492,JR HOLLAND FOODSERVICE,5499,Catering costs - provisions,17.38,0.00,17.38
Regeneration and Local Services,Environmental Services,031200,North Pennines Core,Transport,235057,Public Transport,05-Nov-2019,000006691294496,GIALLOMBARDO ROBERTO D,4121,Staff travelling,56.02,0.00,56.02
Regeneration and Local Services,Environmental Services,031200,North Pennines Core,Supplies and Services,352001,Conference Expenses,05-Nov-2019,000006691294500,BEST WESTERN HOTELS,3502,Conferencesseminars fees etc,35.45,0.00,35.45
Regeneration and Local Services,Environmental Services,031200,North Pennines Core,Transport,235057,Public Transport,05-Nov-2019,000006691294506,FIUMICINO AEROPORTO SS,4112,Staff travelling,12.10,0.00,12.10
Regeneration and Local Services,Environmental Services,031200,North Pennines Core,Transport,235057,Public Transport,05-Nov-2019,000006691294508,ROMA TERMINI SELF SERV,4112,Staff travelling,51.44,0.00,51.44
Regeneration and Local Services,Environmental Services,031200,North Pennines Core,Supplies and Services,348037,Subsistence E348,05-Nov-2019,000006691294514,CHEF EXPRESS S.P.A.,5814,Subsistence,5.10,0.00,5.10
Children and Young Peoples Services,Head of Childrens Social Care,085334,West Rainton Satelite Home,Supplies and Services,324117,Provisions E324,05-Nov-2019,000006691294540,ASDA SUPERSTORE,5411,Catering costs - provisions,16.92,0.00,16.92
Regeneration and Local Services,Environmental Services,010301,C&G - North Grounds Maintenance,Supplies and Services,304999,Equipment and Materials,05-Nov-2019,000006691294556,J G PAXTON SONS,5072,Misc equipment tools and materials,164.45,0.00,164.45
Children and Young Peoples Services,Head of Early Help Inclusion & Vulnerable Children.,074000,TTF-Attachment and Results,Transfer Payments,525033,Other,05-Nov-2019,000006691294570,ASDA GEORGE COM LEEDS,5411,Grants to individuals,116.45,19.41,97.04
Children and Young Peoples Services,Head of Childrens Social Care,085342,9 Cedar Drive Aycliffe,Supplies and Services,384999,Miscellaneous Expenses,05-Nov-2019,000006691294578,Amazon.co.uk 6I8DL4SF5,5969,Other expenses,22.62,0.00,22.62
Children and Young Peoples Services,Head of Childrens Social Care,085342,9 Cedar Drive Aycliffe,Supplies and Services,304999,Equipment and Materials,05-Nov-2019,000006691294582,Amazon Prime,5968,Misc equipment tools and materials,-7.99,0.00,-7.99
Regeneration and Local Services,Development and Housing,030771,Durham Advance Flexible Fund,Transport,235057,Public Transport,05-Nov-2019,000006691294602,GO NORTH EAST LIMITED,4131,Staff travelling,5.30,0.00,5.30
Regeneration and Local Services,Development and Housing,030771,Durham Advance Flexible Fund,Supplies and Services,304259,Equipment and Materials,05-Nov-2019,000006691294608,GEN REGISTER OFFICE,9399,Equipment-purchase and rental,14.00,0.00,14.00
Children and Young Peoples Services,Head of Early Help Inclusion & Vulnerable Children.,085957,Secure Management,Supplies and Services,304403,Equipment and Materials,05-Nov-2019,000006691294612,AMZNMktplace,5999,Other consumables,12.99,2.17,10.82
Regeneration and Local Services,Environmental Services,031081,Heritage Coast 031081,Supplies and Services,312009,Newspapers books and periodicals E312,05-Nov-2019,000006691294626,NOCHEX. TIDE TIMES,5045,Newspapers books and periodicals,10.75,0.00,10.75
Regeneration and Local Services,Corporate Property and Land,021324,Catering - Meadowfield,Supplies and Services,324117,Provisions E324,05-Nov-2019,000006691294636,JR HOLLAND FOODSERVICE,5499,Catering costs - provisions,14.19,0.00,14.19
Regeneration and Local Services,Corporate Property and Land,021324,Catering - Meadowfield,Supplies and Services,324117,Provisions E324,05-Nov-2019,000006691294642,JR HOLLAND FOODSERVICE,5499,Catering costs - provisions,52.61,0.00,52.61
Children and Young Peoples Services,Head of Early Help Inclusion & Vulnerable Children.,085801,CDYJS - Support,Employees,040149,Recruitment Instruction and Training,05-Nov-2019,000006691294652,BRITISHPSYCHOLOGICALSO,8699,Training-all costs,90.00,0.00,90.00
Adult and Health Services,Head of Adults,055310,Positive Journeys (Tudhoe),Supplies and Services,324117,Provisions E324,05-Nov-2019,000006691294758,SAINSBURYS LOC (4320),5411,Catering costs - provisions,1.50,0.00,1.50
Regeneration and Local Services,Environmental Services,031071,Sustainability and Climate Change,Supplies and Services,348037,Subsistence E348,05-Nov-2019,000006691294788,RESTAURANT BELVISO,5812,Subsistence,16.64,0.00,16.64
Regeneration and Local Services,Environmental Services,031071,Sustainability and Climate Change,Transport,235057,Public Transport,05-Nov-2019,000006691294794,WWW.ROBINHOODAIRPORT.C,4582,Staff travelling,6.00,0.00,6.00
Regeneration and Local Services,Environmental Services,031071,Sustainability and Climate Change,Transport,235057,Public Transport,05-Nov-2019,000006691294796,WWW.ROBINHOODAIRPORT.C,4582,Staff travelling,6.00,0.00,6.00
Regeneration and Local Services,Environmental Services,031071,Sustainability and Climate Change,Transport,235057,Public Transport,05-Nov-2019,000006691294802,WWW.ROBINHOODAIRPORT.C,4582,Staff travelling,6.00,0.00,6.00
Transformation and Partnerships,Partnerships & Community Engagement Div.,060472,Syrian Vulnerable Persons Scheme,Supplies and Services,308011,Furniture,05-Nov-2019,000006691294844,ASDA STORES LTD 4313,5411,Furniture repair and replacement,6.00,1.00,5.00
Resources BK0010,Internal Audit and Insurance,065111,Corporate Fraud,Supplies and Services,338064,Services,05-Nov-2019,000006691294860,DISCLOSURE SCOTLAND,9399,Disclosure & Barring (DBS) Fees,25.00,0.00,25.00
Children and Young Peoples Services,Head of Education and Skills,075021,Youth Employment Initiative,Supplies and Services,384199,Miscellaneous Expenses,05-Nov-2019,000006696841466,WWW.DURHAM.GOV.UK,9399,Other hired and contracted services,11.00,0.00,11.00
Children and Young Peoples Services,Head of Childrens Social Care,085332,Middlestone Moor CU,Vehicles Equipment Furniture and Fittings,912521,Purchase-furniture and fittings,05-Nov-2019,000006696841500,ARGOS DARLINGTON,5310,Purchase-furniture and fittings,119.99,0.00,119.99
Children and Young Peoples Services,Head of Childrens Social Care,085332,Middlestone Moor CU,Supplies and Services,328041,Clothing uniforms and laundry E328,05-Nov-2019,000006696841504,ARGOS LTD,5310,Clothing uniforms and laundry,14.99,0.00,14.99
Children and Young Peoples Services,Head of Childrens Social Care,085332,Middlestone Moor CU,Supplies and Services,324117,Provisions E324,05-Nov-2019,000006696841508,ALDI 74 774,5411,Catering costs - provisions,4.16,0.00,4.16
Children and Young Peoples Services,Head of Childrens Social Care,085332,Middlestone Moor CU,Supplies and Services,324117,Provisions E324,05-Nov-2019,000006696841514,WILKO RETAIL LIMIT,5722,Catering costs - provisions,31.40,0.00,31.40
Regeneration and Local Services,Corporate Property and Land,021242,Catering - County Hall,Supplies and Services,324117,Provisions E324,05-Nov-2019,000006696841644,BATLEYS PERTH,5300,Catering costs - provisions,199.14,33.19,165.95
Regeneration and Local Services,Corporate Property and Land,021242,Catering - County Hall,Supplies and Services,324117,Provisions E324,05-Nov-2019,000006696841644 - 1,BATLEYS PERTH,5300,Catering costs - provisions,222.86,,222.86
Children and Young Peoples Services,Head of Childrens Social Care,085332,Middlestone Moor CU,Supplies and Services,384871,Miscellaneous Expenses,05-Nov-2019,000006696841674,RYANAIR,3246,Training-other activities,-13.00,0.00,-13.00
Regeneration and Local Services,Development and Housing,031576,B& B - Temp Accom,Supplies and Services,364320,Grants to Voluntary Organisations,05-Nov-2019,000006696841810,PREMIER INN,3811,Accommodation assistance,156.00,0.00,156.00
Regeneration and Local Services,Development and Housing,031576,B& B - Temp Accom,Supplies and Services,364320,Grants to Voluntary Organisations,05-Nov-2019,000006696841818,PREMIER INN,3811,Accommodation assistance,153.00,0.00,153.00
Regeneration and Local Services,Environmental Services,031221,North Pennines - Bowlees,Supplies and Services,304221,Equipment and Materials,05-Nov-2019,000006696841928,GRAHAMS LOGS & TIMBER,5211,Direct materials,73.00,0.00,73.00
Children and Young Peoples Services,Head of Childrens Social Care,085334,West Rainton Satelite Home,Supplies and Services,304221,Equipment and Materials,05-Nov-2019,000006696841938,B & Q 1343,5200,Direct materials,48.00,0.00,48.00
Children and Young Peoples Services,Head of Childrens Social Care,085334,West Rainton Satelite Home,Supplies and Services,304221,Equipment and Materials,05-Nov-2019,000006696841944,B & Q 1343,5200,Direct materials,3.56,0.00,3.56
Children and Young Peoples Services,Head of Childrens Social Care,085334,West Rainton Satelite Home,Supplies and Services,304221,Equipment and Materials,05-Nov-2019,000006696841948,B & Q 1343,5200,Direct materials,-24.00,0.00,-24.00
Children and Young Peoples Services,Head of Education and Skills,071903,Early Years Sustainability,Supplies and Services,308011,Furniture,05-Nov-2019,000006696841988,IKEA LTD 143 GATESHEAD,5712,Furniture repair and replacement,27.00,4.50,22.50
Children and Young Peoples Services,Head of Education and Skills,071903,Early Years Sustainability,Supplies and Services,328041,Clothing uniforms and laundry E328,05-Nov-2019,000006696841996,B & M RETAIL,5310,Clothing uniforms and laundry,36.08,0.00,36.08
Regeneration and Local Services,Development and Housing,030771,Durham Advance Flexible Fund,Transport,235057,Public Transport,05-Nov-2019,000006696842020,WALKERGATE CAR PAR,7523,Staff travelling,3.00,0.50,2.50
Regeneration and Local Services,Development and Housing,031500,Housing Solutions - Core Team,Employees,040149,Recruitment Instruction and Training,05-Nov-2019,000006696842040,PREMIER INN,3811,Training-all costs,186.00,31.00,155.00
Children and Young Peoples Services,Head of Early Help Inclusion & Vulnerable Children.,071445,Chester le Street One Point Hub,Supplies and Services,304259,Equipment and Materials,05-Nov-2019,000006696842052,Durham County CNCL,9399,Equipment-purchase and rental,44.00,0.00,44.00
Children and Young Peoples Services,Head of Early Help Inclusion & Vulnerable Children.,085957,Secure Management,Supplies and Services,304259,Equipment and Materials,05-Nov-2019,000006696842058,JD SPORTS INTERNET,5941,Equipment-purchase and rental,97.00,0.00,97.00
Regeneration and Local Services,Culture Sport and Tourism,054813,Gala Theatre - Technical,Supplies and Services,324117,Provisions E324,05-Nov-2019,000006696842076,WM MORRISONS STORE,5411,Catering costs - provisions,139.72,0.00,139.72
Regeneration and Local Services,Environmental Services,011060,C&G - Hardwick Park Catering,Supplies and Services,324117,Provisions E324,05-Nov-2019,000006696842114,BATLEYS PERTH,5300,Catering costs - provisions,54.48,9.08,45.40
Regeneration and Local Services,Environmental Services,011060,C&G - Hardwick Park Catering,Supplies and Services,324117,Provisions E324,05-Nov-2019,000006696842114 - 1,BATLEYS PERTH,5300,Catering costs - provisions,81.55,,81.55
Regeneration and Local Services,Environmental Services,011060,C&G - Hardwick Park Catering,Supplies and Services,324117,Provisions E324,05-Nov-2019,000006696842120,BATLEYS PERTH,5300,Catering costs - provisions,8.61,0.00,8.61
Regeneration and Local Services,Environmental Services,011060,C&G - Hardwick Park Catering,Supplies and Services,324117,Provisions E324,05-Nov-2019,000006696842124,BATLEYS PERTH,5300,Catering costs - provisions,21.92,3.65,18.27
Regeneration and Local Services,Corporate Property and Land,021234,Catering - Locomotion,Supplies and Services,324117,Provisions E324,05-Nov-2019,000006696842138,BATLEYS PERTH,5300,Catering costs - provisions,247.68,41.28,206.40
Regeneration and Local Services,Corporate Property and Land,021234,Catering - Locomotion,Supplies and Services,324117,Provisions E324,05-Nov-2019,000006696842138 - 1,BATLEYS PERTH,5300,Catering costs - provisions,51.57,,51.57
Children and Young Peoples Services,Head of Early Help Inclusion & Vulnerable Children.,088105,BA/BC/Crook 0-19 Community Family Hub,Supplies and Services,324117,Provisions E324,05-Nov-2019,000006696842202,WM MORRISONS STORE,5411,Catering costs - provisions,6.60,0.00,6.60
Children and Young Peoples Services,Head of Childrens Social Care,085334,West Rainton Satelite Home,Supplies and Services,328041,Clothing uniforms and laundry E328,05-Nov-2019,000006696842244,B & M RETAIL,5310,Clothing uniforms and laundry,6.49,0.00,6.49
Children and Young Peoples Services,Head of Childrens Social Care,085332,Middlestone Moor CU,Supplies and Services,328041,Clothing uniforms and laundry E328,05-Nov-2019,000006696842334,HOUSE OF FRASER,5311,Clothing uniforms and laundry,40.05,0.00,40.05
Children and Young Peoples Services,Head of Childrens Social Care,085334,West Rainton Satelite Home,Supplies and Services,328041,Clothing uniforms and laundry E328,05-Nov-2019,000006696842402,B & M RETAIL,5310,Clothing uniforms and laundry,1.47,0.00,1.47
Regeneration and Local Services,Environmental Services,010301,C&G - North Grounds Maintenance,Supplies and Services,304221,Equipment and Materials,05-Nov-2019,000006696842414,HARELAW SAWMILL,5211,Direct materials,209.75,34.96,174.79
Transformation and Partnerships,Business Support,069010,Administration 069010,Transport,235057,Public Transport,05-Nov-2019,000006696842476,Oyster Online,4112,Staff travelling,50.00,0.00,50.00
Regeneration and Local Services,Corporate Property and Land,021324,Catering - Meadowfield,Supplies and Services,324117,Provisions E324,05-Nov-2019,000006696842520,BATLEYS PERTH,5300,Catering costs - provisions,126.84,21.14,105.70
Regeneration and Local Services,Corporate Property and Land,021324,Catering - Meadowfield,Supplies and Services,324117,Provisions E324,05-Nov-2019,000006696842520 - 1,BATLEYS PERTH,5300,Catering costs - provisions,95.11,,95.11
Children and Young Peoples Services,Head of Early Help Inclusion & Vulnerable Children.,088107,Ferryhill & Newton Aycliffe 0-19 Community Family Hub,Supplies and Services,328041,Clothing uniforms and laundry E328,05-Nov-2019,000006696842614,WWW.ARGOS.CO.UK,5310,Clothing uniforms and laundry,269.99,0.00,269.99
Regeneration and Local Services,Environmental Services,031071,Sustainability and Climate Change,Supplies and Services,348037,Subsistence E348,05-Nov-2019,000006696842654,AUBERGINE INTERNATIO,5812,Subsistence,52.50,0.00,52.50
Children and Young Peoples Services,Head of Early Help Inclusion & Vulnerable Children.,085957,Secure Management,Supplies and Services,304999,Equipment and Materials,06-Nov-2019,000006691294164,TESCO SUBSCRIPTION,5968,Misc equipment tools and materials,6.99,0.00,6.99
Regeneration and Local Services,Environmental Services,031200,North Pennines Core,Transport,235057,Public Transport,06-Nov-2019,000006691294518,GIALLOMBARDO ROBERTO D,4121,Staff travelling,1.54,0.00,1.54
Regeneration and Local Services,Environmental Services,031200,North Pennines Core,Supplies and Services,352001,Conference Expenses,06-Nov-2019,000006691294520,BEST WESTERN HOTELS,3502,Conferencesseminars fees etc,0.97,0.00,0.97
Regeneration and Local Services,Environmental Services,031200,North Pennines Core,Transport,235057,Public Transport,06-Nov-2019,000006691294522,FIUMICINO AEROPORTO SS,4112,Staff travelling,0.33,0.00,0.33
Regeneration and Local Services,Environmental Services,031200,North Pennines Core,Transport,235057,Public Transport,06-Nov-2019,000006691294524,ROMA TERMINI SELF SERV,4112,Staff travelling,1.41,0.00,1.41
Regeneration and Local Services,Environmental Services,031200,North Pennines Core,Supplies and Services,348037,Subsistence E348,06-Nov-2019,000006691294526,CHEF EXPRESS S.P.A.,5814,Subsistence,0.14,0.00,0.14
Regeneration and Local Services,Environmental Services,031071,Sustainability and Climate Change,Supplies and Services,348037,Subsistence E348,06-Nov-2019,000006691294808,RESTAURANT BELVISO,5812,Subsistence,0.46,0.00,0.46
Children and Young Peoples Services,Head of Education and Skills,071801,Selby Cottage Childcare Centre,Supplies and Services,324117,Provisions E324,06-Nov-2019,000006696841362,JR HOLLAND FOODSERVICE,5499,Catering costs - provisions,439.92,0.00,439.92
Children and Young Peoples Services,Head of Education and Skills,071801,Selby Cottage Childcare Centre,Supplies and Services,324117,Provisions E324,06-Nov-2019,000006696841370,TESCO STORES 2278,5411,Catering costs - provisions,45.64,0.00,45.64
Regeneration and Local Services,Development and Housing,031617,Project Beta Sustainability Fund,Supplies and Services,342033,Computers and Communications,06-Nov-2019,000006696841382,WWW.SECURE-PAYMENT-SER,7372,Computer hardware,20.00,0.00,20.00
Regeneration and Local Services,Development and Housing,031576,B& B - Temp Accom,Supplies and Services,352001,Conference Expenses,06-Nov-2019,000006696841392,HOTEL 52,7011,Conferencesseminars fees etc,61.99,0.00,61.99
Resources BK0010,Legal & Democratic Services,067910,Democratic Representation 067910,Supplies and Services,344033,Telephones,06-Nov-2019,000006696841404,AMZNMktplace,5999,Telephones general-all costs,18.90,3.15,15.75
Resources BK0010,Legal & Democratic Services,067910,Democratic Representation 067910,Supplies and Services,304403,Equipment and Materials,06-Nov-2019,000006696841404 - 1,AMZNMktplace,5999,Other consumables,0.03,,0.03
Transformation and Partnerships,Business Support,065461,Business Support 065461,Supplies and Services,304259,Equipment and Materials,06-Nov-2019,000006696841410,DISCLOSURE SCOTLAND,9399,Equipment-purchase and rental,25.00,0.00,25.00
Adult and Health Services,Commissioning inc Supporting People,052100,Supporting the Provider Market,Supplies and Services,338057,Services,06-Nov-2019,000006696841414,GBP WESSEX MEDICAL LTD,5047,Medical fees 338057,476.22,79.37,396.85
Resources BK0010,Digital and Customer Services,065487,ICT Telephony Recharges,Supplies and Services,344033,Telephones,06-Nov-2019,000006696841418,AMZNMktplace,5999,Telephones general-all costs,284.50,95.00,189.50
Regeneration and Local Services,Development and Housing,030771,Durham Advance Flexible Fund,Supplies and Services,328041,Clothing uniforms and laundry E328,06-Nov-2019,000006696841454,T K MAXX,5331,Clothing uniforms and laundry,38.99,6.50,32.49
Adult and Health Services,Head of Adults,055302,Durham Pathways,Supplies and Services,324117,Provisions E324,06-Nov-2019,000006696841470,SAINSBURYS SACAT 0776,5411,Catering costs - provisions,4.25,0.00,4.25
Regeneration and Local Services,Environmental Services,010383,C&G - South Street Cleansing,Supplies and Services,304999,Equipment and Materials,06-Nov-2019,000006696841480,WWW.LSC-UK.COM,5251,Misc equipment tools and materials,268.20,44.70,223.50
Children and Young Peoples Services,Head of Childrens Social Care,085332,Middlestone Moor CU,Supplies and Services,324117,Provisions E324,06-Nov-2019,000006696841516,WILKO RETAIL LIMIT,5722,Catering costs - provisions,2.75,0.00,2.75
Regeneration and Local Services,Corporate Property and Land,021242,Catering - County Hall,Premises,145009,Cleaning and Domestic Supplies,06-Nov-2019,000006696841650,ALLIANCE DISPOSABLES L,2842,Other cleaning and domestic costs,110.59,18.43,92.16
Regeneration and Local Services,Corporate Property and Land,021242,Catering - County Hall,Supplies and Services,324117,Provisions E324,06-Nov-2019,000006696841656,JR HOLLAND FOODSERVICE,5499,Catering costs - provisions,86.83,0.00,86.83
Regeneration and Local Services,Corporate Property and Land,021242,Catering - County Hall,Supplies and Services,324117,Provisions E324,06-Nov-2019,000006696841660,JR HOLLAND FOODSERVICE,5499,Catering costs - provisions,13.80,0.00,13.80
Regeneration and Local Services,Corporate Property and Land,021242,Catering - County Hall,Supplies and Services,324117,Provisions E324,06-Nov-2019,000006696841664,WWW.ADELIEFOODS.CO.UK,5499,Catering costs - provisions,46.24,0.00,46.24
Children and Young Peoples Services,Head of Childrens Social Care,085332,Middlestone Moor CU,Supplies and Services,324117,Provisions E324,06-Nov-2019,000006696841668,ASDA SUPERSTORE 4987,5411,Catering costs - provisions,26.70,0.00,26.70
Regeneration and Local Services,Culture Sport and Tourism,054812,Gala Theatre - Catering etc,Supplies and Services,324117,Provisions E324,06-Nov-2019,000006696841690,JR HOLLAND FOODSERVICE,5499,Catering costs - provisions,39.59,0.00,39.59
Children and Young Peoples Services,Head of Childrens Social Care,085362,LAC & Permanence Team 2,Supplies and Services,384871,Miscellaneous Expenses,06-Nov-2019,000006696841730,WWW.DURHAM.GOV.UK,9399,Training-other activities,22.00,0.00,22.00
Children and Young Peoples Services,Head of Childrens Social Care,085362,LAC & Permanence Team 2,Supplies and Services,304403,Equipment and Materials,06-Nov-2019,000006696841736,WWW.DURHAM.GOV.UK,9399,Other consumables,11.00,0.00,11.00
Children and Young Peoples Services,Head of Childrens Social Care,085333,Coxhoe Satelite Home,Supplies and Services,328041,Clothing uniforms and laundry E328,06-Nov-2019,000006696841742,ARGOS LTD,5310,Clothing uniforms and laundry,9.99,0.00,9.99
Children and Young Peoples Services,Head of Childrens Social Care,085334,West Rainton Satelite Home,Supplies and Services,324117,Provisions E324,06-Nov-2019,000006696841826,TESCO STORES 2371,5411,Catering costs - provisions,142.68,0.00,142.68
Children and Young Peoples Services,Head of Childrens Social Care,085334,West Rainton Satelite Home,Supplies and Services,324117,Provisions E324,06-Nov-2019,000006696841834,TESCO STORES 2371,5411,Catering costs - provisions,17.50,0.00,17.50
Children and Young Peoples Services,Head of Education and Skills,071732,Dean Bank Childcare,Supplies and Services,312009,Newspapers books and periodicals E312,06-Nov-2019,000006696841852,THE BOOK PEOPLE,5942,Newspapers books and periodicals,41.97,0.00,41.97
Children and Young Peoples Services,Head of Education and Skills,071732,Dean Bank Childcare,Supplies and Services,312009,Newspapers books and periodicals E312,06-Nov-2019,000006696841858,THE BOOK PEOPLE,5942,Newspapers books and periodicals,31.46,0.00,31.46
Children and Young Peoples Services,Head of Education and Skills,071732,Dean Bank Childcare,Supplies and Services,312009,Newspapers books and periodicals E312,06-Nov-2019,000006696841862,THE BOOK PEOPLE,5942,Newspapers books and periodicals,11.24,0.00,11.24
Regeneration and Local Services,Culture Sport and Tourism,054813,Gala Theatre - Technical,Supplies and Services,308011,Furniture,06-Nov-2019,000006696841866,WWW.CULTFURNITURE.COM,5712,Furniture repair and replacement,266.95,0.00,266.95
Regeneration and Local Services,Culture Sport and Tourism,010601,Spennymoor Leisure Cr - General,Supplies and Services,304999,Equipment and Materials,06-Nov-2019,000006696841878,CHARLES DICKENS (SPENN,5251,Misc equipment tools and materials,9.99,1.67,8.32
Regeneration and Local Services,Development and Housing,030771,Durham Advance Flexible Fund,Employees,040029,Recruitment Instruction and Training,06-Nov-2019,000006696841918,ARRIVA NORTH EAST,4131,Interview expenses,7.50,0.00,7.50
Regeneration and Local Services,Development and Housing,030771,Durham Advance Flexible Fund,Transport,235057,Public Transport,06-Nov-2019,000006696842024,CHEVRON TAXIS,4121,Staff travelling,15.50,0.00,15.50
Regeneration and Local Services,Development and Housing,030771,Durham Advance Flexible Fund,Transport,235057,Public Transport,06-Nov-2019,000006696842028,GO NORTH EAST LIMITED,4131,Staff travelling,5.30,0.00,5.30
Children and Young Peoples Services,Head of Early Help Inclusion & Vulnerable Children.,085957,Secure Management,Supplies and Services,304403,Equipment and Materials,06-Nov-2019,000006696842064,AMZNMktplace,5999,Other consumables,52.85,0.00,52.85
Children and Young Peoples Services,Head of Early Help Inclusion & Vulnerable Children.,085957,Secure Management,Supplies and Services,304221,Equipment and Materials,06-Nov-2019,000006696842066,HOMEPLAN DIY,5211,Direct materials,5.98,0.00,5.98
Children and Young Peoples Services,Head of Early Help Inclusion & Vulnerable Children.,085957,Secure Management,Supplies and Services,324117,Provisions E324,06-Nov-2019,000006696842070,TESCO STORES 6329,5411,Catering costs - provisions,116.19,0.00,116.19
Regeneration and Local Services,Culture Sport and Tourism,054813,Gala Theatre - Technical,Supplies and Services,340001,Postages E340,06-Nov-2019,000006696842078,POST OFFICE COUNTER,9402,Postages,15.85,0.00,15.85
Regeneration and Local Services,Culture Sport and Tourism,054813,Gala Theatre - Technical,Supplies and Services,340001,Postages E340,06-Nov-2019,000006696842082,POST OFFICE COUNTER,9402,Postages,26.32,0.00,26.32
Regeneration and Local Services,Culture Sport and Tourism,054813,Gala Theatre - Technical,Supplies and Services,304221,Equipment and Materials,06-Nov-2019,000006696842090,B & Q 1006,5200,Direct materials,284.00,0.00,284.00
Regeneration and Local Services,Culture Sport and Tourism,054813,Gala Theatre - Technical,Supplies and Services,304221,Equipment and Materials,06-Nov-2019,000006696842092,B & Q 1006,5200,Direct materials,54.00,0.00,54.00
Regeneration and Local Services,Culture Sport and Tourism,054813,Gala Theatre - Technical,Supplies and Services,304221,Equipment and Materials,06-Nov-2019,000006696842096,B & Q 1006,5200,Direct materials,40.00,0.00,40.00
Transformation and Partnerships,Business Support,052986,CYPS - Locality and Operational Support,Supplies and Services,332047,Printing Stationery and Gen Off Exps,06-Nov-2019,000006696842104,WWW.SPEAKIT.INFO,5943,Stationery,388.19,64.70,323.49
Regeneration and Local Services,Environmental Services,011060,C&G - Hardwick Park Catering,Supplies and Services,304403,Equipment and Materials,06-Nov-2019,000006696842108,AMZNMktplace,5999,Other consumables,54.72,9.12,45.60
Regeneration and Local Services,Environmental Services,026591,C&G - Hardwick Park,Supplies and Services,304403,Equipment and Materials,06-Nov-2019,000006696842108 - 1,AMZNMktplace,5999,Other consumables,0.06,,0.06
Regeneration and Local Services,Environmental Services,011060,C&G - Hardwick Park Catering,Supplies and Services,324117,Provisions E324,06-Nov-2019,000006696842128,JR HOLLAND FOODSERVICE,5499,Catering costs - provisions,38.28,0.00,38.28
Regeneration and Local Services,Corporate Property and Land,021234,Catering - Locomotion,Supplies and Services,324117,Provisions E324,06-Nov-2019,000006696842144,WWW.ADELIEFOODS.CO.UK,5499,Catering costs - provisions,54.03,0.00,54.03
Children and Young Peoples Services,Head of Early Help Inclusion & Vulnerable Children.,088101,CLS 0-19 Community Family Hub,Supplies and Services,324117,Provisions E324,06-Nov-2019,000006696842150,CO-OP GROUP 010460,5411,Catering costs - provisions,6.89,0.00,6.89
Children and Young Peoples Services,Head of Childrens Social Care,085331,New Lea Childrens Home,Supplies and Services,304403,Equipment and Materials,06-Nov-2019,000006696842154,AMZNMktplace,5999,Other consumables,104.95,17.49,87.46
Regeneration and Local Services,Development and Housing,030771,Durham Advance Flexible Fund,Supplies and Services,304259,Equipment and Materials,06-Nov-2019,000006696842160,DURHAM TEA ROOM,9399,Equipment-purchase and rental,2.50,0.00,2.50
Children and Young Peoples Services,Head of Childrens Social Care,085612,Families First Consett,Supplies and Services,338045,Services,06-Nov-2019,000006696842206,WWW.DURHAM.GOV.UK,9399,Legal expenses 338045,11.00,0.00,11.00
Regeneration and Local Services,Corporate Property and Land,021234,Catering - Locomotion,Supplies and Services,324117,Provisions E324,06-Nov-2019,000006696842212,SAINSBURYS SACAT 0776,5411,Catering costs - provisions,14.25,0.00,14.25
Regeneration and Local Services,Corporate Property and Land,021234,Catering - Locomotion,Supplies and Services,324117,Provisions E324,06-Nov-2019,000006696842216,CO-OP GROUP 010989,5411,Catering costs - provisions,10.37,0.00,10.37
Children and Young Peoples Services,Head of Early Help Inclusion & Vulnerable Children.,071443,Stanley One Point Hub,Supplies and Services,328041,Clothing uniforms and laundry E328,06-Nov-2019,000006696842222,WWW.ARGOS.CO.UK,5310,Clothing uniforms and laundry,376.27,0.00,376.27
Children and Young Peoples Services,Head of Childrens Social Care,085334,West Rainton Satelite Home,Supplies and Services,348037,Subsistence E348,06-Nov-2019,000006696842248,PIZZA HUT 956,5812,Subsistence,23.55,0.00,23.55
Children and Young Peoples Services,Head of Education and Skills,071802,Louisa Cent Nursery,Supplies and Services,324117,Provisions E324,06-Nov-2019,000006696842278,ALDI STORES,5411,Catering costs - provisions,2.98,0.00,2.98
Children and Young Peoples Services,Head of Childrens Social Care,085342,9 Cedar Drive Aycliffe,Supplies and Services,304999,Equipment and Materials,06-Nov-2019,000006696842302,Amazon Prime,5968,Misc equipment tools and materials,-7.99,0.00,-7.99
Children and Young Peoples Services,Head of Childrens Social Care,085342,9 Cedar Drive Aycliffe,Supplies and Services,304999,Equipment and Materials,06-Nov-2019,000006696842306,Amazon Prime,5968,Misc equipment tools and materials,-7.99,0.00,-7.99
Children and Young Peoples Services,Head of Childrens Social Care,085332,Middlestone Moor CU,Supplies and Services,352001,Conference Expenses,06-Nov-2019,000006696842336,TRAVELODGE,3615,Conferencesseminars fees etc,201.98,0.00,201.98
Children and Young Peoples Services,Head of Childrens Social Care,085332,Middlestone Moor CU,Supplies and Services,304999,Equipment and Materials,06-Nov-2019,000006696842340,HOME BARGAINS,5251,Misc equipment tools and materials,16.49,0.00,16.49
Children and Young Peoples Services,Head of Childrens Social Care,085332,Middlestone Moor CU,Supplies and Services,324117,Provisions E324,06-Nov-2019,000006696842344,ASDA SUPERSTORE 4987,5411,Catering costs - provisions,86.80,0.00,86.80
Children and Young Peoples Services,Head of Childrens Social Care,085332,Middlestone Moor CU,Supplies and Services,324117,Provisions E324,06-Nov-2019,000006696842346,STARBUCKS BISHOP AUCKL,5499,Catering costs - provisions,4.35,0.00,4.35
Adult and Health Services,Head of Adults,055643,Hawthorn House LD Respite Unit,Supplies and Services,324117,Provisions E324,06-Nov-2019,000006696842380,JR HOLLAND FOODSERVICE,5499,Catering costs - provisions,3.40,0.00,3.40
Adult and Health Services,Head of Adults,055643,Hawthorn House LD Respite Unit,Supplies and Services,324117,Provisions E324,06-Nov-2019,000006696842382,JR HOLLAND FOODSERVICE,5499,Catering costs - provisions,12.51,0.00,12.51
Regeneration and Local Services,Culture Sport and Tourism,054399,Local Delivery-Libraries,Supplies and Services,304999,Equipment and Materials,06-Nov-2019,000006696842386,Amazon Prime 6F1PT47Q5,5968,Misc equipment tools and materials,7.99,0.00,7.99
Children and Young Peoples Services,Head of Education and Skills,070264,EDC Premises,Supplies and Services,324117,Provisions E324,06-Nov-2019,000006696842390,ASDA STORES,5411,Catering costs - provisions,29.92,0.00,29.92
Regeneration and Local Services,Environmental Services,010301,C&G - North Grounds Maintenance,Third Party Payments,430100,Rendered by Private Contractors,06-Nov-2019,000006696842420,JOHN WARREN (ANIMAL BY,7399,Payments to sub-contractors,12.00,0.00,12.00
Regeneration and Local Services,Environmental Services,010301,C&G - North Grounds Maintenance,Supplies and Services,304221,Equipment and Materials,06-Nov-2019,000006696842424,HARELAW SAWMILL,5211,Direct materials,53.27,0.00,53.27
Children and Young Peoples Services,Head of Early Help Inclusion & Vulnerable Children.,074000,TTF-Attachment and Results,Transfer Payments,525033,Other,06-Nov-2019,000006696842434,AMZNMktplace,5999,Grants to individuals,35.98,6.00,29.98
Children and Young Peoples Services,Head of Childrens Social Care,085342,9 Cedar Drive Aycliffe,Supplies and Services,384999,Miscellaneous Expenses,06-Nov-2019,000006696842448,Amazon.co.uk 8N6MJ2WA5,5969,Other expenses,4.99,0.00,4.99
Transformation and Partnerships,Business Support,052986,CYPS - Locality and Operational Support,Supplies and Services,304403,Equipment and Materials,06-Nov-2019,000006696842454,AMZNMktplace,5999,Other consumables,499.26,0.00,499.26
Transformation and Partnerships,Business Support,052986,CYPS - Locality and Operational Support,Supplies and Services,328041,Clothing uniforms and laundry E328,06-Nov-2019,000006696842456,PAYPAL INCENTIVEPL,5331,Clothing uniforms and laundry,408.15,0.00,408.15
Transformation and Partnerships,Business Support,052986,CYPS - Locality and Operational Support,Supplies and Services,328041,Clothing uniforms and laundry E328,06-Nov-2019,000006696842460,WWW.ARGOS.CO.UK,5310,Clothing uniforms and laundry,15.20,0.00,15.20
Regeneration and Local Services,Development and Housing,030771,Durham Advance Flexible Fund,Supplies and Services,348037,Subsistence E348,06-Nov-2019,000006696842470,COSTA COFFEE,5814,Subsistence,4.30,0.72,3.58
Children and Young Peoples Services,Head of Early Help Inclusion & Vulnerable Children.,085957,Secure Management,Supplies and Services,304403,Equipment and Materials,06-Nov-2019,000006696842474,AMZNMktplace,5999,Other consumables,8.94,1.49,7.45
Children and Young Peoples Services,Head of Early Help Inclusion & Vulnerable Children.,085957,Secure Management,Supplies and Services,304403,Equipment and Materials,06-Nov-2019,000006696842474 - 1,AMZNMktplace,5999,Other consumables,27.57,,27.57
Resources BK0010,Legal & Democratic Services,067980,Association of North East Councils (ANEC),Supplies and Services,352001,Conference Expenses,06-Nov-2019,000006696842480,EB LEARNING CURVE-SYL,7399,Conferencesseminars fees etc,16.59,0.00,16.59
Adult and Health Services,Commissioning inc Supporting People,052100,Supporting the Provider Market,Supplies and Services,338057,Services,06-Nov-2019,000006696842484,GBP WESSEX MEDICAL LTD,5047,Medical fees 338057,477.00,0.00,477.00
Adult and Health Services,Commissioning inc Supporting People,052100,Supporting the Provider Market,Supplies and Services,338057,Services,06-Nov-2019,000006696842488,GBP WESSEX MEDICAL LTD,5047,Medical fees 338057,486.60,0.00,486.60
Regeneration and Local Services,Corporate Property and Land,021324,Catering - Meadowfield,Premises,145009,Cleaning and Domestic Supplies,06-Nov-2019,000006696842528,ALLIANCE DISPOSABLES L,2842,Other cleaning and domestic costs,240.60,40.10,200.50
Children and Young Peoples Services,Head of Childrens Social Care,085352,Tow Law CU,Employees,040149,Recruitment Instruction and Training,06-Nov-2019,000006696842544,PARENTPAY E-COM R,8220,Training-all costs,96.00,0.00,96.00
Children and Young Peoples Services,Head of Education and Skills,070169,Durham SSP,Supplies and Services,384199,Miscellaneous Expenses,06-Nov-2019,000006696842558,AMZNMktplace,5999,Other hired and contracted services,41.94,0.00,41.94
Resources BK0010,Corporate Finance & Commercial Services,069800,Corporate Procurement 069800,Employees,040149,Recruitment Instruction and Training,06-Nov-2019,000006696842584,WWW.CIPS.ORG,8699,Training-all costs,78.00,0.00,78.00
Resources BK0010,People & Talent Management,010984,Training and Development,Third Party Payments,430100,Rendered by Private Contractors,06-Nov-2019,000006696842594,EB LIFTING OPERATIONS,7399,Payments to sub-contractors,30.00,0.00,30.00
Transformation and Partnerships,Business Support,069010,Administration 069010,Supplies and Services,338057,Services,06-Nov-2019,000006696842640,GBP WESSEX MEDICAL LTD,5047,Medical fees 338057,494.58,0.00,494.58
Transformation and Partnerships,Business Support,069010,Administration 069010,Supplies and Services,338057,Services,06-Nov-2019,000006696842642,GBP WESSEX MEDICAL LTD,5047,Medical fees 338057,461.40,0.00,461.40
Adult and Health Services,Head of Adults,055310,Positive Journeys (Tudhoe),Supplies and Services,384999,Miscellaneous Expenses,06-Nov-2019,000006696842646,Amazon.co.uk D70XN9035,5969,Other expenses,17.60,2.93,14.67
Adult and Health Services,Head of Adults,055310,Positive Journeys (Tudhoe),Supplies and Services,304403,Equipment and Materials,06-Nov-2019,000006696842650,AMZNMktplace,5999,Other consumables,53.68,8.95,44.73
Adult and Health Services,Head of Adults,055309,Peterlee Pathways,Supplies and Services,304403,Equipment and Materials,06-Nov-2019,000006696842666,AMZNMktplace,5999,Other consumables,13.99,2.33,11.66
Adult and Health Services,Head of Adults,055309,Peterlee Pathways,Supplies and Services,324117,Provisions E324,06-Nov-2019,000006696842670,ALDI 59 774,5411,Catering costs - provisions,3.58,0.00,3.58
Children and Young Peoples Services,Head of Education and Skills,076001,Music Service,Supplies and Services,304259,Equipment and Materials,06-Nov-2019,000006696842688,PAYPAL SONGSINBSL,5735,Equipment-purchase and rental,139.86,0.00,139.86
Regeneration and Local Services,Development and Housing,030771,Durham Advance Flexible Fund,Transport,235057,Public Transport,06-Nov-2019,000006696842720,GO NORTH EAST LIMITED,4131,Staff travelling,7.00,0.00,7.00
Regeneration and Local Services,Development and Housing,030771,Durham Advance Flexible Fund,Supplies and Services,304259,Equipment and Materials,06-Nov-2019,000006696842724,DVLA DRIVER ONLINE,9399,Equipment-purchase and rental,20.00,0.00,20.00
Children and Young Peoples Services,Head of Early Help Inclusion & Vulnerable Children.,085810,CDYJS - Interventions Team,Supplies and Services,304403,Equipment and Materials,06-Nov-2019,000006696842752,AMZNMktplace,5999,Other consumables,9.00,1.50,7.50
Transformation and Partnerships,Business Support,052986,CYPS - Locality and Operational Support,Supplies and Services,304259,Equipment and Materials,06-Nov-2019,000006696842756,STOCKTON BOROUGH COUNC,9399,Equipment-purchase and rental,11.00,0.00,11.00
Transformation and Partnerships,Business Support,052986,CYPS - Locality and Operational Support,Supplies and Services,324117,Provisions E324,06-Nov-2019,000006696842760,THORNTONS LTD,5441,Catering costs - provisions,60.00,0.00,60.00
Regeneration and Local Services,Development and Housing,031500,Housing Solutions - Core Team,Employees,040149,Recruitment Instruction and Training,06-Nov-2019,000006702939018,PREMIER INN,3811,Training-all costs,92.50,0.00,92.50
Regeneration and Local Services,Development and Housing,031500,Housing Solutions - Core Team,Supplies and Services,352001,Conference Expenses,06-Nov-2019,000006702939064,GRAINGER HOTEL,7011,Conferencesseminars fees etc,100.00,16.67,83.33
Children and Young Peoples Services,Head of Childrens Social Care,085611,Families First Stanley,Supplies and Services,338045,Services,06-Nov-2019,000006718865244,HM PASSPORT,9399,Legal expenses 338045,122.00,0.00,122.00
Transformation and Partnerships,Communications Management,060270,Communications and Marketing,Supplies and Services,304403,Equipment and Materials,07-Nov-2019,000006696841422,AMZNMktplace,5999,Other consumables,55.96,9.33,46.63
Regeneration and Local Services,Culture Sport and Tourism,054813,Gala Theatre - Technical,Supplies and Services,304999,Equipment and Materials,07-Nov-2019,000006696842086,Prime Video,5968,Misc equipment tools and materials,4.99,0.00,4.99
Regeneration and Local Services,Environmental Services,031071,Sustainability and Climate Change,Supplies and Services,348037,Subsistence E348,07-Nov-2019,000006696842658,AUBERGINE INTERNATIO,5812,Subsistence,1.44,0.00,1.44
Children and Young Peoples Services,Head of Childrens Social Care,085341,High Etherley Satelite Home,Supplies and Services,338057,Services,07-Nov-2019,000006702938162,WWW.LIMBOPRODUCTS.CO.U,5047,Medical fees 338057,14.20,0.00,14.20
Children and Young Peoples Services,Head of Childrens Social Care,085341,High Etherley Satelite Home,Supplies and Services,324117,Provisions E324,07-Nov-2019,000006702938172,TESCO STORES 6329,5411,Catering costs - provisions,150.47,0.00,150.47
Children and Young Peoples Services,Head of Education and Skills,071801,Selby Cottage Childcare Centre,Supplies and Services,304259,Equipment and Materials,07-Nov-2019,000006702938216,APPLE.COM/BILL,5735,Equipment-purchase and rental,14.99,0.00,14.99
Children and Young Peoples Services,Head of Education and Skills,071801,Selby Cottage Childcare Centre,Supplies and Services,324117,Provisions E324,07-Nov-2019,000006702938222,TESCO STORES 2278,5411,Catering costs - provisions,57.61,0.00,57.61
Regeneration and Local Services,Development and Housing,031576,B& B - Temp Accom,Supplies and Services,352001,Conference Expenses,07-Nov-2019,000006702938236,HOLIDAY INNS,3501,Conferencesseminars fees etc,109.98,0.00,109.98
Children and Young Peoples Services,Childrens Services Operational Support,052939,Signs of Safety,Supplies and Services,304403,Equipment and Materials,07-Nov-2019,000006702938246,AMZNMktplace,5999,Other consumables,1.89,0.32,1.57
Children and Young Peoples Services,Childrens Services Operational Support,052939,Signs of Safety,Supplies and Services,304403,Equipment and Materials,07-Nov-2019,000006702938254,AMZNMktplace,5999,Other consumables,184.32,30.72,153.60
Children and Young Peoples Services,Childrens Services Operational Support,052939,Signs of Safety,Supplies and Services,304403,Equipment and Materials,07-Nov-2019,000006702938254 - 1,AMZNMktplace,5999,Other consumables,1.28,,1.28
Resources BK0010,Digital and Customer Services,070110,School Services - Man Info System (MIS) Support Team,Supplies and Services,342053,Computers and Communications,07-Nov-2019,000006702938260,WPMU DEV INCSUBFEE.COM,7372,Computer software,14.85,0.00,14.85
Adult and Health Services,Commissioning inc Supporting People,052100,Supporting the Provider Market,Supplies and Services,338057,Services,07-Nov-2019,000006702938268,GBP WESSEX MEDICAL LTD,5047,Medical fees 338057,450.00,75.00,375.00
Adult and Health Services,Commissioning inc Supporting People,052100,Supporting the Provider Market,Supplies and Services,338057,Services,07-Nov-2019,000006702938274,GBP WESSEX MEDICAL LTD,5047,Medical fees 338057,234.00,39.00,195.00
Children and Young Peoples Services,Head of Childrens Social Care,085357,LAC Bespoke Placements,Supplies and Services,352001,Conference Expenses,07-Nov-2019,000006702938300,HOTEL 52,7011,Conferencesseminars fees etc,130.97,0.00,130.97
Children and Young Peoples Services,Head of Childrens Social Care,085357,LAC Bespoke Placements,Transport,235057,Public Transport,07-Nov-2019,000006702938304,HOLIDAY PAYMENT VRUK,4722,Staff travelling,950.00,0.00,950.00
Children and Young Peoples Services,Head of Childrens Social Care,085357,LAC Bespoke Placements,Transport,235057,Public Transport,07-Nov-2019,000006702938312,HOLIDAY PAYMENT VRUK,4722,Staff travelling,375.00,0.00,375.00
Regeneration and Local Services,Development and Housing,030773,CLLD North,Supplies and Services,344033,Telephones,07-Nov-2019,000006702938322,VODAFONE,4814,Telephones general-all costs,45.99,0.00,45.99
Children and Young Peoples Services,Head of Education and Skills,075021,Youth Employment Initiative,Supplies and Services,384199,Miscellaneous Expenses,07-Nov-2019,000006702938330,WWW.NORTHYORKS.GOV.UK,9399,Other hired and contracted services,11.00,0.00,11.00
Children and Young Peoples Services,Head of Education and Skills,075021,Youth Employment Initiative,Supplies and Services,384199,Miscellaneous Expenses,07-Nov-2019,000006702938336,WWW.DURHAM.GOV.UK,9399,Other hired and contracted services,11.00,0.00,11.00
Adult and Health Services,Head of Adults,055302,Durham Pathways,Supplies and Services,324117,Provisions E324,07-Nov-2019,000006702938350,SAINSBURYS SACAT 0776,5411,Catering costs - provisions,10.92,0.00,10.92
Dedicated Schools Grant BG0015,DSG High Needs Block,079050,SENSS-Sensory,Supplies and Services,304403,Equipment and Materials,07-Nov-2019,000006702938388,AMZNMktplace,5999,Other consumables,29.17,0.00,29.17
Children and Young Peoples Services,Head of Childrens Social Care,085332,Middlestone Moor CU,Supplies and Services,324117,Provisions E324,07-Nov-2019,000006702938458,TESCO STORES 2371,5411,Catering costs - provisions,147.57,0.00,147.57
Children and Young Peoples Services,Head of Childrens Social Care,085332,Middlestone Moor CU,Supplies and Services,324117,Provisions E324,07-Nov-2019,000006702938464,ASDA SUPERSTORE 4987,5411,Catering costs - provisions,27.05,0.00,27.05
Children and Young Peoples Services,Head of Childrens Social Care,085333,Coxhoe Satelite Home,Supplies and Services,324117,Provisions E324,07-Nov-2019,000006702938498,WILKO RETAIL LIMITED,5399,Catering costs - provisions,9.10,1.52,7.58
Children and Young Peoples Services,Head of Childrens Social Care,085333,Coxhoe Satelite Home,Supplies and Services,328041,Clothing uniforms and laundry E328,07-Nov-2019,000006702938502,Nike Store 00802,5655,Clothing uniforms and laundry,95.00,15.83,79.17
Children and Young Peoples Services,Head of Childrens Social Care,085333,Coxhoe Satelite Home,Supplies and Services,328041,Clothing uniforms and laundry E328,07-Nov-2019,000006702938506,THE WORKS,5310,Clothing uniforms and laundry,8.00,0.00,8.00
Regeneration and Local Services,Environmental Services,010367,C&G - South Grounds Maintenance,Supplies and Services,384999,Miscellaneous Expenses,07-Nov-2019,000006702938514,PAYPAL EBAY SURESELLE,5970,Other expenses,17.92,0.00,17.92
Regeneration and Local Services,Corporate Property and Land,021242,Catering - County Hall,Supplies and Services,324117,Provisions E324,07-Nov-2019,000006702938588,JR HOLLAND FOODSERVICE,5499,Catering costs - provisions,97.97,0.00,97.97
Regeneration and Local Services,Corporate Property and Land,021242,Catering - County Hall,Supplies and Services,324117,Provisions E324,07-Nov-2019,000006702938594,JR HOLLAND FOODSERVICE,5499,Catering costs - provisions,13.80,0.00,13.80
Regeneration and Local Services,Corporate Property and Land,021242,Catering - County Hall,Supplies and Services,324117,Provisions E324,07-Nov-2019,000006702938604,JR HOLLAND FOODSERVICE,5499,Catering costs - provisions,66.78,0.00,66.78
Regeneration and Local Services,Corporate Property and Land,021242,Catering - County Hall,Supplies and Services,324117,Provisions E324,07-Nov-2019,000006702938612,JR HOLLAND FOODSERVICE,5499,Catering costs - provisions,13.70,0.00,13.70
Children and Young Peoples Services,Head of Childrens Social Care,085333,Coxhoe Satelite Home,Supplies and Services,324117,Provisions E324,07-Nov-2019,000006702938688,ALDI 12 774,5411,Catering costs - provisions,1.14,0.19,0.95
Children and Young Peoples Services,Head of Childrens Social Care,085333,Coxhoe Satelite Home,Supplies and Services,324117,Provisions E324,07-Nov-2019,000006702938688 - 1,ALDI 12 774,5411,Catering costs - provisions,9.88,,9.88
Children and Young Peoples Services,Head of Childrens Social Care,085333,Coxhoe Satelite Home,Supplies and Services,324117,Provisions E324,07-Nov-2019,000006702938696,CO-OP GROUP 310016,5411,Catering costs - provisions,4.65,0.00,4.65
Regeneration and Local Services,Environmental Services,010900,Fleet - Meadowfield Fleet,Transport,215013,Running Costs of Vehicles,07-Nov-2019,000006702938744,DVLA VEHICLE TAX,9399,Vehicle Excise Duty (VED),262.50,0.00,262.50
Regeneration and Local Services,Environmental Services,010900,Fleet - Meadowfield Fleet,Transport,215013,Running Costs of Vehicles,07-Nov-2019,000006702938752,DVLA VEHICLE TAX,9399,Vehicle Excise Duty (VED),262.50,0.00,262.50
Regeneration and Local Services,Environmental Services,010551,Fleet - Chilton Fleet,Transport,215013,Running Costs of Vehicles,07-Nov-2019,000006702938758,DVLA VEHICLE TAX,9399,Vehicle Excise Duty (VED),262.50,0.00,262.50
Regeneration and Local Services,Environmental Services,010900,Fleet - Meadowfield Fleet,Transport,215013,Running Costs of Vehicles,07-Nov-2019,000006702938766,DVLA VEHICLE TAX,9399,Vehicle Excise Duty (VED),722.50,0.00,722.50
Regeneration and Local Services,Environmental Services,010551,Fleet - Chilton Fleet,Transport,215013,Running Costs of Vehicles,07-Nov-2019,000006702938772,DVLA VEHICLE TAX,9399,Vehicle Excise Duty (VED),262.50,0.00,262.50
Regeneration and Local Services,Environmental Services,010900,Fleet - Meadowfield Fleet,Transport,215013,Running Costs of Vehicles,07-Nov-2019,000006702938778,DVLA VEHICLE TAX,9399,Vehicle Excise Duty (VED),262.50,0.00,262.50
Regeneration and Local Services,Environmental Services,010864,Fleet - Hackworth Road Fleet,Transport,215013,Running Costs of Vehicles,07-Nov-2019,000006702938782,DVLA VEHICLE TAX,9399,Vehicle Excise Duty (VED),262.50,0.00,262.50
Regeneration and Local Services,Environmental Services,010864,Fleet - Hackworth Road Fleet,Transport,215013,Running Costs of Vehicles,07-Nov-2019,000006702938788,DVLA VEHICLE TAX,9399,Vehicle Excise Duty (VED),167.50,0.00,167.50
Regeneration and Local Services,Environmental Services,010900,Fleet - Meadowfield Fleet,Transport,215013,Running Costs of Vehicles,07-Nov-2019,000006702938796,DVLA VEHICLE TAX,9399,Vehicle Excise Duty (VED),167.50,0.00,167.50
Regeneration and Local Services,Environmental Services,010900,Fleet - Meadowfield Fleet,Transport,215013,Running Costs of Vehicles,07-Nov-2019,000006702938802,DVLA VEHICLE TAX,9399,Vehicle Excise Duty (VED),32.50,0.00,32.50
Regeneration and Local Services,Environmental Services,010551,Fleet - Chilton Fleet,Transport,215013,Running Costs of Vehicles,07-Nov-2019,000006702938810,DVLA VEHICLE TAX,9399,Vehicle Excise Duty (VED),262.50,0.00,262.50
Regeneration and Local Services,Environmental Services,010551,Fleet - Chilton Fleet,Transport,215013,Running Costs of Vehicles,07-Nov-2019,000006702938814,DVLA VEHICLE TAX,9399,Vehicle Excise Duty (VED),262.50,0.00,262.50
Regeneration and Local Services,Environmental Services,010900,Fleet - Meadowfield Fleet,Transport,215013,Running Costs of Vehicles,07-Nov-2019,000006702938820,DVLA VEHICLE TAX,9399,Vehicle Excise Duty (VED),167.50,0.00,167.50
Regeneration and Local Services,Environmental Services,010864,Fleet - Hackworth Road Fleet,Transport,215013,Running Costs of Vehicles,07-Nov-2019,000006702938826,DVLA VEHICLE TAX,9399,Vehicle Excise Duty (VED),262.50,0.00,262.50
Regeneration and Local Services,Environmental Services,010900,Fleet - Meadowfield Fleet,Transport,215013,Running Costs of Vehicles,07-Nov-2019,000006702938836,DVLA VEHICLE TAX,9399,Vehicle Excise Duty (VED),352.50,0.00,352.50
Regeneration and Local Services,Environmental Services,010864,Fleet - Hackworth Road Fleet,Transport,215013,Running Costs of Vehicles,07-Nov-2019,000006702938842,DVLA VEHICLE TAX,9399,Vehicle Excise Duty (VED),262.50,0.00,262.50
Regeneration and Local Services,Environmental Services,010864,Fleet - Hackworth Road Fleet,Transport,215013,Running Costs of Vehicles,07-Nov-2019,000006702938850,DVLA VEHICLE TAX,9399,Vehicle Excise Duty (VED),262.50,0.00,262.50
Regeneration and Local Services,Environmental Services,010900,Fleet - Meadowfield Fleet,Transport,215013,Running Costs of Vehicles,07-Nov-2019,000006702938858,DVLA VEHICLE TAX,9399,Vehicle Excise Duty (VED),262.50,0.00,262.50
Regeneration and Local Services,Environmental Services,010864,Fleet - Hackworth Road Fleet,Transport,215013,Running Costs of Vehicles,07-Nov-2019,000006702938864,DVLA VEHICLE TAX,9399,Vehicle Excise Duty (VED),262.50,0.00,262.50
Children and Young Peoples Services,Head of Education and Skills,071732,Dean Bank Childcare,Supplies and Services,324117,Provisions E324,07-Nov-2019,000006702938920,CO-OP GROUP 010503,5411,Catering costs - provisions,7.65,0.00,7.65
Regeneration and Local Services,Culture Sport and Tourism,054813,Gala Theatre - Technical,Supplies and Services,304403,Equipment and Materials,07-Nov-2019,000006702938926,AMZNMKTPLACE AMAZON.CO,5999,Other consumables,14.95,0.00,14.95
Regeneration and Local Services,Culture Sport and Tourism,054813,Gala Theatre - Technical,Supplies and Services,328041,Clothing uniforms and laundry E328,07-Nov-2019,000006702938932,CLASSICAL & CONTEMPORA,7296,Clothing uniforms and laundry,252.00,0.00,252.00
Regeneration and Local Services,Development and Housing,030771,Durham Advance Flexible Fund,Supplies and Services,324117,Provisions E324,07-Nov-2019,000006702938952,COSTA COFFEE 43039235,5814,Catering costs - provisions,5.55,0.00,5.55
Regeneration and Local Services,Development and Housing,030771,Durham Advance Flexible Fund,Transport,235057,Public Transport,07-Nov-2019,000006702938990,ARRIVA NORTH EAST,4131,Staff travelling,26.20,0.00,26.20
Children and Young Peoples Services,Head of Education and Skills,071903,Early Years Sustainability,Supplies and Services,304403,Equipment and Materials,07-Nov-2019,000006702939000,AMZNMktplace,5999,Other consumables,14.06,0.00,14.06
Regeneration and Local Services,Development and Housing,030771,Durham Advance Flexible Fund,Supplies and Services,348037,Subsistence E348,07-Nov-2019,000006702939052,COSTA COFFEE 43038640,5814,Subsistence,5.55,0.00,5.55
Children and Young Peoples Services,Head of Early Help Inclusion & Vulnerable Children.,088107,Ferryhill & Newton Aycliffe 0-19 Community Family Hub,Supplies and Services,304403,Equipment and Materials,07-Nov-2019,000006702939068,AMZNMktplace,5999,Other consumables,110.89,0.00,110.89
Children and Young Peoples Services,Head of Early Help Inclusion & Vulnerable Children.,085957,Secure Management,Supplies and Services,304259,Equipment and Materials,07-Nov-2019,000006702939078,JD SPORTS INTERNET,5941,Equipment-purchase and rental,-22.00,0.00,-22.00
Regeneration and Local Services,Culture Sport and Tourism,054813,Gala Theatre - Technical,Supplies and Services,324117,Provisions E324,07-Nov-2019,000006702939082,TESCO STORES 3468,5411,Catering costs - provisions,38.58,0.00,38.58
Regeneration and Local Services,Culture Sport and Tourism,054813,Gala Theatre - Technical,Supplies and Services,304259,Equipment and Materials,07-Nov-2019,000006702939086,CURRYS ONLINE,5732,Equipment-purchase and rental,487.30,0.00,487.30
Regeneration and Local Services,Culture Sport and Tourism,054813,Gala Theatre - Technical,Supplies and Services,304259,Equipment and Materials,07-Nov-2019,000006702939088,CURRYS ONLINE,5732,Equipment-purchase and rental,382.95,0.00,382.95
Regeneration and Local Services,Culture Sport and Tourism,054813,Gala Theatre - Technical,Supplies and Services,328041,Clothing uniforms and laundry E328,07-Nov-2019,000006702939096,ARGOS RETAIL GROUP,5310,Clothing uniforms and laundry,339.99,0.00,339.99
Transformation and Partnerships,Business Support,052986,CYPS - Locality and Operational Support,Supplies and Services,304403,Equipment and Materials,07-Nov-2019,000006702939104,SP WINSTONS WISH,5734,Other consumables,31.44,5.24,26.20
Transformation and Partnerships,Business Support,052986,CYPS - Locality and Operational Support,Supplies and Services,304403,Equipment and Materials,07-Nov-2019,000006702939104 - 1,SP WINSTONS WISH,5734,Other consumables,182.11,,182.11
Transformation and Partnerships,Business Support,052986,CYPS - Locality and Operational Support,Supplies and Services,304403,Equipment and Materials,07-Nov-2019,000006702939106,CITY TAXIS,5734,Other consumables,75.00,0.00,75.00
Regeneration and Local Services,Environmental Services,010367,C&G - South Grounds Maintenance,Supplies and Services,304221,Equipment and Materials,07-Nov-2019,000006702939108,SCREWFIX PETERLEE,5211,Direct materials,19.52,3.25,16.27
Regeneration and Local Services,Environmental Services,011060,C&G - Hardwick Park Catering,Supplies and Services,324117,Provisions E324,07-Nov-2019,000006702939120,JR HOLLAND FOODSERVICE,5499,Catering costs - provisions,25.43,4.24,21.19
Regeneration and Local Services,Culture Sport and Tourism,054815,Gala Theatre Stage School,Supplies and Services,384999,Miscellaneous Expenses,07-Nov-2019,000006702939148,NEXT DIRECTORY,5965,Other expenses,100.00,0.00,100.00
Regeneration and Local Services,Culture Sport and Tourism,054815,Gala Theatre Stage School,Supplies and Services,384999,Miscellaneous Expenses,07-Nov-2019,000006702939152,NEXT DIRECTORY,5965,Other expenses,28.00,0.00,28.00
Regeneration and Local Services,Corporate Property and Land,010525,Catering - Green Lane,Premises,145009,Cleaning and Domestic Supplies,07-Nov-2019,000006702939192,ALLIANCE DISPOSABLES L,2842,Other cleaning and domestic costs,11.48,1.91,9.57
Regeneration and Local Services,Corporate Property and Land,010525,Catering - Green Lane,Supplies and Services,324117,Provisions E324,07-Nov-2019,000006702939198,JR HOLLAND FOODSERVICE,5499,Catering costs - provisions,52.00,0.00,52.00
Regeneration and Local Services,Corporate Property and Land,010525,Catering - Green Lane,Supplies and Services,324117,Provisions E324,07-Nov-2019,000006702939200,JR HOLLAND FOODSERVICE,5499,Catering costs - provisions,8.30,0.00,8.30
Regeneration and Local Services,Culture Sport and Tourism,011215,Museums Heritage & Collections 011215,Supplies and Services,304403,Equipment and Materials,07-Nov-2019,000006702939204,WWW.EFOAM.CO.UK,7399,Other consumables,350.96,58.49,292.47
Regeneration and Local Services,Environmental Services,010367,C&G - South Grounds Maintenance,Supplies and Services,304999,Equipment and Materials,07-Nov-2019,000006702939276,NEW ROW FARM NURSERIES,780,Misc equipment tools and materials,236.20,39.37,196.83
Children and Young Peoples Services,Head of Childrens Social Care,085333,Coxhoe Satelite Home,Supplies and Services,324117,Provisions E324,07-Nov-2019,000006702939310,E H BOOTH & CO,5411,Catering costs - provisions,10.80,0.00,10.80
Children and Young Peoples Services,Head of Childrens Social Care,085342,9 Cedar Drive Aycliffe,Supplies and Services,304999,Equipment and Materials,07-Nov-2019,000006702939330,HOME BARGAINS,5251,Misc equipment tools and materials,11.05,0.00,11.05
Regeneration and Local Services,Culture Sport and Tourism,011214,Volunteer & Skills 011214,Supplies and Services,328041,Clothing uniforms and laundry E328,07-Nov-2019,000006702939346,ARGOS,5310,Clothing uniforms and laundry,15.98,0.00,15.98
Children and Young Peoples Services,Head of Childrens Social Care,085352,Tow Law CU,Supplies and Services,324117,Provisions E324,07-Nov-2019,000006702939364,ASDA STORES,5411,Catering costs - provisions,168.49,0.00,168.49
Regeneration and Local Services,Corporate Property and Land,030691,Catering - Durham Dales Centre,Supplies and Services,324117,Provisions E324,07-Nov-2019,000006702939372,JR HOLLAND FOODSERVICE,5499,Catering costs - provisions,80.05,0.00,80.05
Children and Young Peoples Services,Head of Childrens Social Care,085332,Middlestone Moor CU,Supplies and Services,304221,Equipment and Materials,07-Nov-2019,000006702939380,PAYPAL EBAY KD AND JA,5261,Direct materials,8.79,0.00,8.79
Children and Young Peoples Services,Head of Childrens Social Care,085332,Middlestone Moor CU,Supplies and Services,328041,Clothing uniforms and laundry E328,07-Nov-2019,000006702939384,PAYPAL EBAY YAPCHUNHO,5611,Clothing uniforms and laundry,8.88,0.00,8.88
Regeneration and Local Services,Development and Housing,031576,B& B - Temp Accom,Supplies and Services,364320,Grants to Voluntary Organisations,07-Nov-2019,000006702939408,HOTEL 52,7011,Accommodation assistance,354.95,0.00,354.95
Adult and Health Services,Head of Adults,055643,Hawthorn House LD Respite Unit,Supplies and Services,324117,Provisions E324,07-Nov-2019,000006702939414,JR HOLLAND FOODSERVICE,5499,Catering costs - provisions,10.55,0.00,10.55
Regeneration and Local Services,Environmental Services,031200,North Pennines Core,Supplies and Services,348037,Subsistence E348,07-Nov-2019,000006702939422,RISTOBAR S A S DI A,5813,Subsistence,16.36,0.00,16.36
Regeneration and Local Services,Environmental Services,031200,North Pennines Core,Transport,235057,Public Transport,07-Nov-2019,000006702939428,ORBETELLO-MONTE ARGENT,4112,Staff travelling,8.44,0.00,8.44
Regeneration and Local Services,Environmental Services,031200,North Pennines Core,Transport,235057,Public Transport,07-Nov-2019,000006702939432,ATAC SPA - AGENZIA PER,4131,Staff travelling,6.06,0.00,6.06
Resources BK0010,Digital and Customer Services,065335,School Services - Implementations,Supplies and Services,304639,Equipment and Materials,07-Nov-2019,000006702939460,AMZNMktplace,5999,Technicians-supplies,33.75,5.64,28.11
Resources BK0010,Digital and Customer Services,065335,School Services - Implementations,Supplies and Services,304259,Equipment and Materials,07-Nov-2019,000006702939462,WWW.TOOLSTATION.COM,5251,Equipment-purchase and rental,46.88,7.81,39.07
Resources BK0010,Digital and Customer Services,065335,School Services - Implementations,Supplies and Services,304639,Equipment and Materials,07-Nov-2019,000006702939466,REPLACEBASE,5732,Technicians-supplies,171.82,28.64,143.18
Resources BK0010,Digital and Customer Services,065335,School Services - Implementations,Supplies and Services,304639,Equipment and Materials,07-Nov-2019,000006702939472,HSO HSAIFIXIT GMBH.STU,7622,Technicians-supplies,53.33,0.00,53.33
Regeneration and Local Services,Development and Housing,030771,Durham Advance Flexible Fund,Supplies and Services,348037,Subsistence E348,07-Nov-2019,000006702939504,COSTA COFFEE,5814,Subsistence,2.52,0.42,2.10
Regeneration and Local Services,Development and Housing,030771,Durham Advance Flexible Fund,Supplies and Services,348037,Subsistence E348,07-Nov-2019,000006702939504 - 1,COSTA COFFEE,5814,Subsistence,0.03,,0.03
Regeneration and Local Services,Development and Housing,030771,Durham Advance Flexible Fund,Supplies and Services,348037,Subsistence E348,07-Nov-2019,000006702939512,COSTA COFFEE,5814,Subsistence,2.52,0.42,2.10
Regeneration and Local Services,Development and Housing,030771,Durham Advance Flexible Fund,Supplies and Services,348037,Subsistence E348,07-Nov-2019,000006702939512 - 1,COSTA COFFEE,5814,Subsistence,0.03,,0.03
Adult and Health Services,Commissioning inc Supporting People,052100,Supporting the Provider Market,Supplies and Services,338057,Services,07-Nov-2019,000006702939524,GBP WESSEX MEDICAL LTD,5047,Medical fees 338057,450.00,0.00,450.00
Transformation and Partnerships,Business Support,052986,CYPS - Locality and Operational Support,Supplies and Services,328041,Clothing uniforms and laundry E328,07-Nov-2019,000006702939530,WWW.ARGOS.CO.UK,5310,Clothing uniforms and laundry,229.99,0.00,229.99
Regeneration and Local Services,Corporate Property and Land,021324,Catering - Meadowfield,Supplies and Services,324117,Provisions E324,07-Nov-2019,000006702939544,JR HOLLAND FOODSERVICE,5499,Catering costs - provisions,33.47,0.00,33.47
Regeneration and Local Services,Corporate Property and Land,021324,Catering - Meadowfield,Supplies and Services,324117,Provisions E324,07-Nov-2019,000006702939550,JR HOLLAND FOODSERVICE,5499,Catering costs - provisions,10.35,0.00,10.35
Regeneration and Local Services,Environmental Services,010301,C&G - North Grounds Maintenance,Supplies and Services,304221,Equipment and Materials,07-Nov-2019,000006702939572,ARCO LTD,5085,Direct materials,87.54,0.00,87.54
Children and Young Peoples Services,Head of Childrens Social Care,085333,Coxhoe Satelite Home,Supplies and Services,324117,Provisions E324,07-Nov-2019,000006702939586,TESCO STORES 2916,5411,Catering costs - provisions,166.73,0.00,166.73
Children and Young Peoples Services,Head of Childrens Social Care,085333,Coxhoe Satelite Home,Supplies and Services,324117,Provisions E324,07-Nov-2019,000006702939590,TESCO STORES 2916,5411,Catering costs - provisions,16.60,0.00,16.60
Children and Young Peoples Services,Head of Education and Skills,070169,Durham SSP,Supplies and Services,384199,Miscellaneous Expenses,07-Nov-2019,000006702939600,Herd hire Durham,7394,Other hired and contracted services,275.00,0.00,275.00
Regeneration and Local Services,Development and Housing,030771,Durham Advance Flexible Fund,Employees,040149,Recruitment Instruction and Training,07-Nov-2019,000006702939632,HEALTH & SAFETY TRAINI,8299,Training-all costs,210.00,35.00,175.00
Children and Young Peoples Services,Head of Childrens Social Care,085332,Middlestone Moor CU,Supplies and Services,304403,Equipment and Materials,07-Nov-2019,000006702939638,WWW.ELITEINDUSTRIAL.CO,5999,Other consumables,7.93,0.00,7.93
Regeneration and Local Services,Development and Housing,031500,Housing Solutions - Core Team,Employees,040149,Recruitment Instruction and Training,07-Nov-2019,000006702939658,CHOICES ESTATE AGENTS,8999,Training-all costs,57.69,0.00,57.69
Regeneration and Local Services,Development and Housing,031500,Housing Solutions - Core Team,Supplies and Services,352001,Conference Expenses,07-Nov-2019,000006702939668,HOLIDAY INNS,3501,Conferencesseminars fees etc,219.96,0.00,219.96
Transformation and Partnerships,Business Support,069010,Administration 069010,Supplies and Services,384999,Miscellaneous Expenses,07-Nov-2019,000006702939722,Amazon.co.uk 5J6ZM2WU5,5969,Other expenses,85.00,0.00,85.00
Regeneration and Local Services,Development and Housing,030771,Durham Advance Flexible Fund,Transport,235057,Public Transport,07-Nov-2019,000006702939738,GO NORTH EAST LIMITED,4131,Staff travelling,7.00,0.00,7.00
Regeneration and Local Services,Environmental Services,031071,Sustainability and Climate Change,Supplies and Services,352001,Conference Expenses,07-Nov-2019,000006702939746,PIETROASA SA,7011,Conferencesseminars fees etc,176.37,0.00,176.37
Regeneration and Local Services,Environmental Services,031071,Sustainability and Climate Change,Supplies and Services,348037,Subsistence E348,07-Nov-2019,000006702939756,HANU LUI MANUC 2,5812,Subsistence,44.68,0.00,44.68
Regeneration and Local Services,Environmental Services,031217,North Pennines - Cold Blooded & Spineless,Supplies and Services,348037,Subsistence E348,07-Nov-2019,000006702939772,NUMBER 10,5812,Subsistence,2.65,0.00,2.65
Regeneration and Local Services,Environmental Services,031217,North Pennines - Cold Blooded & Spineless,Supplies and Services,348037,Subsistence E348,07-Nov-2019,000006702939778,NUMBER 10,5812,Subsistence,26.20,0.00,26.20
Children and Young Peoples Services,Head of Education and Skills,076001,Music Service,Supplies and Services,304221,Equipment and Materials,07-Nov-2019,000006702939812,TROPHYSTORE.CO.UK LIMI,1799,Direct materials,27.47,4.58,22.89
Regeneration and Local Services,Environmental Services,031200,North Pennines Core,Supplies and Services,304221,Equipment and Materials,07-Nov-2019,000006702939842,TYNEVALLEY NURSERY,5261,Direct materials,166.10,0.00,166.10
Children and Young Peoples Services,Head of Childrens Social Care,085612,Families First Consett,Supplies and Services,304403,Equipment and Materials,07-Nov-2019,000006710350148,DIGITAL RIVER,5734,Other consumables,31.18,5.20,25.98
Regeneration and Local Services,Environmental Services,010367,C&G - South Grounds Maintenance,Supplies and Services,304221,Equipment and Materials,07-Nov-2019,000006710350388,WWW.ARCO.CO.UK,5085,Direct materials,417.60,0.00,417.60
Regeneration and Local Services,Corporate Property and Land,021242,Catering - County Hall,Supplies and Services,324117,Provisions E324,07-Nov-2019,000006710350430,BATLEYS PERTH,5300,Catering costs - provisions,644.52,107.42,537.10
Regeneration and Local Services,Corporate Property and Land,021242,Catering - County Hall,Supplies and Services,324117,Provisions E324,07-Nov-2019,000006710350430 - 1,BATLEYS PERTH,5300,Catering costs - provisions,222.67,,222.67
Regeneration and Local Services,Culture Sport and Tourism,054813,Gala Theatre - Technical,Supplies and Services,304403,Equipment and Materials,07-Nov-2019,000006710350798,AMZNMKTPLACE AMAZON.CO,5999,Other consumables,23.99,0.00,23.99
Regeneration and Local Services,Environmental Services,011060,C&G - Hardwick Park Catering,Supplies and Services,324117,Provisions E324,07-Nov-2019,000006710351034,BATLEYS PERTH,5300,Catering costs - provisions,104.04,17.34,86.70
Regeneration and Local Services,Environmental Services,011060,C&G - Hardwick Park Catering,Supplies and Services,324117,Provisions E324,07-Nov-2019,000006710351034 - 1,BATLEYS PERTH,5300,Catering costs - provisions,107.64,,107.64
Regeneration and Local Services,Development and Housing,031576,B& B - Temp Accom,Supplies and Services,364320,Grants to Voluntary Organisations,07-Nov-2019,000006710351508,PREMIER INN,3811,Accommodation assistance,253.00,42.17,210.83
Regeneration and Local Services,Development and Housing,031576,B& B - Temp Accom,Supplies and Services,364320,Grants to Voluntary Organisations,07-Nov-2019,000006710351516,PREMIER INN,3811,Accommodation assistance,253.00,0.00,253.00
Regeneration and Local Services,Environmental Services,031200,North Pennines Core,Supplies and Services,352001,Conference Expenses,07-Nov-2019,000006710351534,HOTEL NOVA DOMUS,7011,Conferencesseminars fees etc,5.19,0.00,5.19
Regeneration and Local Services,Environmental Services,031200,North Pennines Core,Supplies and Services,352001,Conference Expenses,07-Nov-2019,000006710351538,PODERNOVO DI MONTICIAN,7011,Conferencesseminars fees etc,58.01,0.00,58.01
Resources BK0010,Digital and Customer Services,065335,School Services - Implementations,Supplies and Services,304639,Equipment and Materials,07-Nov-2019,000006710351628,ALIEXPRESS,5311,Technicians-supplies,3.42,0.00,3.42
Resources BK0010,Digital and Customer Services,070110,School Services - Man Info System (MIS) Support Team,Supplies and Services,342033,Computers and Communications,08-Nov-2019,000006702938278,WPMU DEV INCSUBFEE.COM,7372,Computer hardware,0.41,0.00,0.41
Regeneration and Local Services,Environmental Services,031200,North Pennines Core,Supplies and Services,348037,Subsistence E348,08-Nov-2019,000006702939436,RISTOBAR S A S DI A,5813,Subsistence,0.45,0.00,0.45
Regeneration and Local Services,Environmental Services,031200,North Pennines Core,Transport,235057,Public Transport,08-Nov-2019,000006702939438,ORBETELLO-MONTE ARGENT,4112,Staff travelling,0.23,0.00,0.23
Regeneration and Local Services,Environmental Services,031200,North Pennines Core,Transport,235057,Public Transport,08-Nov-2019,000006702939442,ATAC SPA - AGENZIA PER,4131,Staff travelling,0.17,0.00,0.17
Resources BK0010,Digital and Customer Services,065335,School Services - Implementations,Supplies and Services,304639,Equipment and Materials,08-Nov-2019,000006702939476,HSO HSAIFIXIT GMBH.STU,7622,Technicians-supplies,1.47,0.00,1.47
Regeneration and Local Services,Environmental Services,031071,Sustainability and Climate Change,Supplies and Services,352001,Conference Expenses,08-Nov-2019,000006702939760,PIETROASA SA,7011,Conferencesseminars fees etc,4.85,0.00,4.85
Regeneration and Local Services,Environmental Services,031071,Sustainability and Climate Change,Supplies and Services,348037,Subsistence E348,08-Nov-2019,000006702939762,HANU LUI MANUC 2,5812,Subsistence,1.23,0.00,1.23
Children and Young Peoples Services,Head of Childrens Social Care,085611,Families First Stanley,Supplies and Services,338045,Services,08-Nov-2019,000006710350068,GATESHEAD COUNCIL MOTO,9399,Legal expenses 338045,70.00,0.00,70.00
Children and Young Peoples Services,Head of Childrens Social Care,085611,Families First Stanley,Supplies and Services,332047,Printing Stationery and Gen Off Exps,08-Nov-2019,000006710350076,AMZNMktplace,5999,Stationery,24.94,0.00,24.94
Children and Young Peoples Services,Head of Education and Skills,071801,Selby Cottage Childcare Centre,Supplies and Services,304999,Equipment and Materials,08-Nov-2019,000006710350098,Amazon Prime CD21R9545,5968,Misc equipment tools and materials,7.99,0.00,7.99
Regeneration and Local Services,Development and Housing,031576,B& B - Temp Accom,Employees,040149,Recruitment Instruction and Training,08-Nov-2019,000006710350136,PREMIER INN,3811,Training-all costs,255.00,0.00,255.00
Dedicated Schools Grant BG0015,DSG High Needs Block,077100,Special Equipment/Access Technology,Supplies and Services,304259,Equipment and Materials,08-Nov-2019,000006710350144,APPLE.COM/UK,5732,Equipment-purchase and rental,50.00,0.00,50.00
Children and Young Peoples Services,Head of Education and Skills,070264,EDC Premises,Supplies and Services,324117,Provisions E324,08-Nov-2019,000006710350156,HOPWELLS LTD,5811,Catering costs - provisions,263.95,0.00,263.95
Children and Young Peoples Services,Head of Childrens Social Care,085357,LAC Bespoke Placements,Transport,235057,Public Transport,08-Nov-2019,000006710350166,HOLIDAY PAYMENT VRUK,4722,Staff travelling,479.00,0.00,479.00
Children and Young Peoples Services,Head of Childrens Social Care,085357,LAC Bespoke Placements,Transport,235057,Public Transport,08-Nov-2019,000006710350172,HOLIDAY PAYMENT VRUK,4722,Staff travelling,-375.00,0.00,-375.00
Regeneration and Local Services,Development and Housing,030773,CLLD North,Transport,235057,Public Transport,08-Nov-2019,000006710350186,GO NORTH EAST LIMITED,4131,Staff travelling,75.00,0.00,75.00
Regeneration and Local Services,Development and Housing,030773,CLLD North,Supplies and Services,304259,Equipment and Materials,08-Nov-2019,000006710350192,M and M Direct Ltd,5941,Equipment-purchase and rental,159.93,0.00,159.93
Regeneration and Local Services,Development and Housing,031500,Housing Solutions - Core Team,Supplies and Services,364320,Grants to Voluntary Organisations,08-Nov-2019,000006710350196,HOTEL 52,7011,Accommodation assistance,200.97,0.00,200.97
Adult and Health Services,Head of Adults,055302,Durham Pathways,Supplies and Services,304403,Equipment and Materials,08-Nov-2019,000006710350204,AMZNMKTPLACE AMAZON.CO,5999,Other consumables,9.99,1.67,8.32
Regeneration and Local Services,Culture Sport and Tourism,030705,Visit County Durham 030705,Employees,040149,Recruitment Instruction and Training,08-Nov-2019,000006710350216,SUSSEX BUSINESS SCHOOL,8220,Training-all costs,404.00,0.00,404.00
Regeneration and Local Services,Culture Sport and Tourism,011263,Louisa Centre 011263,Supplies and Services,324117,Provisions E324,08-Nov-2019,000006710350288,JR HOLLAND FOODSERVICE,5499,Catering costs - provisions,25.35,0.00,25.35
Regeneration and Local Services,Corporate Property and Land,021242,Catering - County Hall,Supplies and Services,324117,Provisions E324,08-Nov-2019,000006710350452,HOPWELLS LTD,5811,Catering costs - provisions,297.03,0.00,297.03
Regeneration and Local Services,Corporate Property and Land,021242,Catering - County Hall,Supplies and Services,324117,Provisions E324,08-Nov-2019,000006710350460,HOPWELLS LTD,5811,Catering costs - provisions,200.68,0.00,200.68
Regeneration and Local Services,Corporate Property and Land,021242,Catering - County Hall,Supplies and Services,324117,Provisions E324,08-Nov-2019,000006710350466,HOPWELLS LTD,5811,Catering costs - provisions,352.46,0.00,352.46
Regeneration and Local Services,Corporate Property and Land,021242,Catering - County Hall,Supplies and Services,324117,Provisions E324,08-Nov-2019,000006710350470,JR HOLLAND FOODSERVICE,5499,Catering costs - provisions,6.94,0.00,6.94
Regeneration and Local Services,Corporate Property and Land,021242,Catering - County Hall,Supplies and Services,324117,Provisions E324,08-Nov-2019,000006710350474,JR HOLLAND FOODSERVICE,5499,Catering costs - provisions,142.79,0.00,142.79
Children and Young Peoples Services,Head of Childrens Social Care,085332,Middlestone Moor CU,Supplies and Services,312009,Newspapers books and periodicals E312,08-Nov-2019,000006710350506,WH SMITH,5994,Newspapers books and periodicals,12.04,0.00,12.04
Children and Young Peoples Services,Head of Childrens Social Care,085332,Middlestone Moor CU,Supplies and Services,348037,Subsistence E348,08-Nov-2019,000006710350510,HMSHOST MANCHESTER AIR,5812,Subsistence,6.50,0.00,6.50
Regeneration and Local Services,Environmental Services,010367,C&G - South Grounds Maintenance,Supplies and Services,304221,Equipment and Materials,08-Nov-2019,000006710350540,BTL TIMBER AND HARDWAR,5099,Direct materials,8.04,1.34,6.70
Regeneration and Local Services,Environmental Services,010367,C&G - South Grounds Maintenance,Supplies and Services,304221,Equipment and Materials,08-Nov-2019,000006710350546,BTL TIMBER AND HARDWAR,5099,Direct materials,39.34,6.56,32.78
Children and Young Peoples Services,Head of Childrens Social Care,085511,Emergency Duty Team,Supplies and Services,324117,Provisions E324,08-Nov-2019,000006710350582,TESCO STORES 4358,5411,Catering costs - provisions,37.63,0.00,37.63
Regeneration and Local Services,Development and Housing,030773,CLLD North,Transport,235057,Public Transport,08-Nov-2019,000006710350628,ARRIVA NORTH EAST,4131,Staff travelling,15.00,0.00,15.00
Regeneration and Local Services,Development and Housing,030773,CLLD North,Transport,235057,Public Transport,08-Nov-2019,000006710350634,ARRIVA NORTH EAST,4131,Staff travelling,32.70,0.00,32.70
Children and Young Peoples Services,Head of Childrens Social Care,085361,LAC & Permanence Team 1,Supplies and Services,384871,Miscellaneous Expenses,08-Nov-2019,000006710350638,WWW.INFINITEAIR.CO.UK,7991,Training-other activities,23.85,0.00,23.85
Children and Young Peoples Services,Head of Childrens Social Care,085333,Coxhoe Satelite Home,Supplies and Services,324117,Provisions E324,08-Nov-2019,000006710350654,CO-OP GROUP 310016,5411,Catering costs - provisions,2.07,0.00,2.07
Children and Young Peoples Services,Head of Childrens Social Care,085342,9 Cedar Drive Aycliffe,Supplies and Services,328041,Clothing uniforms and laundry E328,08-Nov-2019,000006710350742,adidasprohub.com,5655,Clothing uniforms and laundry,112.95,0.00,112.95
Children and Young Peoples Services,Head of Education and Skills,071732,Dean Bank Childcare,Supplies and Services,328041,Clothing uniforms and laundry E328,08-Nov-2019,000006710350784,ORIGINAL FACTORY S,5311,Clothing uniforms and laundry,18.50,0.00,18.50
Children and Young Peoples Services,Head of Education and Skills,071732,Dean Bank Childcare,Supplies and Services,328041,Clothing uniforms and laundry E328,08-Nov-2019,000006710350796,B & M RETAIL,5310,Clothing uniforms and laundry,25.96,0.00,25.96
Regeneration and Local Services,Culture Sport and Tourism,054813,Gala Theatre - Technical,Supplies and Services,328041,Clothing uniforms and laundry E328,08-Nov-2019,000006710350802,ARGOS LTD,5310,Clothing uniforms and laundry,433.98,0.00,433.98
Adult and Health Services,Head of Adults,055807,Newton Aycliffe Pathways,Third Party Payments,474101,Purchase of Care,08-Nov-2019,000006710350830,PIONEERING CARE PARTNE,8050,Nursing care payments,18.00,0.00,18.00
Children and Young Peoples Services,Head of Childrens Social Care,085334,West Rainton Satelite Home,Supplies and Services,304999,Equipment and Materials,08-Nov-2019,000006710350862,TOOLSTATION LTD,5251,Misc equipment tools and materials,13.13,2.19,10.94
Children and Young Peoples Services,Head of Childrens Social Care,085332,Middlestone Moor CU,Supplies and Services,304221,Equipment and Materials,08-Nov-2019,000006710350880,HOMEPLAN DIY,5211,Direct materials,14.85,0.00,14.85
Children and Young Peoples Services,Head of Childrens Social Care,085332,Middlestone Moor CU,Supplies and Services,324117,Provisions E324,08-Nov-2019,000006710350884,iZ Thames fruit a,5499,Catering costs - provisions,12.50,0.00,12.50
Regeneration and Local Services,Development and Housing,030771,Durham Advance Flexible Fund,Transport,235057,Public Transport,08-Nov-2019,000006710350900,GO NORTH EAST LIMITED,4131,Staff travelling,24.00,0.00,24.00
Regeneration and Local Services,Development and Housing,030771,Durham Advance Flexible Fund,Supplies and Services,324117,Provisions E324,08-Nov-2019,000006710350904,ASDA STORES,5411,Catering costs - provisions,4.30,0.72,3.58
Regeneration and Local Services,Business Durham CL0850,030674,Business Services General,Supplies and Services,304259,Equipment and Materials,08-Nov-2019,000006710350960,CANVA 02502-8826960,7221,Equipment-purchase and rental,107.88,0.00,107.88
Children and Young Peoples Services,Head of Early Help Inclusion & Vulnerable Children.,085957,Secure Management,Supplies and Services,324117,Provisions E324,08-Nov-2019,000006710351006,TESCO STORES 6329,5411,Catering costs - provisions,112.92,0.00,112.92
Regeneration and Local Services,Environmental Services,011060,C&G - Hardwick Park Catering,Supplies and Services,324117,Provisions E324,08-Nov-2019,000006710351040,HOPWELLS LTD,5811,Catering costs - provisions,73.67,0.00,73.67
Regeneration and Local Services,Environmental Services,011060,C&G - Hardwick Park Catering,Supplies and Services,324117,Provisions E324,08-Nov-2019,000006710351046,JR HOLLAND FOODSERVICE,5499,Catering costs - provisions,36.85,0.00,36.85
Regeneration and Local Services,Corporate Property and Land,021234,Catering - Locomotion,Supplies and Services,324117,Provisions E324,08-Nov-2019,000006710351088,HOPWELLS LTD,5811,Catering costs - provisions,22.32,0.00,22.32
Regeneration and Local Services,Corporate Property and Land,021234,Catering - Locomotion,Supplies and Services,324117,Provisions E324,08-Nov-2019,000006710351094,HOPWELLS LTD,5811,Catering costs - provisions,66.88,0.00,66.88
Regeneration and Local Services,Corporate Property and Land,021234,Catering - Locomotion,Supplies and Services,324117,Provisions E324,08-Nov-2019,000006710351100,JR HOLLAND FOODSERVICE,5499,Catering costs - provisions,35.56,0.00,35.56
Regeneration and Local Services,Corporate Property and Land,010525,Catering - Green Lane,Supplies and Services,324117,Provisions E324,08-Nov-2019,000006710351124,HOPWELLS LTD,5811,Catering costs - provisions,122.91,0.00,122.91
Children and Young Peoples Services,Head of Early Help Inclusion & Vulnerable Children.,088108,Spennymoor & Shildon 0-19 Targeted Family Support,Supplies and Services,324117,Provisions E324,08-Nov-2019,000006710351206,ASDA STORES,5411,Catering costs - provisions,12.10,0.00,12.10
Regeneration and Local Services,Development and Housing,031576,B& B - Temp Accom,Supplies and Services,364320,Grants to Voluntary Organisations,08-Nov-2019,000006710351250,GRAINGER HOTEL,7011,Accommodation assistance,250.00,41.67,208.33
Regeneration and Local Services,Business Durham CL0850,030717,Business Services,Supplies and Services,304259,Equipment and Materials,08-Nov-2019,000006710351330,CURRYS ONLINE,5732,Equipment-purchase and rental,338.99,56.50,282.49
Children and Young Peoples Services,Head of Childrens Social Care,085333,Coxhoe Satelite Home,Supplies and Services,324117,Provisions E324,08-Nov-2019,000006710351350,ASDA SUPERSTORE 4987,5411,Catering costs - provisions,66.44,0.00,66.44
Regeneration and Local Services,Environmental Services,010367,C&G - South Grounds Maintenance,Supplies and Services,304221,Equipment and Materials,08-Nov-2019,000006710351362,LADDERS999.CO.UK,5211,Direct materials,242.20,40.37,201.83
Children and Young Peoples Services,Head of Childrens Social Care,085342,9 Cedar Drive Aycliffe,Supplies and Services,348037,Subsistence E348,08-Nov-2019,000006710351374,The Discovery,5812,Subsistence,3.05,0.00,3.05
Children and Young Peoples Services,Head of Childrens Social Care,085342,9 Cedar Drive Aycliffe,Supplies and Services,348037,Subsistence E348,08-Nov-2019,000006710351378,The Discovery,5812,Subsistence,12.57,0.00,12.57
Regeneration and Local Services,Corporate Property and Land,030691,Catering - Durham Dales Centre,Supplies and Services,324117,Provisions E324,08-Nov-2019,000006710351436,HOPWELLS LTD,5811,Catering costs - provisions,216.13,0.00,216.13
Regeneration and Local Services,Environmental Services,031200,North Pennines Core,Supplies and Services,348037,Subsistence E348,08-Nov-2019,000006710351540,Bibbo di Mare,5812,Subsistence,4.75,0.00,4.75
Regeneration and Local Services,Environmental Services,031200,North Pennines Core,Transport,235057,Public Transport,08-Nov-2019,000006710351544,ROMA TERMINI SELF SERV,4112,Staff travelling,12.08,0.00,12.08
Regeneration and Local Services,Environmental Services,031200,North Pennines Core,Transport,235057,Public Transport,08-Nov-2019,000006710351548,ARROW EMA,4121,Staff travelling,67.88,0.00,67.88
Children and Young Peoples Services,Head of Education and Skills,078100,Curric and Professional Development 078100,Supplies and Services,304403,Equipment and Materials,08-Nov-2019,000006710351568,AMZNMKTPLACE AMAZON.CO,5999,Other consumables,8.95,1.49,7.46
Children and Young Peoples Services,Head of Childrens Social Care,085633,Families First Chester-Le-Street,Supplies and Services,338045,Services,08-Nov-2019,000006710351598,Durham County CNCL,9399,Legal expenses 338045,33.00,0.00,33.00
Resources BK0010,Digital and Customer Services,065335,School Services - Implementations,Supplies and Services,304639,Equipment and Materials,08-Nov-2019,000006710351624,AMZNMktplace,5999,Technicians-supplies,6.99,1.17,5.82
Regeneration and Local Services,Corporate Property and Land,021324,Catering - Meadowfield,Supplies and Services,324117,Provisions E324,08-Nov-2019,000006710351712,HOPWELLS LTD,5811,Catering costs - provisions,90.73,0.00,90.73
Regeneration and Local Services,Corporate Property and Land,021324,Catering - Meadowfield,Premises,145009,Cleaning and Domestic Supplies,08-Nov-2019,000006710351724,ALLIANCE DISPOSABLES L,2842,Other cleaning and domestic costs,11.48,1.91,9.57
Children and Young Peoples Services,Head of Childrens Social Care,085332,Middlestone Moor CU,Supplies and Services,348037,Subsistence E348,08-Nov-2019,000006710351740,HMSHOST MANCHESTER AIR,5812,Subsistence,4.39,0.73,3.66
Children and Young Peoples Services,Head of Childrens Social Care,085332,Middlestone Moor CU,Supplies and Services,348037,Subsistence E348,08-Nov-2019,000006710351744,HMSHOST MANCHESTER AIR,5812,Subsistence,38.43,6.41,32.02
Children and Young Peoples Services,Head of Childrens Social Care,085332,Middlestone Moor CU,Supplies and Services,348037,Subsistence E348,08-Nov-2019,000006710351756,BAR BLAU S,5812,Subsistence,25.90,0.00,25.90
Regeneration and Local Services,Environmental Services,010301,C&G - North Grounds Maintenance,Supplies and Services,304403,Equipment and Materials,08-Nov-2019,000006710351790,TIMPSON LTD,7251,Other consumables,28.00,4.67,23.33
Children and Young Peoples Services,Head of Education and Skills,071802,Louisa Cent Nursery,Supplies and Services,324117,Provisions E324,08-Nov-2019,000006710351922,ASDA SUPERSTORE,5411,Catering costs - provisions,170.46,0.00,170.46
Regeneration and Local Services,Development and Housing,030771,Durham Advance Flexible Fund,Supplies and Services,384700,Miscellaneous Expenses,08-Nov-2019,000006710351982,PAYPAL LYMEBAYPRES,5932,Miscellaneous grants,178.20,29.70,148.50
Children and Young Peoples Services,Head of Childrens Social Care,085332,Middlestone Moor CU,Supplies and Services,304403,Equipment and Materials,08-Nov-2019,000006710351990,AMZNMKTPLACE AMAZON.CO,5999,Other consumables,11.96,2.00,9.96
Children and Young Peoples Services,Head of Childrens Social Care,085341,High Etherley Satelite Home,Supplies and Services,324117,Provisions E324,08-Nov-2019,000006710352168,SAINSBURYS SACAT 2199,5411,Catering costs - provisions,8.20,0.00,8.20
Children and Young Peoples Services,Head of Childrens Social Care,085341,High Etherley Satelite Home,Supplies and Services,328041,Clothing uniforms and laundry E328,08-Nov-2019,000006710352174,ARGOS BISHOP AUCKL,5310,Clothing uniforms and laundry,18.34,0.00,18.34
Children and Young Peoples Services,Head of Childrens Social Care,085332,Middlestone Moor CU,Supplies and Services,348037,Subsistence E348,08-Nov-2019,000006710352290,THE SHIP REDMARSHALL,5813,Subsistence,48.85,0.00,48.85
Children and Young Peoples Services,Head of Childrens Social Care,085332,Middlestone Moor CU,Transport,235057,Public Transport,08-Nov-2019,000006710352296,CAR PARK CHARGES,7523,Staff travelling,2.00,0.00,2.00
Regeneration and Local Services,Development and Housing,030771,Durham Advance Flexible Fund,Supplies and Services,304221,Equipment and Materials,08-Nov-2019,000006710352310,SCREWFIX DIRECT,5200,Direct materials,290.92,48.49,242.43
Regeneration and Local Services,Development and Housing,030771,Durham Advance Flexible Fund,Supplies and Services,304221,Equipment and Materials,08-Nov-2019,000006710352316,SCREWFIX CONSETT,5211,Direct materials,40.00,6.67,33.33
Children and Young Peoples Services,Head of Education and Skills,070264,EDC Premises,Supplies and Services,324117,Provisions E324,08-Nov-2019,000006723187642,BATLEYS PERTH,5300,Catering costs - provisions,9.18,1.53,7.65
Children and Young Peoples Services,Head of Education and Skills,070264,EDC Premises,Supplies and Services,324117,Provisions E324,08-Nov-2019,000006723187642 - 1,BATLEYS PERTH,5300,Catering costs - provisions,63.62,,63.62
Regeneration and Local Services,Environmental Services,011060,C&G - Hardwick Park Catering,Supplies and Services,324117,Provisions E324,08-Nov-2019,000006723188194,BATLEYS PERTH,5300,Catering costs - provisions,16.56,2.76,13.80
Regeneration and Local Services,Environmental Services,011060,C&G - Hardwick Park Catering,Supplies and Services,324117,Provisions E324,08-Nov-2019,000006723188194 - 1,BATLEYS PERTH,5300,Catering costs - provisions,91.90,,91.90
Regeneration and Local Services,Corporate Property and Land,010525,Catering - Green Lane,Supplies and Services,324117,Provisions E324,08-Nov-2019,000006723188260,BATLEYS PERTH,5300,Catering costs - provisions,77.76,12.96,64.80
Regeneration and Local Services,Corporate Property and Land,010525,Catering - Green Lane,Supplies and Services,324117,Provisions E324,08-Nov-2019,000006723188260 - 1,BATLEYS PERTH,5300,Catering costs - provisions,77.74,,77.74
Adult and Health Services,Head of Adults,055643,Hawthorn House LD Respite Unit,Supplies and Services,324117,Provisions E324,08-Nov-2019,000006723188604,BATLEYS PERTH,5300,Catering costs - provisions,35.70,5.95,29.75
Adult and Health Services,Head of Adults,055643,Hawthorn House LD Respite Unit,Supplies and Services,324117,Provisions E324,08-Nov-2019,000006723188604 - 1,BATLEYS PERTH,5300,Catering costs - provisions,71.12,,71.12
Adult and Health Services,Head of Adults,055643,Hawthorn House LD Respite Unit,Supplies and Services,324117,Provisions E324,08-Nov-2019,000006723188614,BATLEYS PERTH,5300,Catering costs - provisions,14.09,0.00,14.09
Children and Young Peoples Services,Head of Childrens Social Care,085332,Middlestone Moor CU,Supplies and Services,328041,Clothing uniforms and laundry E328,09-Nov-2019,000006710350514,CRAZY FASHION,5651,Clothing uniforms and laundry,26.89,0.00,26.89
Children and Young Peoples Services,Head of Childrens Social Care,085332,Middlestone Moor CU,Transport,235057,Public Transport,09-Nov-2019,000006710350520,TRAMBESOS,4111,Staff travelling,8.80,0.00,8.80
Children and Young Peoples Services,Head of Childrens Social Care,085332,Middlestone Moor CU,Supplies and Services,348037,Subsistence E348,09-Nov-2019,000006710350524,MUCCIS,5814,Subsistence,12.82,0.00,12.82
Children and Young Peoples Services,Head of Childrens Social Care,085352,Tow Law CU,Supplies and Services,332047,Printing Stationery and Gen Off Exps,09-Nov-2019,000006710350726,SHOWCASE TEESIDE,7832,Stationery,20.35,0.00,20.35
Children and Young Peoples Services,Head of Childrens Social Care,085352,Tow Law CU,Supplies and Services,332047,Printing Stationery and Gen Off Exps,09-Nov-2019,000006710350732,SHOWCASE TEESIDE,7832,Stationery,20.10,0.00,20.10
Children and Young Peoples Services,Head of Childrens Social Care,085342,9 Cedar Drive Aycliffe,Supplies and Services,324117,Provisions E324,09-Nov-2019,000006710350746,TESCO STORES 2916,5411,Catering costs - provisions,27.45,0.00,27.45
Children and Young Peoples Services,Head of Education and Skills,071732,Dean Bank Childcare,Supplies and Services,324117,Provisions E324,09-Nov-2019,000006710350790,SAINSBURYS SACAT (2303,5411,Catering costs - provisions,19.47,0.00,19.47
Children and Young Peoples Services,Head of Childrens Social Care,085334,West Rainton Satelite Home,Supplies and Services,304221,Equipment and Materials,09-Nov-2019,000006710350864,B & Q 1343,5200,Direct materials,22.00,0.00,22.00
Regeneration and Local Services,Development and Housing,031500,Housing Solutions - Core Team,Supplies and Services,352001,Conference Expenses,09-Nov-2019,000006710350952,HAYAT HOTEL,7011,Conferencesseminars fees etc,100.00,16.67,83.33
Regeneration and Local Services,Business Durham CL0850,030674,Business Services General,Supplies and Services,304999,Equipment and Materials,09-Nov-2019,000006710350966,MAILCHIMP MONTHLY,5968,Misc equipment tools and materials,71.18,0.00,71.18
Regeneration and Local Services,Business Durham CL0850,030674,Business Services General,Supplies and Services,342033,Computers and Communications,09-Nov-2019,000006710350970,SLICKPLAN.COM,7372,Computer hardware,7.82,0.00,7.82
Regeneration and Local Services,Business Durham CL0850,030674,Business Services General,Supplies and Services,342222,Computers and Communications,09-Nov-2019,000006710350974,FASTHOSTS INTERNET,4816,Comp hardware purch-network servers,29.96,4.99,24.97
Children and Young Peoples Services,Head of Early Help Inclusion & Vulnerable Children.,085957,Secure Management,Supplies and Services,324117,Provisions E324,09-Nov-2019,000006710351010,TESCO STORES 6329,5411,Catering costs - provisions,106.23,0.00,106.23
Regeneration and Local Services,Culture Sport and Tourism,054813,Gala Theatre - Technical,Supplies and Services,304221,Equipment and Materials,09-Nov-2019,000006710351022,B & Q 1006,5200,Direct materials,44.93,0.00,44.93
Regeneration and Local Services,Culture Sport and Tourism,054813,Gala Theatre - Technical,Supplies and Services,324117,Provisions E324,09-Nov-2019,000006710351024,WM MORRISONS STORE,5411,Catering costs - provisions,75.00,0.00,75.00
Regeneration and Local Services,Culture Sport and Tourism,054815,Gala Theatre Stage School,Supplies and Services,328041,Clothing uniforms and laundry E328,09-Nov-2019,000006710351082,RIVER ISLAND 820,5691,Clothing uniforms and laundry,-40.00,0.00,-40.00
Children and Young Peoples Services,Head of Childrens Social Care,085551,Short Break Services-Park Hse Sher,Supplies and Services,324117,Provisions E324,09-Nov-2019,000006710351160,ALDI 15 774,5411,Catering costs - provisions,25.66,0.00,25.66
Children and Young Peoples Services,Head of Childrens Social Care,085551,Short Break Services-Park Hse Sher,Supplies and Services,324117,Provisions E324,09-Nov-2019,000006710351166,ICELAND,5411,Catering costs - provisions,10.50,0.00,10.50
Children and Young Peoples Services,Head of Early Help Inclusion & Vulnerable Children.,088103,Consett & Stanley 0-19 Community Family Hub,Supplies and Services,364320,Grants to Voluntary Organisations,09-Nov-2019,000006710351218,AMZNMKTPLACE AMAZON.CO,5999,Accommodation assistance,280.91,46.82,234.09
Children and Young Peoples Services,Head of Early Help Inclusion & Vulnerable Children.,088108,Spennymoor & Shildon 0-19 Targeted Family Support,Supplies and Services,384999,Miscellaneous Expenses,09-Nov-2019,000006710351222,Amazon.co.uk 223DV37X5,5969,Other expenses,4.97,0.00,4.97
Children and Young Peoples Services,Head of Childrens Social Care,085332,Middlestone Moor CU,Supplies and Services,324117,Provisions E324,09-Nov-2019,000006710351446,WM MORRISONS STORE,5411,Catering costs - provisions,30.72,0.00,30.72
Children and Young Peoples Services,Head of Childrens Social Care,085332,Middlestone Moor CU,Supplies and Services,348037,Subsistence E348,09-Nov-2019,000006710351454,GREGGS,5812,Subsistence,12.00,0.00,12.00
Regeneration and Local Services,Culture Sport and Tourism,011204,Festival and Events,Supplies and Services,324117,Provisions E324,09-Nov-2019,000006710351696,CO-OP GROUP FOOD,5411,Catering costs - provisions,10.24,0.00,10.24
Children and Young Peoples Services,Head of Childrens Social Care,085332,Middlestone Moor CU,Supplies and Services,348037,Subsistence E348,09-Nov-2019,000006710351750,RESTAURANTE SANTA MONI,5812,Subsistence,62.12,0.00,62.12
Children and Young Peoples Services,Head of Childrens Social Care,085332,Middlestone Moor CU,Supplies and Services,348037,Subsistence E348,09-Nov-2019,000006710351760,"ASTER FORUM, S.L.",5812,Subsistence,11.22,0.00,11.22
Children and Young Peoples Services,Head of Childrens Social Care,085352,Tow Law CU,Supplies and Services,348037,Subsistence E348,09-Nov-2019,000006710351860,COSTA COFFEE,5814,Subsistence,12.30,0.00,12.30
Children and Young Peoples Services,Head of Childrens Social Care,085352,Tow Law CU,Supplies and Services,384999,Miscellaneous Expenses,09-Nov-2019,000006710351868,HOBBYCRAFT,5970,Other expenses,6.00,0.00,6.00
Children and Young Peoples Services,Head of Childrens Social Care,085352,Tow Law CU,Supplies and Services,324117,Provisions E324,09-Nov-2019,000006710351874,WM MORRISONS STORE,5411,Catering costs - provisions,4.00,0.00,4.00
Children and Young Peoples Services,Head of Childrens Social Care,085352,Tow Law CU,Supplies and Services,324117,Provisions E324,09-Nov-2019,000006710351880,WM MORRISONS STORE,5411,Catering costs - provisions,10.00,0.00,10.00
Children and Young Peoples Services,Head of Childrens Social Care,085352,Tow Law CU,Supplies and Services,304999,Equipment and Materials,09-Nov-2019,000006710351884,HOME BARGAINS,5251,Misc equipment tools and materials,13.98,0.00,13.98
Children and Young Peoples Services,Head of Childrens Social Care,085352,Tow Law CU,Supplies and Services,328041,Clothing uniforms and laundry E328,09-Nov-2019,000006710351888,T K MAXX,5331,Clothing uniforms and laundry,2.99,0.00,2.99
Children and Young Peoples Services,Head of Childrens Social Care,085352,Tow Law CU,Supplies and Services,324117,Provisions E324,09-Nov-2019,000006710351894,ASDA STORES 4320,5411,Catering costs - provisions,5.00,0.83,4.17
Children and Young Peoples Services,Head of Childrens Social Care,085352,Tow Law CU,Supplies and Services,304999,Equipment and Materials,09-Nov-2019,000006710351900,SUPERDRUG STORES PLC,5912,Misc equipment tools and materials,5.25,0.00,5.25
Children and Young Peoples Services,Head of Childrens Social Care,085352,Tow Law CU,Supplies and Services,304403,Equipment and Materials,09-Nov-2019,000006710351906,CLINTONS 1225,5947,Other consumables,4.48,0.00,4.48
Children and Young Peoples Services,Head of Education and Skills,071801,Selby Cottage Childcare Centre,Supplies and Services,304403,Equipment and Materials,10-Nov-2019,000006710350102,AMZNMktplace,5999,Other consumables,38.99,6.50,32.49
Children and Young Peoples Services,Head of Education and Skills,071801,Selby Cottage Childcare Centre,Supplies and Services,304403,Equipment and Materials,10-Nov-2019,000006710350108,AMZNMktplace,5999,Other consumables,439.20,73.20,366.00
Children and Young Peoples Services,Head of Education and Skills,071801,Selby Cottage Childcare Centre,Supplies and Services,304403,Equipment and Materials,10-Nov-2019,000006710350108 - 1,AMZNMktplace,5999,Other consumables,50.34,,50.34
Children and Young Peoples Services,Head of Childrens Social Care,085332,Middlestone Moor CU,Transport,235057,Public Transport,10-Nov-2019,000006710350526,www.headout.com,4722,Staff travelling,79.39,0.00,79.39
Children and Young Peoples Services,Head of Childrens Social Care,085333,Coxhoe Satelite Home,Supplies and Services,324117,Provisions E324,10-Nov-2019,000006710350660,SAINSBURYS SACAT (2303,5411,Catering costs - provisions,14.05,0.00,14.05
Regeneration and Local Services,Culture Sport and Tourism,054813,Gala Theatre - Technical,Supplies and Services,304403,Equipment and Materials,10-Nov-2019,000006710350806,AMZNMktplace,5999,Other consumables,16.99,0.00,16.99
Regeneration and Local Services,Culture Sport and Tourism,054813,Gala Theatre - Technical,Supplies and Services,304403,Equipment and Materials,10-Nov-2019,000006710350810,AMZNMktplace,5999,Other consumables,13.84,0.00,13.84
Regeneration and Local Services,Culture Sport and Tourism,054813,Gala Theatre - Technical,Supplies and Services,304221,Equipment and Materials,10-Nov-2019,000006710350816,SCREWFIX DIRECT,5200,Direct materials,69.99,0.00,69.99
Regeneration and Local Services,Culture Sport and Tourism,010601,Spennymoor Leisure Cr - General,Supplies and Services,304403,Equipment and Materials,10-Nov-2019,000006710350828,AMZNMktplace,5999,Other consumables,24.50,0.00,24.50
Children and Young Peoples Services,Head of Early Help Inclusion & Vulnerable Children.,085957,Secure Management,Supplies and Services,324117,Provisions E324,10-Nov-2019,000006710351012,TESCO STORES 6329,5411,Catering costs - provisions,94.06,0.00,94.06
Regeneration and Local Services,Culture Sport and Tourism,054813,Gala Theatre - Technical,Supplies and Services,324117,Provisions E324,10-Nov-2019,000006710351028,WILKO RETAIL LIMITED,5399,Catering costs - provisions,18.67,0.00,18.67
Regeneration and Local Services,Culture Sport and Tourism,054815,Gala Theatre Stage School,Supplies and Services,332047,Printing Stationery and Gen Off Exps,10-Nov-2019,000006710351078,RYMAN,5943,Stationery,4.98,0.00,4.98
Children and Young Peoples Services,Head of Childrens Social Care,085551,Short Break Services-Park Hse Sher,Supplies and Services,324117,Provisions E324,10-Nov-2019,000006710351168,WM MORRISONS STORE,5411,Catering costs - provisions,31.05,0.00,31.05
Resources BK0010,Resources Management CK0450,069000,Resources Management 069000,Supplies and Services,324117,Provisions E324,10-Nov-2019,000006710351358,CO-OP GROUP 310016,5411,Catering costs - provisions,6.70,0.00,6.70
Children and Young Peoples Services,Head of Childrens Social Care,085342,9 Cedar Drive Aycliffe,Supplies and Services,304403,Equipment and Materials,10-Nov-2019,000006710351384,AMZNMktplace,5999,Other consumables,117.71,0.00,117.71
Children and Young Peoples Services,Head of Childrens Social Care,085342,9 Cedar Drive Aycliffe,Supplies and Services,324117,Provisions E324,10-Nov-2019,000006710351392,ALDI 74 774,5411,Catering costs - provisions,3.79,0.00,3.79
Regeneration and Local Services,Culture Sport and Tourism,011204,Festival and Events,Supplies and Services,324117,Provisions E324,10-Nov-2019,000006710351704,TESCO STORES 6029,5411,Catering costs - provisions,1.09,0.00,1.09
Regeneration and Local Services,Culture Sport and Tourism,011263,Louisa Centre 011263,Supplies and Services,304403,Equipment and Materials,10-Nov-2019,000006710352012,AMZNMktplace,5999,Other consumables,6.61,0.00,6.61
Children and Young Peoples Services,Head of Childrens Social Care,085352,Tow Law CU,Supplies and Services,348037,Subsistence E348,10-Nov-2019,000006710352118,MCDONALD`S,5812,Subsistence,5.93,0.00,5.93
Children and Young Peoples Services,Head of Childrens Social Care,085332,Middlestone Moor CU,Supplies and Services,348037,Subsistence E348,10-Nov-2019,000006710352300,THE CLARENCE VILLA,5813,Subsistence,34.90,0.00,34.90
Children and Young Peoples Services,Head of Childrens Social Care,085332,Middlestone Moor CU,Supplies and Services,332047,Printing Stationery and Gen Off Exps,10-Nov-2019,000006710352304,SHOWCASE TEESIDE,7832,Stationery,18.25,0.00,18.25
Regeneration and Local Services,Business Durham CL0850,030674,Business Services General,Third Party Payments,430100,Rendered by Private Contractors,10-Nov-2019,000006718865952,BLS monday.com,7399,Payments to sub-contractors,148.80,0.00,148.80
Regeneration and Local Services,Business Durham CL0850,030717,Business Services,Supplies and Services,304403,Equipment and Materials,10-Nov-2019,000006718866202,AMZNMKTPLACE AMAZON.CO,5999,Other consumables,166.97,0.00,166.97
Children and Young Peoples Services,Head of Childrens Social Care,085332,Middlestone Moor CU,Supplies and Services,348037,Subsistence E348,10-Nov-2019,000006718866558,BAR BLAU S,5812,Subsistence,29.84,0.00,29.84
Children and Young Peoples Services,Head of Childrens Social Care,085332,Middlestone Moor CU,Transport,235057,Public Transport,11-Nov-2019,000006710350530,TRAMBESOS,4111,Staff travelling,0.24,0.00,0.24
Children and Young Peoples Services,Head of Childrens Social Care,085332,Middlestone Moor CU,Supplies and Services,348037,Subsistence E348,11-Nov-2019,000006710350532,MUCCIS,5814,Subsistence,0.35,0.00,0.35
Children and Young Peoples Services,Head of Childrens Social Care,085332,Middlestone Moor CU,Transport,235057,Public Transport,11-Nov-2019,000006710350536,www.headout.com,4722,Staff travelling,2.18,0.00,2.18
Regeneration and Local Services,Business Durham CL0850,030674,Business Services General,Supplies and Services,304999,Equipment and Materials,11-Nov-2019,000006710350978,MAILCHIMP MONTHLY,5968,Misc equipment tools and materials,1.96,0.00,1.96
Regeneration and Local Services,Business Durham CL0850,030674,Business Services General,Supplies and Services,342033,Computers and Communications,11-Nov-2019,000006710350984,SLICKPLAN.COM,7372,Computer hardware,0.22,0.00,0.22
Regeneration and Local Services,Environmental Services,031200,North Pennines Core,Supplies and Services,352001,Conference Expenses,11-Nov-2019,000006710351554,HOTEL NOVA DOMUS,7011,Conferencesseminars fees etc,0.14,0.00,0.14
Regeneration and Local Services,Environmental Services,031200,North Pennines Core,Supplies and Services,352001,Conference Expenses,11-Nov-2019,000006710351556,PODERNOVO DI MONTICIAN,7011,Conferencesseminars fees etc,1.60,0.00,1.60
Regeneration and Local Services,Environmental Services,031200,North Pennines Core,Supplies and Services,348037,Subsistence E348,11-Nov-2019,000006710351558,Bibbo di Mare,5812,Subsistence,0.13,0.00,0.13
Regeneration and Local Services,Environmental Services,031200,North Pennines Core,Transport,235057,Public Transport,11-Nov-2019,000006710351560,ROMA TERMINI SELF SERV,4112,Staff travelling,0.33,0.00,0.33
Children and Young Peoples Services,Head of Childrens Social Care,085332,Middlestone Moor CU,Supplies and Services,348037,Subsistence E348,11-Nov-2019,000006710351766,"ASTER FORUM, S.L.",5812,Subsistence,0.31,0.00,0.31
Children and Young Peoples Services,Head of Education and Skills,071801,Selby Cottage Childcare Centre,Supplies and Services,304403,Equipment and Materials,11-Nov-2019,000006718865264,AMZNMktplace,5999,Other consumables,27.66,4.62,23.04
Children and Young Peoples Services,Head of Education and Skills,071801,Selby Cottage Childcare Centre,Supplies and Services,324117,Provisions E324,11-Nov-2019,000006718865270,TESCO STORES 2278,5411,Catering costs - provisions,34.95,0.00,34.95
Children and Young Peoples Services,Head of Education and Skills,071801,Selby Cottage Childcare Centre,Supplies and Services,328041,Clothing uniforms and laundry E328,11-Nov-2019,000006718865274,B&M RETAIL LTD,5310,Clothing uniforms and laundry,7.56,0.00,7.56
Children and Young Peoples Services,Head of Education and Skills,071801,Selby Cottage Childcare Centre,Supplies and Services,328041,Clothing uniforms and laundry E328,11-Nov-2019,000006718865280,POUNDLAND LTD 1330,5310,Clothing uniforms and laundry,21.00,0.00,21.00
Regeneration and Local Services,Development and Housing,031617,Project Beta Sustainability Fund,Supplies and Services,304259,Equipment and Materials,11-Nov-2019,000006718865290,CITIZENCARD,9399,Equipment-purchase and rental,10.00,0.00,10.00
Regeneration and Local Services,Development and Housing,031617,Project Beta Sustainability Fund,Supplies and Services,304259,Equipment and Materials,11-Nov-2019,000006718865296,CITIZENCARD,9399,Equipment-purchase and rental,10.00,0.00,10.00
Regeneration and Local Services,Development and Housing,031617,Project Beta Sustainability Fund,Supplies and Services,304259,Equipment and Materials,11-Nov-2019,000006718865298,CITIZENCARD,9399,Equipment-purchase and rental,10.00,0.00,10.00
Regeneration and Local Services,Development and Housing,031617,Project Beta Sustainability Fund,Supplies and Services,304259,Equipment and Materials,11-Nov-2019,000006718865306,CITIZENCARD,9399,Equipment-purchase and rental,10.00,0.00,10.00
Regeneration and Local Services,Development and Housing,031617,Project Beta Sustainability Fund,Supplies and Services,304259,Equipment and Materials,11-Nov-2019,000006718865310,CITIZENCARD,9399,Equipment-purchase and rental,10.00,0.00,10.00
Children and Young Peoples Services,Head of Education and Skills,054640,Durham Learning Resources 054640,Supplies and Services,304245,Equipment and Materials,11-Nov-2019,000006718865330,WWW.SOUTHERNSWORDS.CO.,5611,Materials,358.50,59.75,298.75
Children and Young Peoples Services,Head of Education and Skills,070264,EDC Premises,Supplies and Services,324117,Provisions E324,11-Nov-2019,000006718865340,FREEMAN CATERING BUTCH,5422,Catering costs - provisions,59.95,0.00,59.95
Regeneration and Local Services,Development and Housing,031500,Housing Solutions - Core Team,Supplies and Services,364320,Grants to Voluntary Organisations,11-Nov-2019,000006718865370,TOAST LETTINGS,7011,Accommodation assistance,460.00,0.00,460.00
Adult and Health Services,Head of Adults,055302,Durham Pathways,Supplies and Services,324117,Provisions E324,11-Nov-2019,000006718865392,SAINSBURYS SACAT 0776,5411,Catering costs - provisions,7.50,0.00,7.50
Adult and Health Services,Head of Adults,055302,Durham Pathways,Supplies and Services,328041,Clothing uniforms and laundry E328,11-Nov-2019,000006718865398,THE WORKS,5310,Clothing uniforms and laundry,3.05,0.00,3.05
Regeneration and Local Services,Culture Sport and Tourism,011263,Louisa Centre 011263,Supplies and Services,324117,Provisions E324,11-Nov-2019,000006718865422,JR HOLLAND FOODSERVICE,5499,Catering costs - provisions,23.18,0.00,23.18
Regeneration and Local Services,Culture Sport and Tourism,011263,Louisa Centre 011263,Supplies and Services,324117,Provisions E324,11-Nov-2019,000006718865428,JR HOLLAND FOODSERVICE,5499,Catering costs - provisions,9.53,0.00,9.53
Resources BK0010,Finance & Transactional Services,065180,Collections,Supplies and Services,304259,Equipment and Materials,11-Nov-2019,000006718865450,WWW.MONEYCLAIM.GOV,9399,Equipment-purchase and rental,105.00,0.00,105.00
Children and Young Peoples Services,Head of Childrens Social Care,085352,Tow Law CU,Supplies and Services,348037,Subsistence E348,11-Nov-2019,000006718865508,NANDOS METROCENTRE GA,5812,Subsistence,25.50,0.00,25.50
Children and Young Peoples Services,Head of Childrens Social Care,085352,Tow Law CU,Supplies and Services,328041,Clothing uniforms and laundry E328,11-Nov-2019,000006718865510,THE RANGE,5311,Clothing uniforms and laundry,12.99,0.00,12.99
Children and Young Peoples Services,Head of Childrens Social Care,085352,Tow Law CU,Supplies and Services,348037,Subsistence E348,11-Nov-2019,000006718865516,MCDONALDS,5814,Subsistence,2.38,0.00,2.38
Regeneration and Local Services,Corporate Property and Land,021242,Catering - County Hall,Supplies and Services,324117,Provisions E324,11-Nov-2019,000006718865554,FREEMAN CATERING BUTCH,5422,Catering costs - provisions,239.64,0.00,239.64
Regeneration and Local Services,Corporate Property and Land,021242,Catering - County Hall,Supplies and Services,324117,Provisions E324,11-Nov-2019,000006718865560,FREEMAN CATERING BUTCH,5422,Catering costs - provisions,203.08,0.00,203.08
Regeneration and Local Services,Corporate Property and Land,021242,Catering - County Hall,Supplies and Services,324117,Provisions E324,11-Nov-2019,000006718865564,JR HOLLAND FOODSERVICE,5499,Catering costs - provisions,121.28,0.00,121.28
Regeneration and Local Services,Corporate Property and Land,021242,Catering - County Hall,Supplies and Services,324117,Provisions E324,11-Nov-2019,000006718865566,JR HOLLAND FOODSERVICE,5499,Catering costs - provisions,6.90,0.00,6.90
Children and Young Peoples Services,Head of Childrens Social Care,085332,Middlestone Moor CU,Supplies and Services,324117,Provisions E324,11-Nov-2019,000006718865582,REFRESH,5411,Catering costs - provisions,2.45,0.00,2.45
Children and Young Peoples Services,Head of Childrens Social Care,085332,Middlestone Moor CU,Supplies and Services,324117,Provisions E324,11-Nov-2019,000006718865586,REFRESH,5411,Catering costs - provisions,2.45,0.00,2.45
Regeneration and Local Services,Culture Sport and Tourism,054812,Gala Theatre - Catering etc,Supplies and Services,324117,Provisions E324,11-Nov-2019,000006718865592,FREEMAN CATERING BUTCH,5422,Catering costs - provisions,26.24,0.00,26.24
Regeneration and Local Services,Culture Sport and Tourism,054812,Gala Theatre - Catering etc,Supplies and Services,324117,Provisions E324,11-Nov-2019,000006718865598,FREEMAN CATERING BUTCH,5422,Catering costs - provisions,16.20,0.00,16.20
Regeneration and Local Services,Culture Sport and Tourism,054812,Gala Theatre - Catering etc,Supplies and Services,324117,Provisions E324,11-Nov-2019,000006718865606,JR HOLLAND FOODSERVICE,5499,Catering costs - provisions,25.82,0.00,25.82
Regeneration and Local Services,Development and Housing,031576,B& B - Temp Accom,Supplies and Services,352001,Conference Expenses,11-Nov-2019,000006718865620,HOTEL 52,7011,Conferencesseminars fees etc,112.98,0.00,112.98
Regeneration and Local Services,Development and Housing,031576,B& B - Temp Accom,Supplies and Services,352001,Conference Expenses,11-Nov-2019,000006718865626,HOLIDAY INNS,3501,Conferencesseminars fees etc,164.97,0.00,164.97
Children and Young Peoples Services,Head of Early Help Inclusion & Vulnerable Children.,079599,Psychological-HQ,Employees,040149,Recruitment Instruction and Training,11-Nov-2019,000006718865656,WWW.ELKLAN.CO.UK,8299,Training-all costs,66.00,0.00,66.00
Regeneration and Local Services,Corporate Property and Land,021242,Catering - County Hall,Supplies and Services,324117,Provisions E324,11-Nov-2019,000006718865668,SAINSBURYS 0776,5411,Catering costs - provisions,17.50,0.00,17.50
Regeneration and Local Services,Development and Housing,030773,CLLD North,Transport,235057,Public Transport,11-Nov-2019,000006718865698,ARRIVA NORTH EAST,4131,Staff travelling,15.00,0.00,15.00
Regeneration and Local Services,Development and Housing,030773,CLLD North,Transport,235057,Public Transport,11-Nov-2019,000006718865710,ARRIVA NORTH EAST,4131,Staff travelling,15.00,0.00,15.00
Children and Young Peoples Services,Head of Childrens Social Care,085333,Coxhoe Satelite Home,Supplies and Services,304259,Equipment and Materials,11-Nov-2019,000006718865724,M and M Direct Ltd,5941,Equipment-purchase and rental,51.96,0.00,51.96
Regeneration and Local Services,Development and Housing,031576,B& B - Temp Accom,Supplies and Services,364320,Grants to Voluntary Organisations,11-Nov-2019,000006718865758,HAYAT HOTEL,7011,Accommodation assistance,50.00,0.00,50.00
Regeneration and Local Services,Culture Sport and Tourism,010664,Freemans Quay Leisure Centre,Supplies and Services,304221,Equipment and Materials,11-Nov-2019,000006718865780,SCREWFIX DIRECT,5200,Direct materials,110.97,18.50,92.47
Children and Young Peoples Services,Head of Education and Skills,071732,Dean Bank Childcare,Supplies and Services,324117,Provisions E324,11-Nov-2019,000006718865808,ASDA GROCERIES ONLINE,5411,Catering costs - provisions,47.08,0.00,47.08
Children and Young Peoples Services,Head of Education and Skills,071732,Dean Bank Childcare,Supplies and Services,324117,Provisions E324,11-Nov-2019,000006718865818,ASDA GROCERIES ONLINE,5411,Catering costs - provisions,-0.50,0.00,-0.50
Regeneration and Local Services,Development and Housing,030771,Durham Advance Flexible Fund,Employees,040029,Recruitment Instruction and Training,11-Nov-2019,000006718865854,TESCO STORES 2916,5411,Interview expenses,3.00,0.00,3.00
Regeneration and Local Services,Development and Housing,030771,Durham Advance Flexible Fund,Transport,235057,Public Transport,11-Nov-2019,000006718865900,ARRIVA NORTH EAST,4131,Staff travelling,4.50,0.00,4.50
Regeneration and Local Services,Development and Housing,030771,Durham Advance Flexible Fund,Transport,235057,Public Transport,11-Nov-2019,000006718865904,GO NORTH EAST LIMITED,4131,Staff travelling,5.30,0.00,5.30
Regeneration and Local Services,Development and Housing,030771,Durham Advance Flexible Fund,Transport,235057,Public Transport,11-Nov-2019,000006718865912,GO NORTH EAST LIMITED,4131,Staff travelling,5.30,0.88,4.42
Regeneration and Local Services,Business Durham CL0850,030674,Business Services General,Supplies and Services,348037,Subsistence E348,11-Nov-2019,000006718865958,FINBARR`S,5812,Subsistence,53.75,0.00,53.75
Children and Young Peoples Services,Head of Early Help Inclusion & Vulnerable Children.,085957,Secure Management,Supplies and Services,324117,Provisions E324,11-Nov-2019,000006718865974,TESCO STORES 6329,5411,Catering costs - provisions,187.93,0.00,187.93
Children and Young Peoples Services,Head of Early Help Inclusion & Vulnerable Children.,085957,Secure Management,Supplies and Services,328041,Clothing uniforms and laundry E328,11-Nov-2019,000006718865978,PRETTYLITTLETHING.COM,5691,Clothing uniforms and laundry,-15.00,0.00,-15.00
Children and Young Peoples Services,Head of Early Help Inclusion & Vulnerable Children.,085957,Secure Management,Supplies and Services,328041,Clothing uniforms and laundry E328,11-Nov-2019,000006718865984,FOOTASYLUM PLC,5691,Clothing uniforms and laundry,-32.49,0.00,-32.49
Regeneration and Local Services,Culture Sport and Tourism,054813,Gala Theatre - Technical,Supplies and Services,304259,Equipment and Materials,11-Nov-2019,000006718865990,Kindle Svcs 1Q5C133Y5,5735,Equipment-purchase and rental,0.99,0.00,0.99
Regeneration and Local Services,Culture Sport and Tourism,054813,Gala Theatre - Technical,Supplies and Services,304259,Equipment and Materials,11-Nov-2019,000006718865996,Kindle Svcs,5735,Equipment-purchase and rental,-0.99,0.00,-0.99
Transformation and Partnerships,Business Support,052986,CYPS - Locality and Operational Support,Supplies and Services,304403,Equipment and Materials,11-Nov-2019,000006718866000,AMZNMktplace,5999,Other consumables,180.94,0.00,180.94
Regeneration and Local Services,Environmental Services,011060,C&G - Hardwick Park Catering,Supplies and Services,324117,Provisions E324,11-Nov-2019,000006718866010,FREEMAN CATERING BUTCH,5422,Catering costs - provisions,22.30,0.00,22.30
Regeneration and Local Services,Environmental Services,011060,C&G - Hardwick Park Catering,Supplies and Services,324117,Provisions E324,11-Nov-2019,000006718866016,FREEMAN CATERING BUTCH,5422,Catering costs - provisions,42.87,0.00,42.87
Regeneration and Local Services,Environmental Services,011060,C&G - Hardwick Park Catering,Supplies and Services,324117,Provisions E324,11-Nov-2019,000006718866020,FREEMAN CATERING BUTCH,5422,Catering costs - provisions,43.49,0.00,43.49
Regeneration and Local Services,Environmental Services,011060,C&G - Hardwick Park Catering,Supplies and Services,324117,Provisions E324,11-Nov-2019,000006718866026,JR HOLLAND FOODSERVICE,5499,Catering costs - provisions,3.40,0.00,3.40
Regeneration and Local Services,Environmental Services,011060,C&G - Hardwick Park Catering,Supplies and Services,324117,Provisions E324,11-Nov-2019,000006718866032,JR HOLLAND FOODSERVICE,5499,Catering costs - provisions,66.95,0.00,66.95
Regeneration and Local Services,Corporate Property and Land,021234,Catering - Locomotion,Supplies and Services,324117,Provisions E324,11-Nov-2019,000006718866058,FREEMAN CATERING BUTCH,5422,Catering costs - provisions,129.14,0.00,129.14
Regeneration and Local Services,Corporate Property and Land,021234,Catering - Locomotion,Supplies and Services,324117,Provisions E324,11-Nov-2019,000006718866064,FREEMAN CATERING BUTCH,5422,Catering costs - provisions,69.60,0.00,69.60
Regeneration and Local Services,Corporate Property and Land,021234,Catering - Locomotion,Supplies and Services,324117,Provisions E324,11-Nov-2019,000006718866070,FREEMAN CATERING BUTCH,5422,Catering costs - provisions,5.40,0.00,5.40
Children and Young Peoples Services,Head of Early Help Inclusion & Vulnerable Children.,088101,CLS 0-19 Community Family Hub,Supplies and Services,324117,Provisions E324,11-Nov-2019,000006718866086,TESCO STORES 5970,5411,Catering costs - provisions,3.85,0.00,3.85
Children and Young Peoples Services,Head of Childrens Social Care,085331,New Lea Childrens Home,Supplies and Services,324117,Provisions E324,11-Nov-2019,000006718866096,ASDA GROCERIES ONLINE,5411,Catering costs - provisions,162.75,0.00,162.75
Children and Young Peoples Services,Head of Childrens Social Care,085331,New Lea Childrens Home,Supplies and Services,324117,Provisions E324,11-Nov-2019,000006718866104,ASDA GROCERIES ONLINE,5411,Catering costs - provisions,-0.01,0.00,-0.01
Regeneration and Local Services,Corporate Property and Land,010525,Catering - Green Lane,Supplies and Services,324117,Provisions E324,11-Nov-2019,000006718866132,FREEMAN CATERING BUTCH,5422,Catering costs - provisions,40.23,0.00,40.23
Regeneration and Local Services,Corporate Property and Land,010525,Catering - Green Lane,Supplies and Services,324117,Provisions E324,11-Nov-2019,000006718866138,FREEMAN CATERING BUTCH,5422,Catering costs - provisions,50.65,0.00,50.65
Regeneration and Local Services,Community Protection,011185,Nei. Prot - Unauthorised Encampments,Supplies and Services,338048,Services,11-Nov-2019,000006718866142,HMCOURTS-SERVICE.G,9222,Court costs 338048,226.00,0.00,226.00
Children and Young Peoples Services,Head of Early Help Inclusion & Vulnerable Children.,088108,Spennymoor & Shildon 0-19 Targeted Family Support,Supplies and Services,304259,Equipment and Materials,11-Nov-2019,000006718866160,AMZNMktplace,5999,Equipment-purchase and rental,2.36,0.39,1.97
Children and Young Peoples Services,Head of Early Help Inclusion & Vulnerable Children.,088108,Spennymoor & Shildon 0-19 Targeted Family Support,Supplies and Services,364320,Grants to Voluntary Organisations,11-Nov-2019,000006718866166,ASDA STORES,5411,Accommodation assistance,14.00,0.00,14.00
Regeneration and Local Services,Environmental Services,010367,C&G - South Grounds Maintenance,Supplies and Services,384999,Miscellaneous Expenses,11-Nov-2019,000006718866236,GUSTHARTS.COM,5046,Other expenses,98.77,16.46,82.31
Adult and Health Services,Head of Adults,055301,Stanley Pathways,Supplies and Services,324117,Provisions E324,11-Nov-2019,000006718866242,ASDA SUPERSTORE,5411,Catering costs - provisions,25.72,0.00,25.72
Children and Young Peoples Services,Head of Childrens Social Care,085352,Tow Law CU,Supplies and Services,324117,Provisions E324,11-Nov-2019,000006718866282,CO-OP GROUP 010989,5411,Catering costs - provisions,3.70,0.00,3.70
Regeneration and Local Services,Corporate Property and Land,030691,Catering - Durham Dales Centre,Supplies and Services,324117,Provisions E324,11-Nov-2019,000006718866292,FREEMAN CATERING BUTCH,5422,Catering costs - provisions,29.47,0.00,29.47
Regeneration and Local Services,Corporate Property and Land,030691,Catering - Durham Dales Centre,Supplies and Services,324117,Provisions E324,11-Nov-2019,000006718866296,FREEMAN CATERING BUTCH,5422,Catering costs - provisions,58.45,0.00,58.45
Regeneration and Local Services,Corporate Property and Land,030691,Catering - Durham Dales Centre,Supplies and Services,324117,Provisions E324,11-Nov-2019,000006718866300,FREEMAN CATERING BUTCH,5422,Catering costs - provisions,49.40,0.00,49.40
Regeneration and Local Services,Corporate Property and Land,030691,Catering - Durham Dales Centre,Supplies and Services,324117,Provisions E324,11-Nov-2019,000006718866304,FREEMAN CATERING BUTCH,5422,Catering costs - provisions,140.20,0.00,140.20
Regeneration and Local Services,Corporate Property and Land,030691,Catering - Durham Dales Centre,Supplies and Services,324117,Provisions E324,11-Nov-2019,000006718866308,FREEMAN CATERING BUTCH,5422,Catering costs - provisions,26.76,0.00,26.76
Regeneration and Local Services,Corporate Property and Land,030691,Catering - Durham Dales Centre,Supplies and Services,324117,Provisions E324,11-Nov-2019,000006718866312,FREEMAN CATERING BUTCH,5422,Catering costs - provisions,133.56,0.00,133.56
Regeneration and Local Services,Corporate Property and Land,030691,Catering - Durham Dales Centre,Supplies and Services,324117,Provisions E324,11-Nov-2019,000006718866316,JR HOLLAND FOODSERVICE,5499,Catering costs - provisions,150.27,0.00,150.27
Adult and Health Services,Head of Adults,055643,Hawthorn House LD Respite Unit,Supplies and Services,324117,Provisions E324,11-Nov-2019,000006718866332,FREEMAN CATERING BUTCH,5422,Catering costs - provisions,46.16,0.00,46.16
Adult and Health Services,Head of Adults,055643,Hawthorn House LD Respite Unit,Supplies and Services,324117,Provisions E324,11-Nov-2019,000006718866336,FREEMAN CATERING BUTCH,5422,Catering costs - provisions,53.84,0.00,53.84
Adult and Health Services,Head of Adults,055643,Hawthorn House LD Respite Unit,Supplies and Services,324117,Provisions E324,11-Nov-2019,000006718866342,JR HOLLAND FOODSERVICE,5499,Catering costs - provisions,20.28,0.00,20.28
Adult and Health Services,Head of Adults,055643,Hawthorn House LD Respite Unit,Supplies and Services,324117,Provisions E324,11-Nov-2019,000006718866346,JR HOLLAND FOODSERVICE,5499,Catering costs - provisions,23.64,0.00,23.64
Children and Young Peoples Services,Head of Childrens Social Care,085342,9 Cedar Drive Aycliffe,Supplies and Services,304259,Equipment and Materials,11-Nov-2019,000006718866384,GEN REGISTER OFFICE,9399,Equipment-purchase and rental,14.00,0.00,14.00
Children and Young Peoples Services,Head of Childrens Social Care,085342,9 Cedar Drive Aycliffe,Supplies and Services,304221,Equipment and Materials,11-Nov-2019,000006718866388,SCREWFIX DIRECT LT,5211,Direct materials,4.59,0.00,4.59
Transformation and Partnerships,Business Support,052986,CYPS - Locality and Operational Support,Supplies and Services,304403,Equipment and Materials,11-Nov-2019,000006718866394,AMZNMKTPLACE AMAZON.CO,5999,Other consumables,448.00,0.00,448.00
Transformation and Partnerships,Business Support,052986,CYPS - Locality and Operational Support,Supplies and Services,384999,Miscellaneous Expenses,11-Nov-2019,000006718866400,Amazon.co.uk MC1W75BO5,5969,Other expenses,89.98,0.00,89.98
Transformation and Partnerships,Business Support,052986,CYPS - Locality and Operational Support,Supplies and Services,304403,Equipment and Materials,11-Nov-2019,000006718866406,AMZNMktplace,5999,Other consumables,265.89,0.00,265.89
Regeneration and Local Services,Development and Housing,031500,Housing Solutions - Core Team,Supplies and Services,352001,Conference Expenses,11-Nov-2019,000006718866430,TOAST LETTINGS,7011,Conferencesseminars fees etc,460.00,0.00,460.00
Regeneration and Local Services,Development and Housing,031500,Housing Solutions - Core Team,Supplies and Services,352001,Conference Expenses,11-Nov-2019,000006718866436,TOAST LETTINGS,7011,Conferencesseminars fees etc,100.00,0.00,100.00
Regeneration and Local Services,Development and Housing,031500,Housing Solutions - Core Team,Supplies and Services,352001,Conference Expenses,11-Nov-2019,000006718866442,TOAST LETTINGS,7011,Conferencesseminars fees etc,460.00,0.00,460.00
Regeneration and Local Services,Development and Housing,031500,Housing Solutions - Core Team,Supplies and Services,352001,Conference Expenses,11-Nov-2019,000006718866444,TOAST LETTINGS,7011,Conferencesseminars fees etc,100.00,0.00,100.00
Regeneration and Local Services,Development and Housing,031500,Housing Solutions - Core Team,Supplies and Services,352001,Conference Expenses,11-Nov-2019,000006718866448,TOAST LETTINGS,7011,Conferencesseminars fees etc,460.00,0.00,460.00
